Workbook

Sheet الرصيد الثابت
A1: اللون | B1: الوصف | C1: المقاس | D1: اللون | E1: رصيد اقتتاحي بالكيلو | F1: رصيد اقتتاحي بالمتر | G1: رصيد اقتتاحي بالقطع | H1: رصيد ختامي يالكيلو | I1: رصيد ختامي يالمتر | J1: رصيد ختامي يالقطع
A2: ابيض | B2: كروشيه | C2: 5.8cm | D2: =A2&" "&B2&" "&C2 -> ابيض كروشيه 5.8cm | E2: 1000 | F2: 3000 | G2: 15000 | H2: =IF(E2="","",SUMIF(الدخول!$B$3:$B$1311,D2,الدخول!$F$3:$F$1311)+SUMIF(الدخول!$B$3:$B$1311,D2,الدخول!$Q$3:$Q$1311)+E2-SUMIF(الدخول!$B$3:$B$1311,D2,الدخول!$K$3:$K$1311)) -> 1005 | I2: =IF(F2="","",SUMIF(الدخول!$B$3:$B$1311,D2,الدخول!$G$3:$G$1311)+SUMIF(الدخول!$B$3:$B$1311,D2,الدخول!$R$3:$R$1311)+F2-SUMIF(الدخول!$B$3:$B$1311,D2,الدخول!$L$3:$L$1311)) -> 3332 | J2: =IF(G2="","",SUMIF(الدخول!$B$3:$B$1311,D2,الدخول!$I$3:$I$1311)+SUMIF(الدخول!$B$3:$B$1311,D2,الدخول!$T$3:$T$1311)+G2-SUMIF(الدخول!$B$3:$B$1311,D2,الدخول!$N$3:$N$1311)) -> 15018
A3: ابيض | B3: كروشيه | C3: 5.5cm | D3: =A3&" "&B3&" "&C3 -> ابيض كروشيه 5.5cm | E3: 9000 | F3: 2500 | G3: 5000 | H3: =IF(E3="","",SUMIF(الدخول!$B$3:$B$1311,D3,الدخول!$F$3:$F$1311)+SUMIF(الدخول!$B$3:$B$1311,D3,الدخول!$Q$3:$Q$1311)+E3-SUMIF(الدخول!$B$3:$B$1311,D3,الدخول!$K$3:$K$1311)) -> 9051 | I3: =IF(F3="","",SUMIF(الدخول!$B$3:$B$1311,D3,الدخول!$G$3:$G$1311)+SUMIF(الدخول!$B$3:$B$1311,D3,الدخول!$R$3:$R$1311)+F3-SUMIF(الدخول!$B$3:$B$1311,D3,الدخول!$L$3:$L$1311)) -> 3847 | J3: =IF(G3="","",SUMIF(الدخول!$B$3:$B$1311,D3,الدخول!$I$3:$I$1311)+SUMIF(الدخول!$B$3:$B$1311,D3,الدخول!$T$3:$T$1311)+G3-SUMIF(الدخول!$B$3:$B$1311,D3,الدخول!$N$3:$N$1311)) -> 5047
A4: ابيض | B4: كروشيه | C4: 5.3cm | D4: ابيض كروشيه 5.3cm | E4: 8000 | F4: 5000 | G4: 3500 | H4: =IF(E4="","",SUMIF(الدخول!$B$3:$B$1311,D4,الدخول!$F$3:$F$1311)+SUMIF(الدخول!$B$3:$B$1311,D4,الدخول!$Q$3:$Q$1311)+E4-SUMIF(الدخول!$B$3:$B$1311,D4,الدخول!$K$3:$K$1311)) -> 8000 | I4: =IF(F4="","",SUMIF(الدخول!$B$3:$B$1311,D4,الدخول!$G$3:$G$1311)+SUMIF(الدخول!$B$3:$B$1311,D4,الدخول!$R$3:$R$1311)+F4-SUMIF(الدخول!$B$3:$B$1311,D4,الدخول!$L$3:$L$1311)) -> 5000 | J4: =IF(G4="","",SUMIF(الدخول!$B$3:$B$1311,D4,الدخول!$I$3:$I$1311)+SUMIF(الدخول!$B$3:$B$1311,D4,الدخول!$T$3:$T$1311)+G4-SUMIF(الدخول!$B$3:$B$1311,D4,الدخول!$N$3:$N$1311)) -> 3500
A5: ابيض | B5: كروشيه | C5: 5cm | D5: ابيض كروشيه 5cm | E5: 6000 | F5: 4000 | G5: 300 | H5: =IF(E5="","",SUMIF(الدخول!$B$3:$B$1311,D5,الدخول!$F$3:$F$1311)+SUMIF(الدخول!$B$3:$B$1311,D5,الدخول!$Q$3:$Q$1311)+E5-SUMIF(الدخول!$B$3:$B$1311,D5,الدخول!$K$3:$K$1311)) -> 6005 | I5: =IF(F5="","",SUMIF(الدخول!$B$3:$B$1311,D5,الدخول!$G$3:$G$1311)+SUMIF(الدخول!$B$3:$B$1311,D5,الدخول!$R$3:$R$1311)+F5-SUMIF(الدخول!$B$3:$B$1311,D5,الدخول!$L$3:$L$1311)) -> 4015 | J5: =IF(G5="","",SUMIF(الدخول!$B$3:$B$1311,D5,الدخول!$I$3:$I$1311)+SUMIF(الدخول!$B$3:$B$1311,D5,الدخول!$T$3:$T$1311)+G5-SUMIF(الدخول!$B$3:$B$1311,D5,الدخول!$N$3:$N$1311)) -> 310
A6: ابيض | B6: كروشيه | C6: 4.5cm | D6: ابيض كروشيه 4.5cm | H6: =IF(E6="","",SUMIF(الدخول!$B$3:$B$1311,D6,الدخول!$F$3:$F$1311)+SUMIF(الدخول!$B$3:$B$1311,D6,الدخول!$Q$3:$Q$1311)+E6-SUMIF(الدخول!$B$3:$B$1311,D6,الدخول!$K$3:$K$1311)) ->  | I6: =IF(F6="","",SUMIF(الدخول!$B$3:$B$1311,D6,الدخول!$G$3:$G$1311)+SUMIF(الدخول!$B$3:$B$1311,D6,الدخول!$R$3:$R$1311)+F6-SUMIF(الدخول!$B$3:$B$1311,D6,الدخول!$L$3:$L$1311)) ->  | J6: =IF(G6="","",SUMIF(الدخول!$B$3:$B$1311,D6,الدخول!$I$3:$I$1311)+SUMIF(الدخول!$B$3:$B$1311,D6,الدخول!$T$3:$T$1311)+G6-SUMIF(الدخول!$B$3:$B$1311,D6,الدخول!$N$3:$N$1311)) -> 
A7: ابيض | B7: كروشيه | C7: 4cm | D7: ابيض كروشيه 4cm | H7: =IF(E7="","",SUMIF(الدخول!$B$3:$B$1311,D7,الدخول!$F$3:$F$1311)+SUMIF(الدخول!$B$3:$B$1311,D7,الدخول!$Q$3:$Q$1311)+E7-SUMIF(الدخول!$B$3:$B$1311,D7,الدخول!$K$3:$K$1311)) ->  | I7: =IF(F7="","",SUMIF(الدخول!$B$3:$B$1311,D7,الدخول!$G$3:$G$1311)+SUMIF(الدخول!$B$3:$B$1311,D7,الدخول!$R$3:$R$1311)+F7-SUMIF(الدخول!$B$3:$B$1311,D7,الدخول!$L$3:$L$1311)) ->  | J7: =IF(G7="","",SUMIF(الدخول!$B$3:$B$1311,D7,الدخول!$I$3:$I$1311)+SUMIF(الدخول!$B$3:$B$1311,D7,الدخول!$T$3:$T$1311)+G7-SUMIF(الدخول!$B$3:$B$1311,D7,الدخول!$N$3:$N$1311)) -> 
A8: ابيض | B8: كروشيه | C8: 3.5cm | D8: ابيض كروشيه 3.5cm | H8: =IF(E8="","",SUMIF(الدخول!$B$3:$B$1311,D8,الدخول!$F$3:$F$1311)+SUMIF(الدخول!$B$3:$B$1311,D8,الدخول!$Q$3:$Q$1311)+E8-SUMIF(الدخول!$B$3:$B$1311,D8,الدخول!$K$3:$K$1311)) ->  | I8: =IF(F8="","",SUMIF(الدخول!$B$3:$B$1311,D8,الدخول!$G$3:$G$1311)+SUMIF(الدخول!$B$3:$B$1311,D8,الدخول!$R$3:$R$1311)+F8-SUMIF(الدخول!$B$3:$B$1311,D8,الدخول!$L$3:$L$1311)) ->  | J8: =IF(G8="","",SUMIF(الدخول!$B$3:$B$1311,D8,الدخول!$I$3:$I$1311)+SUMIF(الدخول!$B$3:$B$1311,D8,الدخول!$T$3:$T$1311)+G8-SUMIF(الدخول!$B$3:$B$1311,D8,الدخول!$N$3:$N$1311)) -> 
A9: ابيض | B9: كروشيه | C9: 3.2cm | D9: ابيض كروشيه 3.2cm | H9: =IF(E9="","",SUMIF(الدخول!$B$3:$B$1311,D9,الدخول!$F$3:$F$1311)+SUMIF(الدخول!$B$3:$B$1311,D9,الدخول!$Q$3:$Q$1311)+E9-SUMIF(الدخول!$B$3:$B$1311,D9,الدخول!$K$3:$K$1311)) ->  | I9: =IF(F9="","",SUMIF(الدخول!$B$3:$B$1311,D9,الدخول!$G$3:$G$1311)+SUMIF(الدخول!$B$3:$B$1311,D9,الدخول!$R$3:$R$1311)+F9-SUMIF(الدخول!$B$3:$B$1311,D9,الدخول!$L$3:$L$1311)) ->  | J9: =IF(G9="","",SUMIF(الدخول!$B$3:$B$1311,D9,الدخول!$I$3:$I$1311)+SUMIF(الدخول!$B$3:$B$1311,D9,الدخول!$T$3:$T$1311)+G9-SUMIF(الدخول!$B$3:$B$1311,D9,الدخول!$N$3:$N$1311)) -> 
A10: ابيض | B10: كروشيه | C10: 3cm | D10: ابيض كروشيه 3cm | H10: =IF(E10="","",SUMIF(الدخول!$B$3:$B$1311,D10,الدخول!$F$3:$F$1311)+SUMIF(الدخول!$B$3:$B$1311,D10,الدخول!$Q$3:$Q$1311)+E10-SUMIF(الدخول!$B$3:$B$1311,D10,الدخول!$K$3:$K$1311)) ->  | I10: =IF(F10="","",SUMIF(الدخول!$B$3:$B$1311,D10,الدخول!$G$3:$G$1311)+SUMIF(الدخول!$B$3:$B$1311,D10,الدخول!$R$3:$R$1311)+F10-SUMIF(الدخول!$B$3:$B$1311,D10,الدخول!$L$3:$L$1311)) ->  | J10: =IF(G10="","",SUMIF(الدخول!$B$3:$B$1311,D10,الدخول!$I$3:$I$1311)+SUMIF(الدخول!$B$3:$B$1311,D10,الدخول!$T$3:$T$1311)+G10-SUMIF(الدخول!$B$3:$B$1311,D10,الدخول!$N$3:$N$1311)) -> 
A11: ابيض | B11: كروشيه | C11: 2.2cm | D11: ابيض كروشيه 2.2cm | H11: =IF(E11="","",SUMIF(الدخول!$B$3:$B$1311,D11,الدخول!$F$3:$F$1311)+SUMIF(الدخول!$B$3:$B$1311,D11,الدخول!$Q$3:$Q$1311)+E11-SUMIF(الدخول!$B$3:$B$1311,D11,الدخول!$K$3:$K$1311)) ->  | I11: =IF(F11="","",SUMIF(الدخول!$B$3:$B$1311,D11,الدخول!$G$3:$G$1311)+SUMIF(الدخول!$B$3:$B$1311,D11,الدخول!$R$3:$R$1311)+F11-SUMIF(الدخول!$B$3:$B$1311,D11,الدخول!$L$3:$L$1311)) ->  | J11: =IF(G11="","",SUMIF(الدخول!$B$3:$B$1311,D11,الدخول!$I$3:$I$1311)+SUMIF(الدخول!$B$3:$B$1311,D11,الدخول!$T$3:$T$1311)+G11-SUMIF(الدخول!$B$3:$B$1311,D11,الدخول!$N$3:$N$1311)) -> 
A12: ابيض | B12: كروشيه | C12: 2cm | D12: ابيض كروشيه 2cm | H12: =IF(E12="","",SUMIF(الدخول!$B$3:$B$1311,D12,الدخول!$F$3:$F$1311)+SUMIF(الدخول!$B$3:$B$1311,D12,الدخول!$Q$3:$Q$1311)+E12-SUMIF(الدخول!$B$3:$B$1311,D12,الدخول!$K$3:$K$1311)) ->  | I12: =IF(F12="","",SUMIF(الدخول!$B$3:$B$1311,D12,الدخول!$G$3:$G$1311)+SUMIF(الدخول!$B$3:$B$1311,D12,الدخول!$R$3:$R$1311)+F12-SUMIF(الدخول!$B$3:$B$1311,D12,الدخول!$L$3:$L$1311)) ->  | J12: =IF(G12="","",SUMIF(الدخول!$B$3:$B$1311,D12,الدخول!$I$3:$I$1311)+SUMIF(الدخول!$B$3:$B$1311,D12,الدخول!$T$3:$T$1311)+G12-SUMIF(الدخول!$B$3:$B$1311,D12,الدخول!$N$3:$N$1311)) -> 
A13: ابيض | B13: كروشيه | C13: 1.5cm | D13: ابيض كروشيه 1.5cm | H13: =IF(E13="","",SUMIF(الدخول!$B$3:$B$1311,D13,الدخول!$F$3:$F$1311)+SUMIF(الدخول!$B$3:$B$1311,D13,الدخول!$Q$3:$Q$1311)+E13-SUMIF(الدخول!$B$3:$B$1311,D13,الدخول!$K$3:$K$1311)) ->  | I13: =IF(F13="","",SUMIF(الدخول!$B$3:$B$1311,D13,الدخول!$G$3:$G$1311)+SUMIF(الدخول!$B$3:$B$1311,D13,الدخول!$R$3:$R$1311)+F13-SUMIF(الدخول!$B$3:$B$1311,D13,الدخول!$L$3:$L$1311)) ->  | J13: =IF(G13="","",SUMIF(الدخول!$B$3:$B$1311,D13,الدخول!$I$3:$I$1311)+SUMIF(الدخول!$B$3:$B$1311,D13,الدخول!$T$3:$T$1311)+G13-SUMIF(الدخول!$B$3:$B$1311,D13,الدخول!$N$3:$N$1311)) -> 
A14: ابيض | B14: كروشيه | C14: 1.2cm | D14: ابيض كروشيه 1.2cm | H14: =IF(E14="","",SUMIF(الدخول!$B$3:$B$1311,D14,الدخول!$F$3:$F$1311)+SUMIF(الدخول!$B$3:$B$1311,D14,الدخول!$Q$3:$Q$1311)+E14-SUMIF(الدخول!$B$3:$B$1311,D14,الدخول!$K$3:$K$1311)) ->  | I14: =IF(F14="","",SUMIF(الدخول!$B$3:$B$1311,D14,الدخول!$G$3:$G$1311)+SUMIF(الدخول!$B$3:$B$1311,D14,الدخول!$R$3:$R$1311)+F14-SUMIF(الدخول!$B$3:$B$1311,D14,الدخول!$L$3:$L$1311)) ->  | J14: =IF(G14="","",SUMIF(الدخول!$B$3:$B$1311,D14,الدخول!$I$3:$I$1311)+SUMIF(الدخول!$B$3:$B$1311,D14,الدخول!$T$3:$T$1311)+G14-SUMIF(الدخول!$B$3:$B$1311,D14,الدخول!$N$3:$N$1311)) -> 
A15: ابيض | B15: كروشيه | C15: 1cm | D15: ابيض كروشيه 1cm | H15: =IF(E15="","",SUMIF(الدخول!$B$3:$B$1311,D15,الدخول!$F$3:$F$1311)+SUMIF(الدخول!$B$3:$B$1311,D15,الدخول!$Q$3:$Q$1311)+E15-SUMIF(الدخول!$B$3:$B$1311,D15,الدخول!$K$3:$K$1311)) ->  | I15: =IF(F15="","",SUMIF(الدخول!$B$3:$B$1311,D15,الدخول!$G$3:$G$1311)+SUMIF(الدخول!$B$3:$B$1311,D15,الدخول!$R$3:$R$1311)+F15-SUMIF(الدخول!$B$3:$B$1311,D15,الدخول!$L$3:$L$1311)) ->  | J15: =IF(G15="","",SUMIF(الدخول!$B$3:$B$1311,D15,الدخول!$I$3:$I$1311)+SUMIF(الدخول!$B$3:$B$1311,D15,الدخول!$T$3:$T$1311)+G15-SUMIF(الدخول!$B$3:$B$1311,D15,الدخول!$N$3:$N$1311)) -> 
A16: ابيض | B16: كروشيه | C16: 8mm | D16: ابيض كروشيه 8mm | H16: =IF(E16="","",SUMIF(الدخول!$B$3:$B$1311,D16,الدخول!$F$3:$F$1311)+SUMIF(الدخول!$B$3:$B$1311,D16,الدخول!$Q$3:$Q$1311)+E16-SUMIF(الدخول!$B$3:$B$1311,D16,الدخول!$K$3:$K$1311)) ->  | I16: =IF(F16="","",SUMIF(الدخول!$B$3:$B$1311,D16,الدخول!$G$3:$G$1311)+SUMIF(الدخول!$B$3:$B$1311,D16,الدخول!$R$3:$R$1311)+F16-SUMIF(الدخول!$B$3:$B$1311,D16,الدخول!$L$3:$L$1311)) ->  | J16: =IF(G16="","",SUMIF(الدخول!$B$3:$B$1311,D16,الدخول!$I$3:$I$1311)+SUMIF(الدخول!$B$3:$B$1311,D16,الدخول!$T$3:$T$1311)+G16-SUMIF(الدخول!$B$3:$B$1311,D16,الدخول!$N$3:$N$1311)) -> 
A17: ابيض | B17: كروشيه | C17: 7mm | D17: ابيض كروشيه 7mm | H17: =IF(E17="","",SUMIF(الدخول!$B$3:$B$1311,D17,الدخول!$F$3:$F$1311)+SUMIF(الدخول!$B$3:$B$1311,D17,الدخول!$Q$3:$Q$1311)+E17-SUMIF(الدخول!$B$3:$B$1311,D17,الدخول!$K$3:$K$1311)) ->  | I17: =IF(F17="","",SUMIF(الدخول!$B$3:$B$1311,D17,الدخول!$G$3:$G$1311)+SUMIF(الدخول!$B$3:$B$1311,D17,الدخول!$R$3:$R$1311)+F17-SUMIF(الدخول!$B$3:$B$1311,D17,الدخول!$L$3:$L$1311)) ->  | J17: =IF(G17="","",SUMIF(الدخول!$B$3:$B$1311,D17,الدخول!$I$3:$I$1311)+SUMIF(الدخول!$B$3:$B$1311,D17,الدخول!$T$3:$T$1311)+G17-SUMIF(الدخول!$B$3:$B$1311,D17,الدخول!$N$3:$N$1311)) -> 
A18: ابيض | B18: كروشيه | C18: 6mm | D18: ابيض كروشيه 6mm | H18: =IF(E18="","",SUMIF(الدخول!$B$3:$B$1311,D18,الدخول!$F$3:$F$1311)+SUMIF(الدخول!$B$3:$B$1311,D18,الدخول!$Q$3:$Q$1311)+E18-SUMIF(الدخول!$B$3:$B$1311,D18,الدخول!$K$3:$K$1311)) ->  | I18: =IF(F18="","",SUMIF(الدخول!$B$3:$B$1311,D18,الدخول!$G$3:$G$1311)+SUMIF(الدخول!$B$3:$B$1311,D18,الدخول!$R$3:$R$1311)+F18-SUMIF(الدخول!$B$3:$B$1311,D18,الدخول!$L$3:$L$1311)) ->  | J18: =IF(G18="","",SUMIF(الدخول!$B$3:$B$1311,D18,الدخول!$I$3:$I$1311)+SUMIF(الدخول!$B$3:$B$1311,D18,الدخول!$T$3:$T$1311)+G18-SUMIF(الدخول!$B$3:$B$1311,D18,الدخول!$N$3:$N$1311)) -> 
A19: ابيض | B19: كروشيه | C19: 5mm | D19: ابيض كروشيه 5mm | H19: =IF(E19="","",SUMIF(الدخول!$B$3:$B$1311,D19,الدخول!$F$3:$F$1311)+SUMIF(الدخول!$B$3:$B$1311,D19,الدخول!$Q$3:$Q$1311)+E19-SUMIF(الدخول!$B$3:$B$1311,D19,الدخول!$K$3:$K$1311)) ->  | I19: =IF(F19="","",SUMIF(الدخول!$B$3:$B$1311,D19,الدخول!$G$3:$G$1311)+SUMIF(الدخول!$B$3:$B$1311,D19,الدخول!$R$3:$R$1311)+F19-SUMIF(الدخول!$B$3:$B$1311,D19,الدخول!$L$3:$L$1311)) ->  | J19: =IF(G19="","",SUMIF(الدخول!$B$3:$B$1311,D19,الدخول!$I$3:$I$1311)+SUMIF(الدخول!$B$3:$B$1311,D19,الدخول!$T$3:$T$1311)+G19-SUMIF(الدخول!$B$3:$B$1311,D19,الدخول!$N$3:$N$1311)) -> 
A20: ابيض | B20: كروشيه | C20: 2.5cm | D20: ابيض كروشيه 2.5cm | H20: =IF(E20="","",SUMIF(الدخول!$B$3:$B$1311,D20,الدخول!$F$3:$F$1311)+SUMIF(الدخول!$B$3:$B$1311,D20,الدخول!$Q$3:$Q$1311)+E20-SUMIF(الدخول!$B$3:$B$1311,D20,الدخول!$K$3:$K$1311)) ->  | I20: =IF(F20="","",SUMIF(الدخول!$B$3:$B$1311,D20,الدخول!$G$3:$G$1311)+SUMIF(الدخول!$B$3:$B$1311,D20,الدخول!$R$3:$R$1311)+F20-SUMIF(الدخول!$B$3:$B$1311,D20,الدخول!$L$3:$L$1311)) ->  | J20: =IF(G20="","",SUMIF(الدخول!$B$3:$B$1311,D20,الدخول!$I$3:$I$1311)+SUMIF(الدخول!$B$3:$B$1311,D20,الدخول!$T$3:$T$1311)+G20-SUMIF(الدخول!$B$3:$B$1311,D20,الدخول!$N$3:$N$1311)) -> 
A21: ابيض | B21: كروشيه | C21: 6.5cm | D21: ابيض كروشيه 6.5cm | H21: =IF(E21="","",SUMIF(الدخول!$B$3:$B$1311,D21,الدخول!$F$3:$F$1311)+SUMIF(الدخول!$B$3:$B$1311,D21,الدخول!$Q$3:$Q$1311)+E21-SUMIF(الدخول!$B$3:$B$1311,D21,الدخول!$K$3:$K$1311)) ->  | I21: =IF(F21="","",SUMIF(الدخول!$B$3:$B$1311,D21,الدخول!$G$3:$G$1311)+SUMIF(الدخول!$B$3:$B$1311,D21,الدخول!$R$3:$R$1311)+F21-SUMIF(الدخول!$B$3:$B$1311,D21,الدخول!$L$3:$L$1311)) ->  | J21: =IF(G21="","",SUMIF(الدخول!$B$3:$B$1311,D21,الدخول!$I$3:$I$1311)+SUMIF(الدخول!$B$3:$B$1311,D21,الدخول!$T$3:$T$1311)+G21-SUMIF(الدخول!$B$3:$B$1311,D21,الدخول!$N$3:$N$1311)) -> 
A22: ابيض | B22: كروشيه | C22: 1.8cm | D22: ابيض كروشيه 1.8cm | H22: =IF(E22="","",SUMIF(الدخول!$B$3:$B$1311,D22,الدخول!$F$3:$F$1311)+SUMIF(الدخول!$B$3:$B$1311,D22,الدخول!$Q$3:$Q$1311)+E22-SUMIF(الدخول!$B$3:$B$1311,D22,الدخول!$K$3:$K$1311)) ->  | I22: =IF(F22="","",SUMIF(الدخول!$B$3:$B$1311,D22,الدخول!$G$3:$G$1311)+SUMIF(الدخول!$B$3:$B$1311,D22,الدخول!$R$3:$R$1311)+F22-SUMIF(الدخول!$B$3:$B$1311,D22,الدخول!$L$3:$L$1311)) ->  | J22: =IF(G22="","",SUMIF(الدخول!$B$3:$B$1311,D22,الدخول!$I$3:$I$1311)+SUMIF(الدخول!$B$3:$B$1311,D22,الدخول!$T$3:$T$1311)+G22-SUMIF(الدخول!$B$3:$B$1311,D22,الدخول!$N$3:$N$1311)) -> 
A23: ابيض | B23: كروشيه | C23: 1.8 | D23: ابيض كروشيه 1,8 | H23: =IF(E23="","",SUMIF(الدخول!$B$3:$B$1311,D23,الدخول!$F$3:$F$1311)+SUMIF(الدخول!$B$3:$B$1311,D23,الدخول!$Q$3:$Q$1311)+E23-SUMIF(الدخول!$B$3:$B$1311,D23,الدخول!$K$3:$K$1311)) ->  | I23: =IF(F23="","",SUMIF(الدخول!$B$3:$B$1311,D23,الدخول!$G$3:$G$1311)+SUMIF(الدخول!$B$3:$B$1311,D23,الدخول!$R$3:$R$1311)+F23-SUMIF(الدخول!$B$3:$B$1311,D23,الدخول!$L$3:$L$1311)) ->  | J23: =IF(G23="","",SUMIF(الدخول!$B$3:$B$1311,D23,الدخول!$I$3:$I$1311)+SUMIF(الدخول!$B$3:$B$1311,D23,الدخول!$T$3:$T$1311)+G23-SUMIF(الدخول!$B$3:$B$1311,D23,الدخول!$N$3:$N$1311)) -> 
A24: ابيض | B24: كروشيه | C24: .8m | D24: ابيض كروشيه .8m | H24: =IF(E24="","",SUMIF(الدخول!$B$3:$B$1311,D24,الدخول!$F$3:$F$1311)+SUMIF(الدخول!$B$3:$B$1311,D24,الدخول!$Q$3:$Q$1311)+E24-SUMIF(الدخول!$B$3:$B$1311,D24,الدخول!$K$3:$K$1311)) ->  | I24: =IF(F24="","",SUMIF(الدخول!$B$3:$B$1311,D24,الدخول!$G$3:$G$1311)+SUMIF(الدخول!$B$3:$B$1311,D24,الدخول!$R$3:$R$1311)+F24-SUMIF(الدخول!$B$3:$B$1311,D24,الدخول!$L$3:$L$1311)) ->  | J24: =IF(G24="","",SUMIF(الدخول!$B$3:$B$1311,D24,الدخول!$I$3:$I$1311)+SUMIF(الدخول!$B$3:$B$1311,D24,الدخول!$T$3:$T$1311)+G24-SUMIF(الدخول!$B$3:$B$1311,D24,الدخول!$N$3:$N$1311)) -> 
A25: ابيض | B25: كروشيه | C25: 7cm | D25: ابيض كروشيه 7cm | H25: =IF(E25="","",SUMIF(الدخول!$B$3:$B$1311,D25,الدخول!$F$3:$F$1311)+SUMIF(الدخول!$B$3:$B$1311,D25,الدخول!$Q$3:$Q$1311)+E25-SUMIF(الدخول!$B$3:$B$1311,D25,الدخول!$K$3:$K$1311)) ->  | I25: =IF(F25="","",SUMIF(الدخول!$B$3:$B$1311,D25,الدخول!$G$3:$G$1311)+SUMIF(الدخول!$B$3:$B$1311,D25,الدخول!$R$3:$R$1311)+F25-SUMIF(الدخول!$B$3:$B$1311,D25,الدخول!$L$3:$L$1311)) ->  | J25: =IF(G25="","",SUMIF(الدخول!$B$3:$B$1311,D25,الدخول!$I$3:$I$1311)+SUMIF(الدخول!$B$3:$B$1311,D25,الدخول!$T$3:$T$1311)+G25-SUMIF(الدخول!$B$3:$B$1311,D25,الدخول!$N$3:$N$1311)) -> 
A26: ابيض | B26: كروشيه | C26: 6.3cm | D26: ابيض كروشيه 6.3cm | H26: =IF(E26="","",SUMIF(الدخول!$B$3:$B$1311,D26,الدخول!$F$3:$F$1311)+SUMIF(الدخول!$B$3:$B$1311,D26,الدخول!$Q$3:$Q$1311)+E26-SUMIF(الدخول!$B$3:$B$1311,D26,الدخول!$K$3:$K$1311)) ->  | I26: =IF(F26="","",SUMIF(الدخول!$B$3:$B$1311,D26,الدخول!$G$3:$G$1311)+SUMIF(الدخول!$B$3:$B$1311,D26,الدخول!$R$3:$R$1311)+F26-SUMIF(الدخول!$B$3:$B$1311,D26,الدخول!$L$3:$L$1311)) ->  | J26: =IF(G26="","",SUMIF(الدخول!$B$3:$B$1311,D26,الدخول!$I$3:$I$1311)+SUMIF(الدخول!$B$3:$B$1311,D26,الدخول!$T$3:$T$1311)+G26-SUMIF(الدخول!$B$3:$B$1311,D26,الدخول!$N$3:$N$1311)) -> 
A27: ابيض | B27: كروشيه | C27: 0.2m | D27: ابيض كروشيه 0.2m | H27: =IF(E27="","",SUMIF(الدخول!$B$3:$B$1311,D27,الدخول!$F$3:$F$1311)+SUMIF(الدخول!$B$3:$B$1311,D27,الدخول!$Q$3:$Q$1311)+E27-SUMIF(الدخول!$B$3:$B$1311,D27,الدخول!$K$3:$K$1311)) ->  | I27: =IF(F27="","",SUMIF(الدخول!$B$3:$B$1311,D27,الدخول!$G$3:$G$1311)+SUMIF(الدخول!$B$3:$B$1311,D27,الدخول!$R$3:$R$1311)+F27-SUMIF(الدخول!$B$3:$B$1311,D27,الدخول!$L$3:$L$1311)) ->  | J27: =IF(G27="","",SUMIF(الدخول!$B$3:$B$1311,D27,الدخول!$I$3:$I$1311)+SUMIF(الدخول!$B$3:$B$1311,D27,الدخول!$T$3:$T$1311)+G27-SUMIF(الدخول!$B$3:$B$1311,D27,الدخول!$N$3:$N$1311)) -> 
A28: ابيض | B28: كروشيه | C28: .5m | D28: ابيض كروشيه .5m | H28: =IF(E28="","",SUMIF(الدخول!$B$3:$B$1311,D28,الدخول!$F$3:$F$1311)+SUMIF(الدخول!$B$3:$B$1311,D28,الدخول!$Q$3:$Q$1311)+E28-SUMIF(الدخول!$B$3:$B$1311,D28,الدخول!$K$3:$K$1311)) ->  | I28: =IF(F28="","",SUMIF(الدخول!$B$3:$B$1311,D28,الدخول!$G$3:$G$1311)+SUMIF(الدخول!$B$3:$B$1311,D28,الدخول!$R$3:$R$1311)+F28-SUMIF(الدخول!$B$3:$B$1311,D28,الدخول!$L$3:$L$1311)) ->  | J28: =IF(G28="","",SUMIF(الدخول!$B$3:$B$1311,D28,الدخول!$I$3:$I$1311)+SUMIF(الدخول!$B$3:$B$1311,D28,الدخول!$T$3:$T$1311)+G28-SUMIF(الدخول!$B$3:$B$1311,D28,الدخول!$N$3:$N$1311)) -> 
A29: ابيض | B29: كروشيه | C29: .6m | D29: ابيض كروشيه .6m | H29: =IF(E29="","",SUMIF(الدخول!$B$3:$B$1311,D29,الدخول!$F$3:$F$1311)+SUMIF(الدخول!$B$3:$B$1311,D29,الدخول!$Q$3:$Q$1311)+E29-SUMIF(الدخول!$B$3:$B$1311,D29,الدخول!$K$3:$K$1311)) ->  | I29: =IF(F29="","",SUMIF(الدخول!$B$3:$B$1311,D29,الدخول!$G$3:$G$1311)+SUMIF(الدخول!$B$3:$B$1311,D29,الدخول!$R$3:$R$1311)+F29-SUMIF(الدخول!$B$3:$B$1311,D29,الدخول!$L$3:$L$1311)) ->  | J29: =IF(G29="","",SUMIF(الدخول!$B$3:$B$1311,D29,الدخول!$I$3:$I$1311)+SUMIF(الدخول!$B$3:$B$1311,D29,الدخول!$T$3:$T$1311)+G29-SUMIF(الدخول!$B$3:$B$1311,D29,الدخول!$N$3:$N$1311)) -> 
A30: ابيض | B30: كروشيه | C30: .7m | D30: ابيض كروشيه .7m | H30: =IF(E30="","",SUMIF(الدخول!$B$3:$B$1311,D30,الدخول!$F$3:$F$1311)+SUMIF(الدخول!$B$3:$B$1311,D30,الدخول!$Q$3:$Q$1311)+E30-SUMIF(الدخول!$B$3:$B$1311,D30,الدخول!$K$3:$K$1311)) ->  | I30: =IF(F30="","",SUMIF(الدخول!$B$3:$B$1311,D30,الدخول!$G$3:$G$1311)+SUMIF(الدخول!$B$3:$B$1311,D30,الدخول!$R$3:$R$1311)+F30-SUMIF(الدخول!$B$3:$B$1311,D30,الدخول!$L$3:$L$1311)) ->  | J30: =IF(G30="","",SUMIF(الدخول!$B$3:$B$1311,D30,الدخول!$I$3:$I$1311)+SUMIF(الدخول!$B$3:$B$1311,D30,الدخول!$T$3:$T$1311)+G30-SUMIF(الدخول!$B$3:$B$1311,D30,الدخول!$N$3:$N$1311)) -> 
A31: ابيض | B31: كروشيه | C31: 1.6cm | D31: ابيض كروشيه 1.6cm | H31: =IF(E31="","",SUMIF(الدخول!$B$3:$B$1311,D31,الدخول!$F$3:$F$1311)+SUMIF(الدخول!$B$3:$B$1311,D31,الدخول!$Q$3:$Q$1311)+E31-SUMIF(الدخول!$B$3:$B$1311,D31,الدخول!$K$3:$K$1311)) ->  | I31: =IF(F31="","",SUMIF(الدخول!$B$3:$B$1311,D31,الدخول!$G$3:$G$1311)+SUMIF(الدخول!$B$3:$B$1311,D31,الدخول!$R$3:$R$1311)+F31-SUMIF(الدخول!$B$3:$B$1311,D31,الدخول!$L$3:$L$1311)) ->  | J31: =IF(G31="","",SUMIF(الدخول!$B$3:$B$1311,D31,الدخول!$I$3:$I$1311)+SUMIF(الدخول!$B$3:$B$1311,D31,الدخول!$T$3:$T$1311)+G31-SUMIF(الدخول!$B$3:$B$1311,D31,الدخول!$N$3:$N$1311)) -> 
A32: ابيض | B32: كروشيه | C32: 1.3cm | D32: ابيض كروشيه 1.3cm | H32: =IF(E32="","",SUMIF(الدخول!$B$3:$B$1311,D32,الدخول!$F$3:$F$1311)+SUMIF(الدخول!$B$3:$B$1311,D32,الدخول!$Q$3:$Q$1311)+E32-SUMIF(الدخول!$B$3:$B$1311,D32,الدخول!$K$3:$K$1311)) ->  | I32: =IF(F32="","",SUMIF(الدخول!$B$3:$B$1311,D32,الدخول!$G$3:$G$1311)+SUMIF(الدخول!$B$3:$B$1311,D32,الدخول!$R$3:$R$1311)+F32-SUMIF(الدخول!$B$3:$B$1311,D32,الدخول!$L$3:$L$1311)) ->  | J32: =IF(G32="","",SUMIF(الدخول!$B$3:$B$1311,D32,الدخول!$I$3:$I$1311)+SUMIF(الدخول!$B$3:$B$1311,D32,الدخول!$T$3:$T$1311)+G32-SUMIF(الدخول!$B$3:$B$1311,D32,الدخول!$N$3:$N$1311)) -> 
A33: ابيض | B33: كروشيه | C33: 1.8.cm | D33: ابيض كروشيه 1.8.cm | H33: =IF(E33="","",SUMIF(الدخول!$B$3:$B$1311,D33,الدخول!$F$3:$F$1311)+SUMIF(الدخول!$B$3:$B$1311,D33,الدخول!$Q$3:$Q$1311)+E33-SUMIF(الدخول!$B$3:$B$1311,D33,الدخول!$K$3:$K$1311)) ->  | I33: =IF(F33="","",SUMIF(الدخول!$B$3:$B$1311,D33,الدخول!$G$3:$G$1311)+SUMIF(الدخول!$B$3:$B$1311,D33,الدخول!$R$3:$R$1311)+F33-SUMIF(الدخول!$B$3:$B$1311,D33,الدخول!$L$3:$L$1311)) ->  | J33: =IF(G33="","",SUMIF(الدخول!$B$3:$B$1311,D33,الدخول!$I$3:$I$1311)+SUMIF(الدخول!$B$3:$B$1311,D33,الدخول!$T$3:$T$1311)+G33-SUMIF(الدخول!$B$3:$B$1311,D33,الدخول!$N$3:$N$1311)) -> 
A34: ابيض | B34: ووفين فستون | C34: 1cm | D34: ابيض ووفين فستون 1cm | H34: =IF(E34="","",SUMIF(الدخول!$B$3:$B$1311,D34,الدخول!$F$3:$F$1311)+SUMIF(الدخول!$B$3:$B$1311,D34,الدخول!$Q$3:$Q$1311)+E34-SUMIF(الدخول!$B$3:$B$1311,D34,الدخول!$K$3:$K$1311)) ->  | I34: =IF(F34="","",SUMIF(الدخول!$B$3:$B$1311,D34,الدخول!$G$3:$G$1311)+SUMIF(الدخول!$B$3:$B$1311,D34,الدخول!$R$3:$R$1311)+F34-SUMIF(الدخول!$B$3:$B$1311,D34,الدخول!$L$3:$L$1311)) ->  | J34: =IF(G34="","",SUMIF(الدخول!$B$3:$B$1311,D34,الدخول!$I$3:$I$1311)+SUMIF(الدخول!$B$3:$B$1311,D34,الدخول!$T$3:$T$1311)+G34-SUMIF(الدخول!$B$3:$B$1311,D34,الدخول!$N$3:$N$1311)) -> 
A35: ابيض | B35: استك طبي | C35: 3.18 | D35: ابيض استك طبي 3,18 | H35: =IF(E35="","",SUMIF(الدخول!$B$3:$B$1311,D35,الدخول!$F$3:$F$1311)+SUMIF(الدخول!$B$3:$B$1311,D35,الدخول!$Q$3:$Q$1311)+E35-SUMIF(الدخول!$B$3:$B$1311,D35,الدخول!$K$3:$K$1311)) ->  | I35: =IF(F35="","",SUMIF(الدخول!$B$3:$B$1311,D35,الدخول!$G$3:$G$1311)+SUMIF(الدخول!$B$3:$B$1311,D35,الدخول!$R$3:$R$1311)+F35-SUMIF(الدخول!$B$3:$B$1311,D35,الدخول!$L$3:$L$1311)) ->  | J35: =IF(G35="","",SUMIF(الدخول!$B$3:$B$1311,D35,الدخول!$I$3:$I$1311)+SUMIF(الدخول!$B$3:$B$1311,D35,الدخول!$T$3:$T$1311)+G35-SUMIF(الدخول!$B$3:$B$1311,D35,الدخول!$N$3:$N$1311)) -> 
A36: ابيض | B36: استك طبي | C36: 4.14 | D36: ابيض استك طبي 4,14 | H36: =IF(E36="","",SUMIF(الدخول!$B$3:$B$1311,D36,الدخول!$F$3:$F$1311)+SUMIF(الدخول!$B$3:$B$1311,D36,الدخول!$Q$3:$Q$1311)+E36-SUMIF(الدخول!$B$3:$B$1311,D36,الدخول!$K$3:$K$1311)) ->  | I36: =IF(F36="","",SUMIF(الدخول!$B$3:$B$1311,D36,الدخول!$G$3:$G$1311)+SUMIF(الدخول!$B$3:$B$1311,D36,الدخول!$R$3:$R$1311)+F36-SUMIF(الدخول!$B$3:$B$1311,D36,الدخول!$L$3:$L$1311)) ->  | J36: =IF(G36="","",SUMIF(الدخول!$B$3:$B$1311,D36,الدخول!$I$3:$I$1311)+SUMIF(الدخول!$B$3:$B$1311,D36,الدخول!$T$3:$T$1311)+G36-SUMIF(الدخول!$B$3:$B$1311,D36,الدخول!$N$3:$N$1311)) -> 
A37: ابيض | B37: استك طبي | C37: 2.78 | D37: ابيض استك طبي 2,78 | H37: =IF(E37="","",SUMIF(الدخول!$B$3:$B$1311,D37,الدخول!$F$3:$F$1311)+SUMIF(الدخول!$B$3:$B$1311,D37,الدخول!$Q$3:$Q$1311)+E37-SUMIF(الدخول!$B$3:$B$1311,D37,الدخول!$K$3:$K$1311)) ->  | I37: =IF(F37="","",SUMIF(الدخول!$B$3:$B$1311,D37,الدخول!$G$3:$G$1311)+SUMIF(الدخول!$B$3:$B$1311,D37,الدخول!$R$3:$R$1311)+F37-SUMIF(الدخول!$B$3:$B$1311,D37,الدخول!$L$3:$L$1311)) ->  | J37: =IF(G37="","",SUMIF(الدخول!$B$3:$B$1311,D37,الدخول!$I$3:$I$1311)+SUMIF(الدخول!$B$3:$B$1311,D37,الدخول!$T$3:$T$1311)+G37-SUMIF(الدخول!$B$3:$B$1311,D37,الدخول!$N$3:$N$1311)) -> 
A38: ابيض | B38: استك طبي | C38: 7.52 | D38: ابيض استك طبي 7,52 | H38: =IF(E38="","",SUMIF(الدخول!$B$3:$B$1311,D38,الدخول!$F$3:$F$1311)+SUMIF(الدخول!$B$3:$B$1311,D38,الدخول!$Q$3:$Q$1311)+E38-SUMIF(الدخول!$B$3:$B$1311,D38,الدخول!$K$3:$K$1311)) ->  | I38: =IF(F38="","",SUMIF(الدخول!$B$3:$B$1311,D38,الدخول!$G$3:$G$1311)+SUMIF(الدخول!$B$3:$B$1311,D38,الدخول!$R$3:$R$1311)+F38-SUMIF(الدخول!$B$3:$B$1311,D38,الدخول!$L$3:$L$1311)) ->  | J38: =IF(G38="","",SUMIF(الدخول!$B$3:$B$1311,D38,الدخول!$I$3:$I$1311)+SUMIF(الدخول!$B$3:$B$1311,D38,الدخول!$T$3:$T$1311)+G38-SUMIF(الدخول!$B$3:$B$1311,D38,الدخول!$N$3:$N$1311)) -> 
A39: ابيض | B39: استك طبي | C39: 3.5 | D39: ابيض استك طبي 3,5 | H39: =IF(E39="","",SUMIF(الدخول!$B$3:$B$1311,D39,الدخول!$F$3:$F$1311)+SUMIF(الدخول!$B$3:$B$1311,D39,الدخول!$Q$3:$Q$1311)+E39-SUMIF(الدخول!$B$3:$B$1311,D39,الدخول!$K$3:$K$1311)) ->  | I39: =IF(F39="","",SUMIF(الدخول!$B$3:$B$1311,D39,الدخول!$G$3:$G$1311)+SUMIF(الدخول!$B$3:$B$1311,D39,الدخول!$R$3:$R$1311)+F39-SUMIF(الدخول!$B$3:$B$1311,D39,الدخول!$L$3:$L$1311)) ->  | J39: =IF(G39="","",SUMIF(الدخول!$B$3:$B$1311,D39,الدخول!$I$3:$I$1311)+SUMIF(الدخول!$B$3:$B$1311,D39,الدخول!$T$3:$T$1311)+G39-SUMIF(الدخول!$B$3:$B$1311,D39,الدخول!$N$3:$N$1311)) -> 
A40: ابيض | B40: استك طبي | C40: 3.3 | D40: ابيض استك طبي 3,3 | H40: =IF(E40="","",SUMIF(الدخول!$B$3:$B$1311,D40,الدخول!$F$3:$F$1311)+SUMIF(الدخول!$B$3:$B$1311,D40,الدخول!$Q$3:$Q$1311)+E40-SUMIF(الدخول!$B$3:$B$1311,D40,الدخول!$K$3:$K$1311)) ->  | I40: =IF(F40="","",SUMIF(الدخول!$B$3:$B$1311,D40,الدخول!$G$3:$G$1311)+SUMIF(الدخول!$B$3:$B$1311,D40,الدخول!$R$3:$R$1311)+F40-SUMIF(الدخول!$B$3:$B$1311,D40,الدخول!$L$3:$L$1311)) ->  | J40: =IF(G40="","",SUMIF(الدخول!$B$3:$B$1311,D40,الدخول!$I$3:$I$1311)+SUMIF(الدخول!$B$3:$B$1311,D40,الدخول!$T$3:$T$1311)+G40-SUMIF(الدخول!$B$3:$B$1311,D40,الدخول!$N$3:$N$1311)) -> 
A41: ابيض | B41: استك طبي | C41: 3.36 | D41: ابيض استك طبي 3,36 | H41: =IF(E41="","",SUMIF(الدخول!$B$3:$B$1311,D41,الدخول!$F$3:$F$1311)+SUMIF(الدخول!$B$3:$B$1311,D41,الدخول!$Q$3:$Q$1311)+E41-SUMIF(الدخول!$B$3:$B$1311,D41,الدخول!$K$3:$K$1311)) ->  | I41: =IF(F41="","",SUMIF(الدخول!$B$3:$B$1311,D41,الدخول!$G$3:$G$1311)+SUMIF(الدخول!$B$3:$B$1311,D41,الدخول!$R$3:$R$1311)+F41-SUMIF(الدخول!$B$3:$B$1311,D41,الدخول!$L$3:$L$1311)) ->  | J41: =IF(G41="","",SUMIF(الدخول!$B$3:$B$1311,D41,الدخول!$I$3:$I$1311)+SUMIF(الدخول!$B$3:$B$1311,D41,الدخول!$T$3:$T$1311)+G41-SUMIF(الدخول!$B$3:$B$1311,D41,الدخول!$N$3:$N$1311)) -> 
A42: ابيض | B42: استك طبي | C42: 2.58 | D42: ابيض استك طبي 2,58 | H42: =IF(E42="","",SUMIF(الدخول!$B$3:$B$1311,D42,الدخول!$F$3:$F$1311)+SUMIF(الدخول!$B$3:$B$1311,D42,الدخول!$Q$3:$Q$1311)+E42-SUMIF(الدخول!$B$3:$B$1311,D42,الدخول!$K$3:$K$1311)) ->  | I42: =IF(F42="","",SUMIF(الدخول!$B$3:$B$1311,D42,الدخول!$G$3:$G$1311)+SUMIF(الدخول!$B$3:$B$1311,D42,الدخول!$R$3:$R$1311)+F42-SUMIF(الدخول!$B$3:$B$1311,D42,الدخول!$L$3:$L$1311)) ->  | J42: =IF(G42="","",SUMIF(الدخول!$B$3:$B$1311,D42,الدخول!$I$3:$I$1311)+SUMIF(الدخول!$B$3:$B$1311,D42,الدخول!$T$3:$T$1311)+G42-SUMIF(الدخول!$B$3:$B$1311,D42,الدخول!$N$3:$N$1311)) -> 
A43: ابيض | B43: استك طبي | C43: 3.02 | D43: ابيض استك طبي 3,02 | H43: =IF(E43="","",SUMIF(الدخول!$B$3:$B$1311,D43,الدخول!$F$3:$F$1311)+SUMIF(الدخول!$B$3:$B$1311,D43,الدخول!$Q$3:$Q$1311)+E43-SUMIF(الدخول!$B$3:$B$1311,D43,الدخول!$K$3:$K$1311)) ->  | I43: =IF(F43="","",SUMIF(الدخول!$B$3:$B$1311,D43,الدخول!$G$3:$G$1311)+SUMIF(الدخول!$B$3:$B$1311,D43,الدخول!$R$3:$R$1311)+F43-SUMIF(الدخول!$B$3:$B$1311,D43,الدخول!$L$3:$L$1311)) ->  | J43: =IF(G43="","",SUMIF(الدخول!$B$3:$B$1311,D43,الدخول!$I$3:$I$1311)+SUMIF(الدخول!$B$3:$B$1311,D43,الدخول!$T$3:$T$1311)+G43-SUMIF(الدخول!$B$3:$B$1311,D43,الدخول!$N$3:$N$1311)) -> 
A44: ابيض | B44: استك طبي | C44: 4.92 | D44: ابيض استك طبي 4,92 | H44: =IF(E44="","",SUMIF(الدخول!$B$3:$B$1311,D44,الدخول!$F$3:$F$1311)+SUMIF(الدخول!$B$3:$B$1311,D44,الدخول!$Q$3:$Q$1311)+E44-SUMIF(الدخول!$B$3:$B$1311,D44,الدخول!$K$3:$K$1311)) ->  | I44: =IF(F44="","",SUMIF(الدخول!$B$3:$B$1311,D44,الدخول!$G$3:$G$1311)+SUMIF(الدخول!$B$3:$B$1311,D44,الدخول!$R$3:$R$1311)+F44-SUMIF(الدخول!$B$3:$B$1311,D44,الدخول!$L$3:$L$1311)) ->  | J44: =IF(G44="","",SUMIF(الدخول!$B$3:$B$1311,D44,الدخول!$I$3:$I$1311)+SUMIF(الدخول!$B$3:$B$1311,D44,الدخول!$T$3:$T$1311)+G44-SUMIF(الدخول!$B$3:$B$1311,D44,الدخول!$N$3:$N$1311)) -> 
A45: ابيض فلاش | B45: كروشيه | C45: 5cm | D45: ابيض فلاش كروشيه 5cm | H45: =IF(E45="","",SUMIF(الدخول!$B$3:$B$1311,D45,الدخول!$F$3:$F$1311)+SUMIF(الدخول!$B$3:$B$1311,D45,الدخول!$Q$3:$Q$1311)+E45-SUMIF(الدخول!$B$3:$B$1311,D45,الدخول!$K$3:$K$1311)) ->  | I45: =IF(F45="","",SUMIF(الدخول!$B$3:$B$1311,D45,الدخول!$G$3:$G$1311)+SUMIF(الدخول!$B$3:$B$1311,D45,الدخول!$R$3:$R$1311)+F45-SUMIF(الدخول!$B$3:$B$1311,D45,الدخول!$L$3:$L$1311)) ->  | J45: =IF(G45="","",SUMIF(الدخول!$B$3:$B$1311,D45,الدخول!$I$3:$I$1311)+SUMIF(الدخول!$B$3:$B$1311,D45,الدخول!$T$3:$T$1311)+G45-SUMIF(الدخول!$B$3:$B$1311,D45,الدخول!$N$3:$N$1311)) -> 
A46: ابيض فلاش | B46: كروشيه | C46: 4.5cm | D46: ابيض فلاش كروشيه 4.5cm | H46: =IF(E46="","",SUMIF(الدخول!$B$3:$B$1311,D46,الدخول!$F$3:$F$1311)+SUMIF(الدخول!$B$3:$B$1311,D46,الدخول!$Q$3:$Q$1311)+E46-SUMIF(الدخول!$B$3:$B$1311,D46,الدخول!$K$3:$K$1311)) ->  | I46: =IF(F46="","",SUMIF(الدخول!$B$3:$B$1311,D46,الدخول!$G$3:$G$1311)+SUMIF(الدخول!$B$3:$B$1311,D46,الدخول!$R$3:$R$1311)+F46-SUMIF(الدخول!$B$3:$B$1311,D46,الدخول!$L$3:$L$1311)) ->  | J46: =IF(G46="","",SUMIF(الدخول!$B$3:$B$1311,D46,الدخول!$I$3:$I$1311)+SUMIF(الدخول!$B$3:$B$1311,D46,الدخول!$T$3:$T$1311)+G46-SUMIF(الدخول!$B$3:$B$1311,D46,الدخول!$N$3:$N$1311)) -> 
A47: ابيض فلاش | B47: كروشيه | C47: 3.5cm | D47: ابيض فلاش كروشيه 3.5cm | H47: =IF(E47="","",SUMIF(الدخول!$B$3:$B$1311,D47,الدخول!$F$3:$F$1311)+SUMIF(الدخول!$B$3:$B$1311,D47,الدخول!$Q$3:$Q$1311)+E47-SUMIF(الدخول!$B$3:$B$1311,D47,الدخول!$K$3:$K$1311)) ->  | I47: =IF(F47="","",SUMIF(الدخول!$B$3:$B$1311,D47,الدخول!$G$3:$G$1311)+SUMIF(الدخول!$B$3:$B$1311,D47,الدخول!$R$3:$R$1311)+F47-SUMIF(الدخول!$B$3:$B$1311,D47,الدخول!$L$3:$L$1311)) ->  | J47: =IF(G47="","",SUMIF(الدخول!$B$3:$B$1311,D47,الدخول!$I$3:$I$1311)+SUMIF(الدخول!$B$3:$B$1311,D47,الدخول!$T$3:$T$1311)+G47-SUMIF(الدخول!$B$3:$B$1311,D47,الدخول!$N$3:$N$1311)) -> 
A48: ابيض فلاش | B48: كروشيه | C48: 2cm | D48: ابيض فلاش كروشيه 2cm | H48: =IF(E48="","",SUMIF(الدخول!$B$3:$B$1311,D48,الدخول!$F$3:$F$1311)+SUMIF(الدخول!$B$3:$B$1311,D48,الدخول!$Q$3:$Q$1311)+E48-SUMIF(الدخول!$B$3:$B$1311,D48,الدخول!$K$3:$K$1311)) ->  | I48: =IF(F48="","",SUMIF(الدخول!$B$3:$B$1311,D48,الدخول!$G$3:$G$1311)+SUMIF(الدخول!$B$3:$B$1311,D48,الدخول!$R$3:$R$1311)+F48-SUMIF(الدخول!$B$3:$B$1311,D48,الدخول!$L$3:$L$1311)) ->  | J48: =IF(G48="","",SUMIF(الدخول!$B$3:$B$1311,D48,الدخول!$I$3:$I$1311)+SUMIF(الدخول!$B$3:$B$1311,D48,الدخول!$T$3:$T$1311)+G48-SUMIF(الدخول!$B$3:$B$1311,D48,الدخول!$N$3:$N$1311)) -> 
A49: ابيض كانون | B49: كروشيه | C49: 5.5cm | D49: ابيض كانون كروشيه 5.5cm | H49: =IF(E49="","",SUMIF(الدخول!$B$3:$B$1311,D49,الدخول!$F$3:$F$1311)+SUMIF(الدخول!$B$3:$B$1311,D49,الدخول!$Q$3:$Q$1311)+E49-SUMIF(الدخول!$B$3:$B$1311,D49,الدخول!$K$3:$K$1311)) ->  | I49: =IF(F49="","",SUMIF(الدخول!$B$3:$B$1311,D49,الدخول!$G$3:$G$1311)+SUMIF(الدخول!$B$3:$B$1311,D49,الدخول!$R$3:$R$1311)+F49-SUMIF(الدخول!$B$3:$B$1311,D49,الدخول!$L$3:$L$1311)) ->  | J49: =IF(G49="","",SUMIF(الدخول!$B$3:$B$1311,D49,الدخول!$I$3:$I$1311)+SUMIF(الدخول!$B$3:$B$1311,D49,الدخول!$T$3:$T$1311)+G49-SUMIF(الدخول!$B$3:$B$1311,D49,الدخول!$N$3:$N$1311)) -> 
A50: ابيض كانون | B50: كروشيه | C50: 4.5cm | D50: ابيض كانون كروشيه 4.5cm | H50: =IF(E50="","",SUMIF(الدخول!$B$3:$B$1311,D50,الدخول!$F$3:$F$1311)+SUMIF(الدخول!$B$3:$B$1311,D50,الدخول!$Q$3:$Q$1311)+E50-SUMIF(الدخول!$B$3:$B$1311,D50,الدخول!$K$3:$K$1311)) ->  | I50: =IF(F50="","",SUMIF(الدخول!$B$3:$B$1311,D50,الدخول!$G$3:$G$1311)+SUMIF(الدخول!$B$3:$B$1311,D50,الدخول!$R$3:$R$1311)+F50-SUMIF(الدخول!$B$3:$B$1311,D50,الدخول!$L$3:$L$1311)) ->  | J50: =IF(G50="","",SUMIF(الدخول!$B$3:$B$1311,D50,الدخول!$I$3:$I$1311)+SUMIF(الدخول!$B$3:$B$1311,D50,الدخول!$T$3:$T$1311)+G50-SUMIF(الدخول!$B$3:$B$1311,D50,الدخول!$N$3:$N$1311)) -> 
A51: ابيض510 | B51: كروشيه | C51: 3cm | D51: ابيض510 كروشيه 3cm | H51: =IF(E51="","",SUMIF(الدخول!$B$3:$B$1311,D51,الدخول!$F$3:$F$1311)+SUMIF(الدخول!$B$3:$B$1311,D51,الدخول!$Q$3:$Q$1311)+E51-SUMIF(الدخول!$B$3:$B$1311,D51,الدخول!$K$3:$K$1311)) ->  | I51: =IF(F51="","",SUMIF(الدخول!$B$3:$B$1311,D51,الدخول!$G$3:$G$1311)+SUMIF(الدخول!$B$3:$B$1311,D51,الدخول!$R$3:$R$1311)+F51-SUMIF(الدخول!$B$3:$B$1311,D51,الدخول!$L$3:$L$1311)) ->  | J51: =IF(G51="","",SUMIF(الدخول!$B$3:$B$1311,D51,الدخول!$I$3:$I$1311)+SUMIF(الدخول!$B$3:$B$1311,D51,الدخول!$T$3:$T$1311)+G51-SUMIF(الدخول!$B$3:$B$1311,D51,الدخول!$N$3:$N$1311)) -> 
A52: ابيض510 | B52: كروشيه | C52: 4cm | D52: ابيض510 كروشيه 4cm | H52: =IF(E52="","",SUMIF(الدخول!$B$3:$B$1311,D52,الدخول!$F$3:$F$1311)+SUMIF(الدخول!$B$3:$B$1311,D52,الدخول!$Q$3:$Q$1311)+E52-SUMIF(الدخول!$B$3:$B$1311,D52,الدخول!$K$3:$K$1311)) ->  | I52: =IF(F52="","",SUMIF(الدخول!$B$3:$B$1311,D52,الدخول!$G$3:$G$1311)+SUMIF(الدخول!$B$3:$B$1311,D52,الدخول!$R$3:$R$1311)+F52-SUMIF(الدخول!$B$3:$B$1311,D52,الدخول!$L$3:$L$1311)) ->  | J52: =IF(G52="","",SUMIF(الدخول!$B$3:$B$1311,D52,الدخول!$I$3:$I$1311)+SUMIF(الدخول!$B$3:$B$1311,D52,الدخول!$T$3:$T$1311)+G52-SUMIF(الدخول!$B$3:$B$1311,D52,الدخول!$N$3:$N$1311)) -> 
A53: احمر | B53: كورد | C53: مبطط | D53: احمر كورد مبطط | H53: =IF(E53="","",SUMIF(الدخول!$B$3:$B$1311,D53,الدخول!$F$3:$F$1311)+SUMIF(الدخول!$B$3:$B$1311,D53,الدخول!$Q$3:$Q$1311)+E53-SUMIF(الدخول!$B$3:$B$1311,D53,الدخول!$K$3:$K$1311)) ->  | I53: =IF(F53="","",SUMIF(الدخول!$B$3:$B$1311,D53,الدخول!$G$3:$G$1311)+SUMIF(الدخول!$B$3:$B$1311,D53,الدخول!$R$3:$R$1311)+F53-SUMIF(الدخول!$B$3:$B$1311,D53,الدخول!$L$3:$L$1311)) ->  | J53: =IF(G53="","",SUMIF(الدخول!$B$3:$B$1311,D53,الدخول!$I$3:$I$1311)+SUMIF(الدخول!$B$3:$B$1311,D53,الدخول!$T$3:$T$1311)+G53-SUMIF(الدخول!$B$3:$B$1311,D53,الدخول!$N$3:$N$1311)) -> 
A54: احمر | B54: كورد | C54: كبسله بلاستك | D54: احمر كورد كبسله بلاستك | H54: =IF(E54="","",SUMIF(الدخول!$B$3:$B$1311,D54,الدخول!$F$3:$F$1311)+SUMIF(الدخول!$B$3:$B$1311,D54,الدخول!$Q$3:$Q$1311)+E54-SUMIF(الدخول!$B$3:$B$1311,D54,الدخول!$K$3:$K$1311)) ->  | I54: =IF(F54="","",SUMIF(الدخول!$B$3:$B$1311,D54,الدخول!$G$3:$G$1311)+SUMIF(الدخول!$B$3:$B$1311,D54,الدخول!$R$3:$R$1311)+F54-SUMIF(الدخول!$B$3:$B$1311,D54,الدخول!$L$3:$L$1311)) ->  | J54: =IF(G54="","",SUMIF(الدخول!$B$3:$B$1311,D54,الدخول!$I$3:$I$1311)+SUMIF(الدخول!$B$3:$B$1311,D54,الدخول!$T$3:$T$1311)+G54-SUMIF(الدخول!$B$3:$B$1311,D54,الدخول!$N$3:$N$1311)) -> 
A55: اخضر | B55: كورد | C55: مبطط | D55: اخضر كورد مبطط | H55: =IF(E55="","",SUMIF(الدخول!$B$3:$B$1311,D55,الدخول!$F$3:$F$1311)+SUMIF(الدخول!$B$3:$B$1311,D55,الدخول!$Q$3:$Q$1311)+E55-SUMIF(الدخول!$B$3:$B$1311,D55,الدخول!$K$3:$K$1311)) ->  | I55: =IF(F55="","",SUMIF(الدخول!$B$3:$B$1311,D55,الدخول!$G$3:$G$1311)+SUMIF(الدخول!$B$3:$B$1311,D55,الدخول!$R$3:$R$1311)+F55-SUMIF(الدخول!$B$3:$B$1311,D55,الدخول!$L$3:$L$1311)) ->  | J55: =IF(G55="","",SUMIF(الدخول!$B$3:$B$1311,D55,الدخول!$I$3:$I$1311)+SUMIF(الدخول!$B$3:$B$1311,D55,الدخول!$T$3:$T$1311)+G55-SUMIF(الدخول!$B$3:$B$1311,D55,الدخول!$N$3:$N$1311)) -> 
A56: اسود | B56: كروشيه | C56: 5.8cm | D56: اسود كروشيه 5.8cm | H56: =IF(E56="","",SUMIF(الدخول!$B$3:$B$1311,D56,الدخول!$F$3:$F$1311)+SUMIF(الدخول!$B$3:$B$1311,D56,الدخول!$Q$3:$Q$1311)+E56-SUMIF(الدخول!$B$3:$B$1311,D56,الدخول!$K$3:$K$1311)) ->  | I56: =IF(F56="","",SUMIF(الدخول!$B$3:$B$1311,D56,الدخول!$G$3:$G$1311)+SUMIF(الدخول!$B$3:$B$1311,D56,الدخول!$R$3:$R$1311)+F56-SUMIF(الدخول!$B$3:$B$1311,D56,الدخول!$L$3:$L$1311)) ->  | J56: =IF(G56="","",SUMIF(الدخول!$B$3:$B$1311,D56,الدخول!$I$3:$I$1311)+SUMIF(الدخول!$B$3:$B$1311,D56,الدخول!$T$3:$T$1311)+G56-SUMIF(الدخول!$B$3:$B$1311,D56,الدخول!$N$3:$N$1311)) -> 
A57: اسود | B57: كروشيه | C57: 5.5cm | D57: اسود كروشيه 5.5cm | H57: =IF(E57="","",SUMIF(الدخول!$B$3:$B$1311,D57,الدخول!$F$3:$F$1311)+SUMIF(الدخول!$B$3:$B$1311,D57,الدخول!$Q$3:$Q$1311)+E57-SUMIF(الدخول!$B$3:$B$1311,D57,الدخول!$K$3:$K$1311)) ->  | I57: =IF(F57="","",SUMIF(الدخول!$B$3:$B$1311,D57,الدخول!$G$3:$G$1311)+SUMIF(الدخول!$B$3:$B$1311,D57,الدخول!$R$3:$R$1311)+F57-SUMIF(الدخول!$B$3:$B$1311,D57,الدخول!$L$3:$L$1311)) ->  | J57: =IF(G57="","",SUMIF(الدخول!$B$3:$B$1311,D57,الدخول!$I$3:$I$1311)+SUMIF(الدخول!$B$3:$B$1311,D57,الدخول!$T$3:$T$1311)+G57-SUMIF(الدخول!$B$3:$B$1311,D57,الدخول!$N$3:$N$1311)) -> 
A58: اسود | B58: كروشيه | C58: 5cm | D58: اسود كروشيه 5cm | H58: =IF(E58="","",SUMIF(الدخول!$B$3:$B$1311,D58,الدخول!$F$3:$F$1311)+SUMIF(الدخول!$B$3:$B$1311,D58,الدخول!$Q$3:$Q$1311)+E58-SUMIF(الدخول!$B$3:$B$1311,D58,الدخول!$K$3:$K$1311)) ->  | I58: =IF(F58="","",SUMIF(الدخول!$B$3:$B$1311,D58,الدخول!$G$3:$G$1311)+SUMIF(الدخول!$B$3:$B$1311,D58,الدخول!$R$3:$R$1311)+F58-SUMIF(الدخول!$B$3:$B$1311,D58,الدخول!$L$3:$L$1311)) ->  | J58: =IF(G58="","",SUMIF(الدخول!$B$3:$B$1311,D58,الدخول!$I$3:$I$1311)+SUMIF(الدخول!$B$3:$B$1311,D58,الدخول!$T$3:$T$1311)+G58-SUMIF(الدخول!$B$3:$B$1311,D58,الدخول!$N$3:$N$1311)) -> 
A59: اسود | B59: كروشيه | C59: 4.8cm | D59: اسود كروشيه 4.8cm | H59: =IF(E59="","",SUMIF(الدخول!$B$3:$B$1311,D59,الدخول!$F$3:$F$1311)+SUMIF(الدخول!$B$3:$B$1311,D59,الدخول!$Q$3:$Q$1311)+E59-SUMIF(الدخول!$B$3:$B$1311,D59,الدخول!$K$3:$K$1311)) ->  | I59: =IF(F59="","",SUMIF(الدخول!$B$3:$B$1311,D59,الدخول!$G$3:$G$1311)+SUMIF(الدخول!$B$3:$B$1311,D59,الدخول!$R$3:$R$1311)+F59-SUMIF(الدخول!$B$3:$B$1311,D59,الدخول!$L$3:$L$1311)) ->  | J59: =IF(G59="","",SUMIF(الدخول!$B$3:$B$1311,D59,الدخول!$I$3:$I$1311)+SUMIF(الدخول!$B$3:$B$1311,D59,الدخول!$T$3:$T$1311)+G59-SUMIF(الدخول!$B$3:$B$1311,D59,الدخول!$N$3:$N$1311)) -> 
A60: اسود | B60: كروشيه | C60: 4.5cm | D60: اسود كروشيه 4.5cm | H60: =IF(E60="","",SUMIF(الدخول!$B$3:$B$1311,D60,الدخول!$F$3:$F$1311)+SUMIF(الدخول!$B$3:$B$1311,D60,الدخول!$Q$3:$Q$1311)+E60-SUMIF(الدخول!$B$3:$B$1311,D60,الدخول!$K$3:$K$1311)) ->  | I60: =IF(F60="","",SUMIF(الدخول!$B$3:$B$1311,D60,الدخول!$G$3:$G$1311)+SUMIF(الدخول!$B$3:$B$1311,D60,الدخول!$R$3:$R$1311)+F60-SUMIF(الدخول!$B$3:$B$1311,D60,الدخول!$L$3:$L$1311)) ->  | J60: =IF(G60="","",SUMIF(الدخول!$B$3:$B$1311,D60,الدخول!$I$3:$I$1311)+SUMIF(الدخول!$B$3:$B$1311,D60,الدخول!$T$3:$T$1311)+G60-SUMIF(الدخول!$B$3:$B$1311,D60,الدخول!$N$3:$N$1311)) -> 
A61: اسود | B61: كروشيه | C61: 4cm | D61: اسود كروشيه 4cm | H61: =IF(E61="","",SUMIF(الدخول!$B$3:$B$1311,D61,الدخول!$F$3:$F$1311)+SUMIF(الدخول!$B$3:$B$1311,D61,الدخول!$Q$3:$Q$1311)+E61-SUMIF(الدخول!$B$3:$B$1311,D61,الدخول!$K$3:$K$1311)) ->  | I61: =IF(F61="","",SUMIF(الدخول!$B$3:$B$1311,D61,الدخول!$G$3:$G$1311)+SUMIF(الدخول!$B$3:$B$1311,D61,الدخول!$R$3:$R$1311)+F61-SUMIF(الدخول!$B$3:$B$1311,D61,الدخول!$L$3:$L$1311)) ->  | J61: =IF(G61="","",SUMIF(الدخول!$B$3:$B$1311,D61,الدخول!$I$3:$I$1311)+SUMIF(الدخول!$B$3:$B$1311,D61,الدخول!$T$3:$T$1311)+G61-SUMIF(الدخول!$B$3:$B$1311,D61,الدخول!$N$3:$N$1311)) -> 
A62: اسود | B62: كروشيه | C62: 3.5cm | D62: اسود كروشيه 3.5cm | H62: =IF(E62="","",SUMIF(الدخول!$B$3:$B$1311,D62,الدخول!$F$3:$F$1311)+SUMIF(الدخول!$B$3:$B$1311,D62,الدخول!$Q$3:$Q$1311)+E62-SUMIF(الدخول!$B$3:$B$1311,D62,الدخول!$K$3:$K$1311)) ->  | I62: =IF(F62="","",SUMIF(الدخول!$B$3:$B$1311,D62,الدخول!$G$3:$G$1311)+SUMIF(الدخول!$B$3:$B$1311,D62,الدخول!$R$3:$R$1311)+F62-SUMIF(الدخول!$B$3:$B$1311,D62,الدخول!$L$3:$L$1311)) ->  | J62: =IF(G62="","",SUMIF(الدخول!$B$3:$B$1311,D62,الدخول!$I$3:$I$1311)+SUMIF(الدخول!$B$3:$B$1311,D62,الدخول!$T$3:$T$1311)+G62-SUMIF(الدخول!$B$3:$B$1311,D62,الدخول!$N$3:$N$1311)) -> 
A63: اسود | B63: كروشيه | C63: 3cm | D63: اسود كروشيه 3cm | H63: =IF(E63="","",SUMIF(الدخول!$B$3:$B$1311,D63,الدخول!$F$3:$F$1311)+SUMIF(الدخول!$B$3:$B$1311,D63,الدخول!$Q$3:$Q$1311)+E63-SUMIF(الدخول!$B$3:$B$1311,D63,الدخول!$K$3:$K$1311)) ->  | I63: =IF(F63="","",SUMIF(الدخول!$B$3:$B$1311,D63,الدخول!$G$3:$G$1311)+SUMIF(الدخول!$B$3:$B$1311,D63,الدخول!$R$3:$R$1311)+F63-SUMIF(الدخول!$B$3:$B$1311,D63,الدخول!$L$3:$L$1311)) ->  | J63: =IF(G63="","",SUMIF(الدخول!$B$3:$B$1311,D63,الدخول!$I$3:$I$1311)+SUMIF(الدخول!$B$3:$B$1311,D63,الدخول!$T$3:$T$1311)+G63-SUMIF(الدخول!$B$3:$B$1311,D63,الدخول!$N$3:$N$1311)) -> 
A64: اسود | B64: كروشيه | C64: 2.5cm | D64: اسود كروشيه 2.5cm | H64: =IF(E64="","",SUMIF(الدخول!$B$3:$B$1311,D64,الدخول!$F$3:$F$1311)+SUMIF(الدخول!$B$3:$B$1311,D64,الدخول!$Q$3:$Q$1311)+E64-SUMIF(الدخول!$B$3:$B$1311,D64,الدخول!$K$3:$K$1311)) ->  | I64: =IF(F64="","",SUMIF(الدخول!$B$3:$B$1311,D64,الدخول!$G$3:$G$1311)+SUMIF(الدخول!$B$3:$B$1311,D64,الدخول!$R$3:$R$1311)+F64-SUMIF(الدخول!$B$3:$B$1311,D64,الدخول!$L$3:$L$1311)) ->  | J64: =IF(G64="","",SUMIF(الدخول!$B$3:$B$1311,D64,الدخول!$I$3:$I$1311)+SUMIF(الدخول!$B$3:$B$1311,D64,الدخول!$T$3:$T$1311)+G64-SUMIF(الدخول!$B$3:$B$1311,D64,الدخول!$N$3:$N$1311)) -> 
A65: اسود | B65: كروشيه | C65: 2cm | D65: اسود كروشيه 2cm | H65: =IF(E65="","",SUMIF(الدخول!$B$3:$B$1311,D65,الدخول!$F$3:$F$1311)+SUMIF(الدخول!$B$3:$B$1311,D65,الدخول!$Q$3:$Q$1311)+E65-SUMIF(الدخول!$B$3:$B$1311,D65,الدخول!$K$3:$K$1311)) ->  | I65: =IF(F65="","",SUMIF(الدخول!$B$3:$B$1311,D65,الدخول!$G$3:$G$1311)+SUMIF(الدخول!$B$3:$B$1311,D65,الدخول!$R$3:$R$1311)+F65-SUMIF(الدخول!$B$3:$B$1311,D65,الدخول!$L$3:$L$1311)) ->  | J65: =IF(G65="","",SUMIF(الدخول!$B$3:$B$1311,D65,الدخول!$I$3:$I$1311)+SUMIF(الدخول!$B$3:$B$1311,D65,الدخول!$T$3:$T$1311)+G65-SUMIF(الدخول!$B$3:$B$1311,D65,الدخول!$N$3:$N$1311)) -> 
A66: اسود | B66: كروشيه | C66: 1.7cm | D66: =A66&" "&B66&" "&C66 -> اسود كروشيه 1.7cm | H66: =IF(E66="","",SUMIF(الدخول!$B$3:$B$1311,D66,الدخول!$F$3:$F$1311)+SUMIF(الدخول!$B$3:$B$1311,D66,الدخول!$Q$3:$Q$1311)+E66-SUMIF(الدخول!$B$3:$B$1311,D66,الدخول!$K$3:$K$1311)) ->  | I66: =IF(F66="","",SUMIF(الدخول!$B$3:$B$1311,D66,الدخول!$G$3:$G$1311)+SUMIF(الدخول!$B$3:$B$1311,D66,الدخول!$R$3:$R$1311)+F66-SUMIF(الدخول!$B$3:$B$1311,D66,الدخول!$L$3:$L$1311)) ->  | J66: =IF(G66="","",SUMIF(الدخول!$B$3:$B$1311,D66,الدخول!$I$3:$I$1311)+SUMIF(الدخول!$B$3:$B$1311,D66,الدخول!$T$3:$T$1311)+G66-SUMIF(الدخول!$B$3:$B$1311,D66,الدخول!$N$3:$N$1311)) -> 
A67: اسود | B67: كروشيه | C67: 1.5cm | D67: اسود كروشيه 1.5cm | H67: =IF(E67="","",SUMIF(الدخول!$B$3:$B$1311,D67,الدخول!$F$3:$F$1311)+SUMIF(الدخول!$B$3:$B$1311,D67,الدخول!$Q$3:$Q$1311)+E67-SUMIF(الدخول!$B$3:$B$1311,D67,الدخول!$K$3:$K$1311)) ->  | I67: =IF(F67="","",SUMIF(الدخول!$B$3:$B$1311,D67,الدخول!$G$3:$G$1311)+SUMIF(الدخول!$B$3:$B$1311,D67,الدخول!$R$3:$R$1311)+F67-SUMIF(الدخول!$B$3:$B$1311,D67,الدخول!$L$3:$L$1311)) ->  | J67: =IF(G67="","",SUMIF(الدخول!$B$3:$B$1311,D67,الدخول!$I$3:$I$1311)+SUMIF(الدخول!$B$3:$B$1311,D67,الدخول!$T$3:$T$1311)+G67-SUMIF(الدخول!$B$3:$B$1311,D67,الدخول!$N$3:$N$1311)) -> 
A68: اسود | B68: كروشيه | C68: 1.3cm | D68: اسود كروشيه 1.3cm | H68: =IF(E68="","",SUMIF(الدخول!$B$3:$B$1311,D68,الدخول!$F$3:$F$1311)+SUMIF(الدخول!$B$3:$B$1311,D68,الدخول!$Q$3:$Q$1311)+E68-SUMIF(الدخول!$B$3:$B$1311,D68,الدخول!$K$3:$K$1311)) ->  | I68: =IF(F68="","",SUMIF(الدخول!$B$3:$B$1311,D68,الدخول!$G$3:$G$1311)+SUMIF(الدخول!$B$3:$B$1311,D68,الدخول!$R$3:$R$1311)+F68-SUMIF(الدخول!$B$3:$B$1311,D68,الدخول!$L$3:$L$1311)) ->  | J68: =IF(G68="","",SUMIF(الدخول!$B$3:$B$1311,D68,الدخول!$I$3:$I$1311)+SUMIF(الدخول!$B$3:$B$1311,D68,الدخول!$T$3:$T$1311)+G68-SUMIF(الدخول!$B$3:$B$1311,D68,الدخول!$N$3:$N$1311)) -> 
A69: اسود | B69: كروشيه | C69: 1cm | D69: اسود كروشيه 1cm | H69: =IF(E69="","",SUMIF(الدخول!$B$3:$B$1311,D69,الدخول!$F$3:$F$1311)+SUMIF(الدخول!$B$3:$B$1311,D69,الدخول!$Q$3:$Q$1311)+E69-SUMIF(الدخول!$B$3:$B$1311,D69,الدخول!$K$3:$K$1311)) ->  | I69: =IF(F69="","",SUMIF(الدخول!$B$3:$B$1311,D69,الدخول!$G$3:$G$1311)+SUMIF(الدخول!$B$3:$B$1311,D69,الدخول!$R$3:$R$1311)+F69-SUMIF(الدخول!$B$3:$B$1311,D69,الدخول!$L$3:$L$1311)) ->  | J69: =IF(G69="","",SUMIF(الدخول!$B$3:$B$1311,D69,الدخول!$I$3:$I$1311)+SUMIF(الدخول!$B$3:$B$1311,D69,الدخول!$T$3:$T$1311)+G69-SUMIF(الدخول!$B$3:$B$1311,D69,الدخول!$N$3:$N$1311)) -> 
A70: اسود | B70: كروشيه | C70: 8mm | D70: اسود كروشيه 8mm | H70: =IF(E70="","",SUMIF(الدخول!$B$3:$B$1311,D70,الدخول!$F$3:$F$1311)+SUMIF(الدخول!$B$3:$B$1311,D70,الدخول!$Q$3:$Q$1311)+E70-SUMIF(الدخول!$B$3:$B$1311,D70,الدخول!$K$3:$K$1311)) ->  | I70: =IF(F70="","",SUMIF(الدخول!$B$3:$B$1311,D70,الدخول!$G$3:$G$1311)+SUMIF(الدخول!$B$3:$B$1311,D70,الدخول!$R$3:$R$1311)+F70-SUMIF(الدخول!$B$3:$B$1311,D70,الدخول!$L$3:$L$1311)) ->  | J70: =IF(G70="","",SUMIF(الدخول!$B$3:$B$1311,D70,الدخول!$I$3:$I$1311)+SUMIF(الدخول!$B$3:$B$1311,D70,الدخول!$T$3:$T$1311)+G70-SUMIF(الدخول!$B$3:$B$1311,D70,الدخول!$N$3:$N$1311)) -> 
A71: اسود | B71: كروشيه | C71: 3.8cm | D71: اسود كروشيه 3.8cm | H71: =IF(E71="","",SUMIF(الدخول!$B$3:$B$1311,D71,الدخول!$F$3:$F$1311)+SUMIF(الدخول!$B$3:$B$1311,D71,الدخول!$Q$3:$Q$1311)+E71-SUMIF(الدخول!$B$3:$B$1311,D71,الدخول!$K$3:$K$1311)) ->  | I71: =IF(F71="","",SUMIF(الدخول!$B$3:$B$1311,D71,الدخول!$G$3:$G$1311)+SUMIF(الدخول!$B$3:$B$1311,D71,الدخول!$R$3:$R$1311)+F71-SUMIF(الدخول!$B$3:$B$1311,D71,الدخول!$L$3:$L$1311)) ->  | J71: =IF(G71="","",SUMIF(الدخول!$B$3:$B$1311,D71,الدخول!$I$3:$I$1311)+SUMIF(الدخول!$B$3:$B$1311,D71,الدخول!$T$3:$T$1311)+G71-SUMIF(الدخول!$B$3:$B$1311,D71,الدخول!$N$3:$N$1311)) -> 
A72: اسود | B72: كروشيه | C72: .8m | D72: اسود كروشيه .8m | H72: =IF(E72="","",SUMIF(الدخول!$B$3:$B$1311,D72,الدخول!$F$3:$F$1311)+SUMIF(الدخول!$B$3:$B$1311,D72,الدخول!$Q$3:$Q$1311)+E72-SUMIF(الدخول!$B$3:$B$1311,D72,الدخول!$K$3:$K$1311)) ->  | I72: =IF(F72="","",SUMIF(الدخول!$B$3:$B$1311,D72,الدخول!$G$3:$G$1311)+SUMIF(الدخول!$B$3:$B$1311,D72,الدخول!$R$3:$R$1311)+F72-SUMIF(الدخول!$B$3:$B$1311,D72,الدخول!$L$3:$L$1311)) ->  | J72: =IF(G72="","",SUMIF(الدخول!$B$3:$B$1311,D72,الدخول!$I$3:$I$1311)+SUMIF(الدخول!$B$3:$B$1311,D72,الدخول!$T$3:$T$1311)+G72-SUMIF(الدخول!$B$3:$B$1311,D72,الدخول!$N$3:$N$1311)) -> 
A73: اسود | B73: كروشيه | C73: 1.2cm | D73: اسود كروشيه 1.2cm | H73: =IF(E73="","",SUMIF(الدخول!$B$3:$B$1311,D73,الدخول!$F$3:$F$1311)+SUMIF(الدخول!$B$3:$B$1311,D73,الدخول!$Q$3:$Q$1311)+E73-SUMIF(الدخول!$B$3:$B$1311,D73,الدخول!$K$3:$K$1311)) ->  | I73: =IF(F73="","",SUMIF(الدخول!$B$3:$B$1311,D73,الدخول!$G$3:$G$1311)+SUMIF(الدخول!$B$3:$B$1311,D73,الدخول!$R$3:$R$1311)+F73-SUMIF(الدخول!$B$3:$B$1311,D73,الدخول!$L$3:$L$1311)) ->  | J73: =IF(G73="","",SUMIF(الدخول!$B$3:$B$1311,D73,الدخول!$I$3:$I$1311)+SUMIF(الدخول!$B$3:$B$1311,D73,الدخول!$T$3:$T$1311)+G73-SUMIF(الدخول!$B$3:$B$1311,D73,الدخول!$N$3:$N$1311)) -> 
A74: اسود | B74: كروشيه | C74: .4m | D74: اسود كروشيه .4m | H74: =IF(E74="","",SUMIF(الدخول!$B$3:$B$1311,D74,الدخول!$F$3:$F$1311)+SUMIF(الدخول!$B$3:$B$1311,D74,الدخول!$Q$3:$Q$1311)+E74-SUMIF(الدخول!$B$3:$B$1311,D74,الدخول!$K$3:$K$1311)) ->  | I74: =IF(F74="","",SUMIF(الدخول!$B$3:$B$1311,D74,الدخول!$G$3:$G$1311)+SUMIF(الدخول!$B$3:$B$1311,D74,الدخول!$R$3:$R$1311)+F74-SUMIF(الدخول!$B$3:$B$1311,D74,الدخول!$L$3:$L$1311)) ->  | J74: =IF(G74="","",SUMIF(الدخول!$B$3:$B$1311,D74,الدخول!$I$3:$I$1311)+SUMIF(الدخول!$B$3:$B$1311,D74,الدخول!$T$3:$T$1311)+G74-SUMIF(الدخول!$B$3:$B$1311,D74,الدخول!$N$3:$N$1311)) -> 
A75: اسود | B75: كروشيه | C75: 1.4cm | D75: اسود كروشيه 1.4cm | H75: =IF(E75="","",SUMIF(الدخول!$B$3:$B$1311,D75,الدخول!$F$3:$F$1311)+SUMIF(الدخول!$B$3:$B$1311,D75,الدخول!$Q$3:$Q$1311)+E75-SUMIF(الدخول!$B$3:$B$1311,D75,الدخول!$K$3:$K$1311)) ->  | I75: =IF(F75="","",SUMIF(الدخول!$B$3:$B$1311,D75,الدخول!$G$3:$G$1311)+SUMIF(الدخول!$B$3:$B$1311,D75,الدخول!$R$3:$R$1311)+F75-SUMIF(الدخول!$B$3:$B$1311,D75,الدخول!$L$3:$L$1311)) ->  | J75: =IF(G75="","",SUMIF(الدخول!$B$3:$B$1311,D75,الدخول!$I$3:$I$1311)+SUMIF(الدخول!$B$3:$B$1311,D75,الدخول!$T$3:$T$1311)+G75-SUMIF(الدخول!$B$3:$B$1311,D75,الدخول!$N$3:$N$1311)) -> 
A76: اسود | B76: كروشيه | C76: 2.2cm | D76: اسود كروشيه 2.2cm | H76: =IF(E76="","",SUMIF(الدخول!$B$3:$B$1311,D76,الدخول!$F$3:$F$1311)+SUMIF(الدخول!$B$3:$B$1311,D76,الدخول!$Q$3:$Q$1311)+E76-SUMIF(الدخول!$B$3:$B$1311,D76,الدخول!$K$3:$K$1311)) ->  | I76: =IF(F76="","",SUMIF(الدخول!$B$3:$B$1311,D76,الدخول!$G$3:$G$1311)+SUMIF(الدخول!$B$3:$B$1311,D76,الدخول!$R$3:$R$1311)+F76-SUMIF(الدخول!$B$3:$B$1311,D76,الدخول!$L$3:$L$1311)) ->  | J76: =IF(G76="","",SUMIF(الدخول!$B$3:$B$1311,D76,الدخول!$I$3:$I$1311)+SUMIF(الدخول!$B$3:$B$1311,D76,الدخول!$T$3:$T$1311)+G76-SUMIF(الدخول!$B$3:$B$1311,D76,الدخول!$N$3:$N$1311)) -> 
A77: اسود | B77: كورد | C77: 1cm | D77: اسود كورد 1cm | H77: =IF(E77="","",SUMIF(الدخول!$B$3:$B$1311,D77,الدخول!$F$3:$F$1311)+SUMIF(الدخول!$B$3:$B$1311,D77,الدخول!$Q$3:$Q$1311)+E77-SUMIF(الدخول!$B$3:$B$1311,D77,الدخول!$K$3:$K$1311)) ->  | I77: =IF(F77="","",SUMIF(الدخول!$B$3:$B$1311,D77,الدخول!$G$3:$G$1311)+SUMIF(الدخول!$B$3:$B$1311,D77,الدخول!$R$3:$R$1311)+F77-SUMIF(الدخول!$B$3:$B$1311,D77,الدخول!$L$3:$L$1311)) ->  | J77: =IF(G77="","",SUMIF(الدخول!$B$3:$B$1311,D77,الدخول!$I$3:$I$1311)+SUMIF(الدخول!$B$3:$B$1311,D77,الدخول!$T$3:$T$1311)+G77-SUMIF(الدخول!$B$3:$B$1311,D77,الدخول!$N$3:$N$1311)) -> 
A78: اسود | B78: كورد | C78: مبطط | D78: اسود كورد مبطط | H78: =IF(E78="","",SUMIF(الدخول!$B$3:$B$1311,D78,الدخول!$F$3:$F$1311)+SUMIF(الدخول!$B$3:$B$1311,D78,الدخول!$Q$3:$Q$1311)+E78-SUMIF(الدخول!$B$3:$B$1311,D78,الدخول!$K$3:$K$1311)) ->  | I78: =IF(F78="","",SUMIF(الدخول!$B$3:$B$1311,D78,الدخول!$G$3:$G$1311)+SUMIF(الدخول!$B$3:$B$1311,D78,الدخول!$R$3:$R$1311)+F78-SUMIF(الدخول!$B$3:$B$1311,D78,الدخول!$L$3:$L$1311)) ->  | J78: =IF(G78="","",SUMIF(الدخول!$B$3:$B$1311,D78,الدخول!$I$3:$I$1311)+SUMIF(الدخول!$B$3:$B$1311,D78,الدخول!$T$3:$T$1311)+G78-SUMIF(الدخول!$B$3:$B$1311,D78,الدخول!$N$3:$N$1311)) -> 
A79: اسود | B79: كورد | C79: مبروم | D79: اسود كورد مبروم | H79: =IF(E79="","",SUMIF(الدخول!$B$3:$B$1311,D79,الدخول!$F$3:$F$1311)+SUMIF(الدخول!$B$3:$B$1311,D79,الدخول!$Q$3:$Q$1311)+E79-SUMIF(الدخول!$B$3:$B$1311,D79,الدخول!$K$3:$K$1311)) ->  | I79: =IF(F79="","",SUMIF(الدخول!$B$3:$B$1311,D79,الدخول!$G$3:$G$1311)+SUMIF(الدخول!$B$3:$B$1311,D79,الدخول!$R$3:$R$1311)+F79-SUMIF(الدخول!$B$3:$B$1311,D79,الدخول!$L$3:$L$1311)) ->  | J79: =IF(G79="","",SUMIF(الدخول!$B$3:$B$1311,D79,الدخول!$I$3:$I$1311)+SUMIF(الدخول!$B$3:$B$1311,D79,الدخول!$T$3:$T$1311)+G79-SUMIF(الدخول!$B$3:$B$1311,D79,الدخول!$N$3:$N$1311)) -> 
A80: اسود | B80: ووفين ساندوتش | C80: 1.5cm | D80: اسود ووفين ساندوتش 1.5cm | H80: =IF(E80="","",SUMIF(الدخول!$B$3:$B$1311,D80,الدخول!$F$3:$F$1311)+SUMIF(الدخول!$B$3:$B$1311,D80,الدخول!$Q$3:$Q$1311)+E80-SUMIF(الدخول!$B$3:$B$1311,D80,الدخول!$K$3:$K$1311)) ->  | I80: =IF(F80="","",SUMIF(الدخول!$B$3:$B$1311,D80,الدخول!$G$3:$G$1311)+SUMIF(الدخول!$B$3:$B$1311,D80,الدخول!$R$3:$R$1311)+F80-SUMIF(الدخول!$B$3:$B$1311,D80,الدخول!$L$3:$L$1311)) ->  | J80: =IF(G80="","",SUMIF(الدخول!$B$3:$B$1311,D80,الدخول!$I$3:$I$1311)+SUMIF(الدخول!$B$3:$B$1311,D80,الدخول!$T$3:$T$1311)+G80-SUMIF(الدخول!$B$3:$B$1311,D80,الدخول!$N$3:$N$1311)) -> 
A81: اسود | B81: ووفين ساندوتش | C81: 1.8cm | D81: اسود ووفين ساندوتش 1.8cm | H81: =IF(E81="","",SUMIF(الدخول!$B$3:$B$1311,D81,الدخول!$F$3:$F$1311)+SUMIF(الدخول!$B$3:$B$1311,D81,الدخول!$Q$3:$Q$1311)+E81-SUMIF(الدخول!$B$3:$B$1311,D81,الدخول!$K$3:$K$1311)) ->  | I81: =IF(F81="","",SUMIF(الدخول!$B$3:$B$1311,D81,الدخول!$G$3:$G$1311)+SUMIF(الدخول!$B$3:$B$1311,D81,الدخول!$R$3:$R$1311)+F81-SUMIF(الدخول!$B$3:$B$1311,D81,الدخول!$L$3:$L$1311)) ->  | J81: =IF(G81="","",SUMIF(الدخول!$B$3:$B$1311,D81,الدخول!$I$3:$I$1311)+SUMIF(الدخول!$B$3:$B$1311,D81,الدخول!$T$3:$T$1311)+G81-SUMIF(الدخول!$B$3:$B$1311,D81,الدخول!$N$3:$N$1311)) -> 
A82: اسود | B82: ووفين ساندوتش | C82: 1.7cm | D82: اسود ووفين ساندوتش 1.7cm | H82: =IF(E82="","",SUMIF(الدخول!$B$3:$B$1311,D82,الدخول!$F$3:$F$1311)+SUMIF(الدخول!$B$3:$B$1311,D82,الدخول!$Q$3:$Q$1311)+E82-SUMIF(الدخول!$B$3:$B$1311,D82,الدخول!$K$3:$K$1311)) ->  | I82: =IF(F82="","",SUMIF(الدخول!$B$3:$B$1311,D82,الدخول!$G$3:$G$1311)+SUMIF(الدخول!$B$3:$B$1311,D82,الدخول!$R$3:$R$1311)+F82-SUMIF(الدخول!$B$3:$B$1311,D82,الدخول!$L$3:$L$1311)) ->  | J82: =IF(G82="","",SUMIF(الدخول!$B$3:$B$1311,D82,الدخول!$I$3:$I$1311)+SUMIF(الدخول!$B$3:$B$1311,D82,الدخول!$T$3:$T$1311)+G82-SUMIF(الدخول!$B$3:$B$1311,D82,الدخول!$N$3:$N$1311)) -> 
A83: اسود | B83: ووفين ساندوتش | C83: 2cm | D83: اسود ووفين ساندوتش 2cm | H83: =IF(E83="","",SUMIF(الدخول!$B$3:$B$1311,D83,الدخول!$F$3:$F$1311)+SUMIF(الدخول!$B$3:$B$1311,D83,الدخول!$Q$3:$Q$1311)+E83-SUMIF(الدخول!$B$3:$B$1311,D83,الدخول!$K$3:$K$1311)) ->  | I83: =IF(F83="","",SUMIF(الدخول!$B$3:$B$1311,D83,الدخول!$G$3:$G$1311)+SUMIF(الدخول!$B$3:$B$1311,D83,الدخول!$R$3:$R$1311)+F83-SUMIF(الدخول!$B$3:$B$1311,D83,الدخول!$L$3:$L$1311)) ->  | J83: =IF(G83="","",SUMIF(الدخول!$B$3:$B$1311,D83,الدخول!$I$3:$I$1311)+SUMIF(الدخول!$B$3:$B$1311,D83,الدخول!$T$3:$T$1311)+G83-SUMIF(الدخول!$B$3:$B$1311,D83,الدخول!$N$3:$N$1311)) -> 
A84: اسود | B84: استك طبي | C84: 2.98 | D84: اسود استك طبي 2,98 | H84: =IF(E84="","",SUMIF(الدخول!$B$3:$B$1311,D84,الدخول!$F$3:$F$1311)+SUMIF(الدخول!$B$3:$B$1311,D84,الدخول!$Q$3:$Q$1311)+E84-SUMIF(الدخول!$B$3:$B$1311,D84,الدخول!$K$3:$K$1311)) ->  | I84: =IF(F84="","",SUMIF(الدخول!$B$3:$B$1311,D84,الدخول!$G$3:$G$1311)+SUMIF(الدخول!$B$3:$B$1311,D84,الدخول!$R$3:$R$1311)+F84-SUMIF(الدخول!$B$3:$B$1311,D84,الدخول!$L$3:$L$1311)) ->  | J84: =IF(G84="","",SUMIF(الدخول!$B$3:$B$1311,D84,الدخول!$I$3:$I$1311)+SUMIF(الدخول!$B$3:$B$1311,D84,الدخول!$T$3:$T$1311)+G84-SUMIF(الدخول!$B$3:$B$1311,D84,الدخول!$N$3:$N$1311)) -> 
A85: اسود | B85: استك طبي | C85: 2.26 | D85: اسود استك طبي 2,26 | H85: =IF(E85="","",SUMIF(الدخول!$B$3:$B$1311,D85,الدخول!$F$3:$F$1311)+SUMIF(الدخول!$B$3:$B$1311,D85,الدخول!$Q$3:$Q$1311)+E85-SUMIF(الدخول!$B$3:$B$1311,D85,الدخول!$K$3:$K$1311)) ->  | I85: =IF(F85="","",SUMIF(الدخول!$B$3:$B$1311,D85,الدخول!$G$3:$G$1311)+SUMIF(الدخول!$B$3:$B$1311,D85,الدخول!$R$3:$R$1311)+F85-SUMIF(الدخول!$B$3:$B$1311,D85,الدخول!$L$3:$L$1311)) ->  | J85: =IF(G85="","",SUMIF(الدخول!$B$3:$B$1311,D85,الدخول!$I$3:$I$1311)+SUMIF(الدخول!$B$3:$B$1311,D85,الدخول!$T$3:$T$1311)+G85-SUMIF(الدخول!$B$3:$B$1311,D85,الدخول!$N$3:$N$1311)) -> 
A86: اسود | B86: كروشيه | C86: 5.8cm | D86: اسود كروشيه 5.8cm | H86: =IF(E86="","",SUMIF(الدخول!$B$3:$B$1311,D86,الدخول!$F$3:$F$1311)+SUMIF(الدخول!$B$3:$B$1311,D86,الدخول!$Q$3:$Q$1311)+E86-SUMIF(الدخول!$B$3:$B$1311,D86,الدخول!$K$3:$K$1311)) ->  | I86: =IF(F86="","",SUMIF(الدخول!$B$3:$B$1311,D86,الدخول!$G$3:$G$1311)+SUMIF(الدخول!$B$3:$B$1311,D86,الدخول!$R$3:$R$1311)+F86-SUMIF(الدخول!$B$3:$B$1311,D86,الدخول!$L$3:$L$1311)) ->  | J86: =IF(G86="","",SUMIF(الدخول!$B$3:$B$1311,D86,الدخول!$I$3:$I$1311)+SUMIF(الدخول!$B$3:$B$1311,D86,الدخول!$T$3:$T$1311)+G86-SUMIF(الدخول!$B$3:$B$1311,D86,الدخول!$N$3:$N$1311)) -> 
A87: اسود استريب | B87: كروشيه | C87: 3cm | D87: اسود استريب كروشيه 3cm | H87: =IF(E87="","",SUMIF(الدخول!$B$3:$B$1311,D87,الدخول!$F$3:$F$1311)+SUMIF(الدخول!$B$3:$B$1311,D87,الدخول!$Q$3:$Q$1311)+E87-SUMIF(الدخول!$B$3:$B$1311,D87,الدخول!$K$3:$K$1311)) ->  | I87: =IF(F87="","",SUMIF(الدخول!$B$3:$B$1311,D87,الدخول!$G$3:$G$1311)+SUMIF(الدخول!$B$3:$B$1311,D87,الدخول!$R$3:$R$1311)+F87-SUMIF(الدخول!$B$3:$B$1311,D87,الدخول!$L$3:$L$1311)) ->  | J87: =IF(G87="","",SUMIF(الدخول!$B$3:$B$1311,D87,الدخول!$I$3:$I$1311)+SUMIF(الدخول!$B$3:$B$1311,D87,الدخول!$T$3:$T$1311)+G87-SUMIF(الدخول!$B$3:$B$1311,D87,الدخول!$N$3:$N$1311)) -> 
A88: اسود فلاش | B88: كروشيه | C88: 5.5cm | D88: اسود فلاش كروشيه 5.5cm | H88: =IF(E88="","",SUMIF(الدخول!$B$3:$B$1311,D88,الدخول!$F$3:$F$1311)+SUMIF(الدخول!$B$3:$B$1311,D88,الدخول!$Q$3:$Q$1311)+E88-SUMIF(الدخول!$B$3:$B$1311,D88,الدخول!$K$3:$K$1311)) ->  | I88: =IF(F88="","",SUMIF(الدخول!$B$3:$B$1311,D88,الدخول!$G$3:$G$1311)+SUMIF(الدخول!$B$3:$B$1311,D88,الدخول!$R$3:$R$1311)+F88-SUMIF(الدخول!$B$3:$B$1311,D88,الدخول!$L$3:$L$1311)) ->  | J88: =IF(G88="","",SUMIF(الدخول!$B$3:$B$1311,D88,الدخول!$I$3:$I$1311)+SUMIF(الدخول!$B$3:$B$1311,D88,الدخول!$T$3:$T$1311)+G88-SUMIF(الدخول!$B$3:$B$1311,D88,الدخول!$N$3:$N$1311)) -> 
A89: اسود فلاش | B89: كروشيه | C89: 5cm | D89: اسود فلاش كروشيه 5cm | H89: =IF(E89="","",SUMIF(الدخول!$B$3:$B$1311,D89,الدخول!$F$3:$F$1311)+SUMIF(الدخول!$B$3:$B$1311,D89,الدخول!$Q$3:$Q$1311)+E89-SUMIF(الدخول!$B$3:$B$1311,D89,الدخول!$K$3:$K$1311)) ->  | I89: =IF(F89="","",SUMIF(الدخول!$B$3:$B$1311,D89,الدخول!$G$3:$G$1311)+SUMIF(الدخول!$B$3:$B$1311,D89,الدخول!$R$3:$R$1311)+F89-SUMIF(الدخول!$B$3:$B$1311,D89,الدخول!$L$3:$L$1311)) ->  | J89: =IF(G89="","",SUMIF(الدخول!$B$3:$B$1311,D89,الدخول!$I$3:$I$1311)+SUMIF(الدخول!$B$3:$B$1311,D89,الدخول!$T$3:$T$1311)+G89-SUMIF(الدخول!$B$3:$B$1311,D89,الدخول!$N$3:$N$1311)) -> 
A90: اسود فلاش | B90: كروشيه | C90: 3.5cm | D90: اسود فلاش كروشيه 3.5cm | H90: =IF(E90="","",SUMIF(الدخول!$B$3:$B$1311,D90,الدخول!$F$3:$F$1311)+SUMIF(الدخول!$B$3:$B$1311,D90,الدخول!$Q$3:$Q$1311)+E90-SUMIF(الدخول!$B$3:$B$1311,D90,الدخول!$K$3:$K$1311)) ->  | I90: =IF(F90="","",SUMIF(الدخول!$B$3:$B$1311,D90,الدخول!$G$3:$G$1311)+SUMIF(الدخول!$B$3:$B$1311,D90,الدخول!$R$3:$R$1311)+F90-SUMIF(الدخول!$B$3:$B$1311,D90,الدخول!$L$3:$L$1311)) ->  | J90: =IF(G90="","",SUMIF(الدخول!$B$3:$B$1311,D90,الدخول!$I$3:$I$1311)+SUMIF(الدخول!$B$3:$B$1311,D90,الدخول!$T$3:$T$1311)+G90-SUMIF(الدخول!$B$3:$B$1311,D90,الدخول!$N$3:$N$1311)) -> 
A91: اسود510 | B91: كروشيه | C91: 5cm | D91: اسود510 كروشيه 5cm | H91: =IF(E91="","",SUMIF(الدخول!$B$3:$B$1311,D91,الدخول!$F$3:$F$1311)+SUMIF(الدخول!$B$3:$B$1311,D91,الدخول!$Q$3:$Q$1311)+E91-SUMIF(الدخول!$B$3:$B$1311,D91,الدخول!$K$3:$K$1311)) ->  | I91: =IF(F91="","",SUMIF(الدخول!$B$3:$B$1311,D91,الدخول!$G$3:$G$1311)+SUMIF(الدخول!$B$3:$B$1311,D91,الدخول!$R$3:$R$1311)+F91-SUMIF(الدخول!$B$3:$B$1311,D91,الدخول!$L$3:$L$1311)) ->  | J91: =IF(G91="","",SUMIF(الدخول!$B$3:$B$1311,D91,الدخول!$I$3:$I$1311)+SUMIF(الدخول!$B$3:$B$1311,D91,الدخول!$T$3:$T$1311)+G91-SUMIF(الدخول!$B$3:$B$1311,D91,الدخول!$N$3:$N$1311)) -> 
A92: اسود510 | B92: كروشيه | C92: 3.5cm | D92: اسود510 كروشيه 3.5cm | H92: =IF(E92="","",SUMIF(الدخول!$B$3:$B$1311,D92,الدخول!$F$3:$F$1311)+SUMIF(الدخول!$B$3:$B$1311,D92,الدخول!$Q$3:$Q$1311)+E92-SUMIF(الدخول!$B$3:$B$1311,D92,الدخول!$K$3:$K$1311)) ->  | I92: =IF(F92="","",SUMIF(الدخول!$B$3:$B$1311,D92,الدخول!$G$3:$G$1311)+SUMIF(الدخول!$B$3:$B$1311,D92,الدخول!$R$3:$R$1311)+F92-SUMIF(الدخول!$B$3:$B$1311,D92,الدخول!$L$3:$L$1311)) ->  | J92: =IF(G92="","",SUMIF(الدخول!$B$3:$B$1311,D92,الدخول!$I$3:$I$1311)+SUMIF(الدخول!$B$3:$B$1311,D92,الدخول!$T$3:$T$1311)+G92-SUMIF(الدخول!$B$3:$B$1311,D92,الدخول!$N$3:$N$1311)) -> 
A93: الالوان | B93: كورد | C93: 1.2cm | D93: الالوان كورد 1.2cm | H93: =IF(E93="","",SUMIF(الدخول!$B$3:$B$1311,D93,الدخول!$F$3:$F$1311)+SUMIF(الدخول!$B$3:$B$1311,D93,الدخول!$Q$3:$Q$1311)+E93-SUMIF(الدخول!$B$3:$B$1311,D93,الدخول!$K$3:$K$1311)) ->  | I93: =IF(F93="","",SUMIF(الدخول!$B$3:$B$1311,D93,الدخول!$G$3:$G$1311)+SUMIF(الدخول!$B$3:$B$1311,D93,الدخول!$R$3:$R$1311)+F93-SUMIF(الدخول!$B$3:$B$1311,D93,الدخول!$L$3:$L$1311)) ->  | J93: =IF(G93="","",SUMIF(الدخول!$B$3:$B$1311,D93,الدخول!$I$3:$I$1311)+SUMIF(الدخول!$B$3:$B$1311,D93,الدخول!$T$3:$T$1311)+G93-SUMIF(الدخول!$B$3:$B$1311,D93,الدخول!$N$3:$N$1311)) -> 
A94: اورنج | B94: كورد | C94: 1.2cm | D94: اورنج كورد 1.2cm | H94: =IF(E94="","",SUMIF(الدخول!$B$3:$B$1311,D94,الدخول!$F$3:$F$1311)+SUMIF(الدخول!$B$3:$B$1311,D94,الدخول!$Q$3:$Q$1311)+E94-SUMIF(الدخول!$B$3:$B$1311,D94,الدخول!$K$3:$K$1311)) ->  | I94: =IF(F94="","",SUMIF(الدخول!$B$3:$B$1311,D94,الدخول!$G$3:$G$1311)+SUMIF(الدخول!$B$3:$B$1311,D94,الدخول!$R$3:$R$1311)+F94-SUMIF(الدخول!$B$3:$B$1311,D94,الدخول!$L$3:$L$1311)) ->  | J94: =IF(G94="","",SUMIF(الدخول!$B$3:$B$1311,D94,الدخول!$I$3:$I$1311)+SUMIF(الدخول!$B$3:$B$1311,D94,الدخول!$T$3:$T$1311)+G94-SUMIF(الدخول!$B$3:$B$1311,D94,الدخول!$N$3:$N$1311)) -> 
A95: اورنح | B95: كورد | C95: مبطط | D95: اورنح كورد مبطط | H95: =IF(E95="","",SUMIF(الدخول!$B$3:$B$1311,D95,الدخول!$F$3:$F$1311)+SUMIF(الدخول!$B$3:$B$1311,D95,الدخول!$Q$3:$Q$1311)+E95-SUMIF(الدخول!$B$3:$B$1311,D95,الدخول!$K$3:$K$1311)) ->  | I95: =IF(F95="","",SUMIF(الدخول!$B$3:$B$1311,D95,الدخول!$G$3:$G$1311)+SUMIF(الدخول!$B$3:$B$1311,D95,الدخول!$R$3:$R$1311)+F95-SUMIF(الدخول!$B$3:$B$1311,D95,الدخول!$L$3:$L$1311)) ->  | J95: =IF(G95="","",SUMIF(الدخول!$B$3:$B$1311,D95,الدخول!$I$3:$I$1311)+SUMIF(الدخول!$B$3:$B$1311,D95,الدخول!$T$3:$T$1311)+G95-SUMIF(الدخول!$B$3:$B$1311,D95,الدخول!$N$3:$N$1311)) -> 
A96: بينك | B96: ووفين فستون | C96: 1cm | D96: بينك ووفين فستون 1cm | H96: =IF(E96="","",SUMIF(الدخول!$B$3:$B$1311,D96,الدخول!$F$3:$F$1311)+SUMIF(الدخول!$B$3:$B$1311,D96,الدخول!$Q$3:$Q$1311)+E96-SUMIF(الدخول!$B$3:$B$1311,D96,الدخول!$K$3:$K$1311)) ->  | I96: =IF(F96="","",SUMIF(الدخول!$B$3:$B$1311,D96,الدخول!$G$3:$G$1311)+SUMIF(الدخول!$B$3:$B$1311,D96,الدخول!$R$3:$R$1311)+F96-SUMIF(الدخول!$B$3:$B$1311,D96,الدخول!$L$3:$L$1311)) ->  | J96: =IF(G96="","",SUMIF(الدخول!$B$3:$B$1311,D96,الدخول!$I$3:$I$1311)+SUMIF(الدخول!$B$3:$B$1311,D96,الدخول!$T$3:$T$1311)+G96-SUMIF(الدخول!$B$3:$B$1311,D96,الدخول!$N$3:$N$1311)) -> 
A97: بينك | B97: ووفين فستون | C97: 1.3cm | D97: بينك ووفين فستون 1.3cm | H97: =IF(E97="","",SUMIF(الدخول!$B$3:$B$1311,D97,الدخول!$F$3:$F$1311)+SUMIF(الدخول!$B$3:$B$1311,D97,الدخول!$Q$3:$Q$1311)+E97-SUMIF(الدخول!$B$3:$B$1311,D97,الدخول!$K$3:$K$1311)) ->  | I97: =IF(F97="","",SUMIF(الدخول!$B$3:$B$1311,D97,الدخول!$G$3:$G$1311)+SUMIF(الدخول!$B$3:$B$1311,D97,الدخول!$R$3:$R$1311)+F97-SUMIF(الدخول!$B$3:$B$1311,D97,الدخول!$L$3:$L$1311)) ->  | J97: =IF(G97="","",SUMIF(الدخول!$B$3:$B$1311,D97,الدخول!$I$3:$I$1311)+SUMIF(الدخول!$B$3:$B$1311,D97,الدخول!$T$3:$T$1311)+G97-SUMIF(الدخول!$B$3:$B$1311,D97,الدخول!$N$3:$N$1311)) -> 
A98: رصاصي استريب | B98: كروشيه | C98: 3cm | D98: رصاصي استريب كروشيه 3cm | H98: =IF(E98="","",SUMIF(الدخول!$B$3:$B$1311,D98,الدخول!$F$3:$F$1311)+SUMIF(الدخول!$B$3:$B$1311,D98,الدخول!$Q$3:$Q$1311)+E98-SUMIF(الدخول!$B$3:$B$1311,D98,الدخول!$K$3:$K$1311)) ->  | I98: =IF(F98="","",SUMIF(الدخول!$B$3:$B$1311,D98,الدخول!$G$3:$G$1311)+SUMIF(الدخول!$B$3:$B$1311,D98,الدخول!$R$3:$R$1311)+F98-SUMIF(الدخول!$B$3:$B$1311,D98,الدخول!$L$3:$L$1311)) ->  | J98: =IF(G98="","",SUMIF(الدخول!$B$3:$B$1311,D98,الدخول!$I$3:$I$1311)+SUMIF(الدخول!$B$3:$B$1311,D98,الدخول!$T$3:$T$1311)+G98-SUMIF(الدخول!$B$3:$B$1311,D98,الدخول!$N$3:$N$1311)) -> 
A99: زهري | B99: كورد | C99: مبطط | D99: زهري كورد مبطط | H99: =IF(E99="","",SUMIF(الدخول!$B$3:$B$1311,D99,الدخول!$F$3:$F$1311)+SUMIF(الدخول!$B$3:$B$1311,D99,الدخول!$Q$3:$Q$1311)+E99-SUMIF(الدخول!$B$3:$B$1311,D99,الدخول!$K$3:$K$1311)) ->  | I99: =IF(F99="","",SUMIF(الدخول!$B$3:$B$1311,D99,الدخول!$G$3:$G$1311)+SUMIF(الدخول!$B$3:$B$1311,D99,الدخول!$R$3:$R$1311)+F99-SUMIF(الدخول!$B$3:$B$1311,D99,الدخول!$L$3:$L$1311)) ->  | J99: =IF(G99="","",SUMIF(الدخول!$B$3:$B$1311,D99,الدخول!$I$3:$I$1311)+SUMIF(الدخول!$B$3:$B$1311,D99,الدخول!$T$3:$T$1311)+G99-SUMIF(الدخول!$B$3:$B$1311,D99,الدخول!$N$3:$N$1311)) -> 
A100: شاركول | B100: كورد | C100: مبطط | D100: شاركول كورد مبطط | H100: =IF(E100="","",SUMIF(الدخول!$B$3:$B$1311,D100,الدخول!$F$3:$F$1311)+SUMIF(الدخول!$B$3:$B$1311,D100,الدخول!$Q$3:$Q$1311)+E100-SUMIF(الدخول!$B$3:$B$1311,D100,الدخول!$K$3:$K$1311)) ->  | I100: =IF(F100="","",SUMIF(الدخول!$B$3:$B$1311,D100,الدخول!$G$3:$G$1311)+SUMIF(الدخول!$B$3:$B$1311,D100,الدخول!$R$3:$R$1311)+F100-SUMIF(الدخول!$B$3:$B$1311,D100,الدخول!$L$3:$L$1311)) ->  | J100: =IF(G100="","",SUMIF(الدخول!$B$3:$B$1311,D100,الدخول!$I$3:$I$1311)+SUMIF(الدخول!$B$3:$B$1311,D100,الدخول!$T$3:$T$1311)+G100-SUMIF(الدخول!$B$3:$B$1311,D100,الدخول!$N$3:$N$1311)) -> 
A101: موف غامق | B101: كروشيه | C101: 1.6cm | D101: موف غامق كروشيه 1.6cm | H101: =IF(E101="","",SUMIF(الدخول!$B$3:$B$1311,D101,الدخول!$F$3:$F$1311)+SUMIF(الدخول!$B$3:$B$1311,D101,الدخول!$Q$3:$Q$1311)+E101-SUMIF(الدخول!$B$3:$B$1311,D101,الدخول!$K$3:$K$1311)) ->  | I101: =IF(F101="","",SUMIF(الدخول!$B$3:$B$1311,D101,الدخول!$G$3:$G$1311)+SUMIF(الدخول!$B$3:$B$1311,D101,الدخول!$R$3:$R$1311)+F101-SUMIF(الدخول!$B$3:$B$1311,D101,الدخول!$L$3:$L$1311)) ->  | J101: =IF(G101="","",SUMIF(الدخول!$B$3:$B$1311,D101,الدخول!$I$3:$I$1311)+SUMIF(الدخول!$B$3:$B$1311,D101,الدخول!$T$3:$T$1311)+G101-SUMIF(الدخول!$B$3:$B$1311,D101,الدخول!$N$3:$N$1311)) -> 
B102: كروشيه | C102: 1.8cm | D102: كروشيه 1.8cm | H102: =IF(E102="","",SUMIF(الدخول!$B$3:$B$1311,D102,الدخول!$F$3:$F$1311)+SUMIF(الدخول!$B$3:$B$1311,D102,الدخول!$Q$3:$Q$1311)+E102-SUMIF(الدخول!$B$3:$B$1311,D102,الدخول!$K$3:$K$1311)) ->  | I102: =IF(F102="","",SUMIF(الدخول!$B$3:$B$1311,D102,الدخول!$G$3:$G$1311)+SUMIF(الدخول!$B$3:$B$1311,D102,الدخول!$R$3:$R$1311)+F102-SUMIF(الدخول!$B$3:$B$1311,D102,الدخول!$L$3:$L$1311)) ->  | J102: =IF(G102="","",SUMIF(الدخول!$B$3:$B$1311,D102,الدخول!$I$3:$I$1311)+SUMIF(الدخول!$B$3:$B$1311,D102,الدخول!$T$3:$T$1311)+G102-SUMIF(الدخول!$B$3:$B$1311,D102,الدخول!$N$3:$N$1311)) -> 
B103: كروشيه | C103: 1.9cm | D103: كروشيه 1.9cm | H103: =IF(E103="","",SUMIF(الدخول!$B$3:$B$1311,D103,الدخول!$F$3:$F$1311)+SUMIF(الدخول!$B$3:$B$1311,D103,الدخول!$Q$3:$Q$1311)+E103-SUMIF(الدخول!$B$3:$B$1311,D103,الدخول!$K$3:$K$1311)) ->  | I103: =IF(F103="","",SUMIF(الدخول!$B$3:$B$1311,D103,الدخول!$G$3:$G$1311)+SUMIF(الدخول!$B$3:$B$1311,D103,الدخول!$R$3:$R$1311)+F103-SUMIF(الدخول!$B$3:$B$1311,D103,الدخول!$L$3:$L$1311)) ->  | J103: =IF(G103="","",SUMIF(الدخول!$B$3:$B$1311,D103,الدخول!$I$3:$I$1311)+SUMIF(الدخول!$B$3:$B$1311,D103,الدخول!$T$3:$T$1311)+G103-SUMIF(الدخول!$B$3:$B$1311,D103,الدخول!$N$3:$N$1311)) -> 
A104: موف فاتح | B104: كروشيه | C104: 4.6 | D104: موف فاتح كروشيه 4,6 | H104: =IF(E104="","",SUMIF(الدخول!$B$3:$B$1311,D104,الدخول!$F$3:$F$1311)+SUMIF(الدخول!$B$3:$B$1311,D104,الدخول!$Q$3:$Q$1311)+E104-SUMIF(الدخول!$B$3:$B$1311,D104,الدخول!$K$3:$K$1311)) ->  | I104: =IF(F104="","",SUMIF(الدخول!$B$3:$B$1311,D104,الدخول!$G$3:$G$1311)+SUMIF(الدخول!$B$3:$B$1311,D104,الدخول!$R$3:$R$1311)+F104-SUMIF(الدخول!$B$3:$B$1311,D104,الدخول!$L$3:$L$1311)) ->  | J104: =IF(G104="","",SUMIF(الدخول!$B$3:$B$1311,D104,الدخول!$I$3:$I$1311)+SUMIF(الدخول!$B$3:$B$1311,D104,الدخول!$T$3:$T$1311)+G104-SUMIF(الدخول!$B$3:$B$1311,D104,الدخول!$N$3:$N$1311)) -> 
H105: =IF(E105="","",SUMIF(الدخول!$B$3:$B$1311,D105,الدخول!$F$3:$F$1311)+SUMIF(الدخول!$B$3:$B$1311,D105,الدخول!$Q$3:$Q$1311)+E105-SUMIF(الدخول!$B$3:$B$1311,D105,الدخول!$K$3:$K$1311)) ->  | I105: =IF(F105="","",SUMIF(الدخول!$B$3:$B$1311,D105,الدخول!$G$3:$G$1311)+SUMIF(الدخول!$B$3:$B$1311,D105,الدخول!$R$3:$R$1311)+F105-SUMIF(الدخول!$B$3:$B$1311,D105,الدخول!$L$3:$L$1311)) ->  | J105: =IF(G105="","",SUMIF(الدخول!$B$3:$B$1311,D105,الدخول!$I$3:$I$1311)+SUMIF(الدخول!$B$3:$B$1311,D105,الدخول!$T$3:$T$1311)+G105-SUMIF(الدخول!$B$3:$B$1311,D105,الدخول!$N$3:$N$1311)) -> 
H106: =IF(E106="","",SUMIF(الدخول!$B$3:$B$1311,D106,الدخول!$F$3:$F$1311)+SUMIF(الدخول!$B$3:$B$1311,D106,الدخول!$Q$3:$Q$1311)+E106-SUMIF(الدخول!$B$3:$B$1311,D106,الدخول!$K$3:$K$1311)) ->  | I106: =IF(F106="","",SUMIF(الدخول!$B$3:$B$1311,D106,الدخول!$G$3:$G$1311)+SUMIF(الدخول!$B$3:$B$1311,D106,الدخول!$R$3:$R$1311)+F106-SUMIF(الدخول!$B$3:$B$1311,D106,الدخول!$L$3:$L$1311)) ->  | J106: =IF(G106="","",SUMIF(الدخول!$B$3:$B$1311,D106,الدخول!$I$3:$I$1311)+SUMIF(الدخول!$B$3:$B$1311,D106,الدخول!$T$3:$T$1311)+G106-SUMIF(الدخول!$B$3:$B$1311,D106,الدخول!$N$3:$N$1311)) -> 
H107: =IF(E107="","",SUMIF(الدخول!$B$3:$B$1311,D107,الدخول!$F$3:$F$1311)+SUMIF(الدخول!$B$3:$B$1311,D107,الدخول!$Q$3:$Q$1311)+E107-SUMIF(الدخول!$B$3:$B$1311,D107,الدخول!$K$3:$K$1311)) ->  | I107: =IF(F107="","",SUMIF(الدخول!$B$3:$B$1311,D107,الدخول!$G$3:$G$1311)+SUMIF(الدخول!$B$3:$B$1311,D107,الدخول!$R$3:$R$1311)+F107-SUMIF(الدخول!$B$3:$B$1311,D107,الدخول!$L$3:$L$1311)) ->  | J107: =IF(G107="","",SUMIF(الدخول!$B$3:$B$1311,D107,الدخول!$I$3:$I$1311)+SUMIF(الدخول!$B$3:$B$1311,D107,الدخول!$T$3:$T$1311)+G107-SUMIF(الدخول!$B$3:$B$1311,D107,الدخول!$N$3:$N$1311)) -> 
H108: =IF(E108="","",SUMIF(الدخول!$B$3:$B$1311,D108,الدخول!$F$3:$F$1311)+SUMIF(الدخول!$B$3:$B$1311,D108,الدخول!$Q$3:$Q$1311)+E108-SUMIF(الدخول!$B$3:$B$1311,D108,الدخول!$K$3:$K$1311)) ->  | I108: =IF(F108="","",SUMIF(الدخول!$B$3:$B$1311,D108,الدخول!$G$3:$G$1311)+SUMIF(الدخول!$B$3:$B$1311,D108,الدخول!$R$3:$R$1311)+F108-SUMIF(الدخول!$B$3:$B$1311,D108,الدخول!$L$3:$L$1311)) ->  | J108: =IF(G108="","",SUMIF(الدخول!$B$3:$B$1311,D108,الدخول!$I$3:$I$1311)+SUMIF(الدخول!$B$3:$B$1311,D108,الدخول!$T$3:$T$1311)+G108-SUMIF(الدخول!$B$3:$B$1311,D108,الدخول!$N$3:$N$1311)) -> 
H109: =IF(E109="","",SUMIF(الدخول!$B$3:$B$1311,D109,الدخول!$F$3:$F$1311)+SUMIF(الدخول!$B$3:$B$1311,D109,الدخول!$Q$3:$Q$1311)+E109-SUMIF(الدخول!$B$3:$B$1311,D109,الدخول!$K$3:$K$1311)) ->  | I109: =IF(F109="","",SUMIF(الدخول!$B$3:$B$1311,D109,الدخول!$G$3:$G$1311)+SUMIF(الدخول!$B$3:$B$1311,D109,الدخول!$R$3:$R$1311)+F109-SUMIF(الدخول!$B$3:$B$1311,D109,الدخول!$L$3:$L$1311)) ->  | J109: =IF(G109="","",SUMIF(الدخول!$B$3:$B$1311,D109,الدخول!$I$3:$I$1311)+SUMIF(الدخول!$B$3:$B$1311,D109,الدخول!$T$3:$T$1311)+G109-SUMIF(الدخول!$B$3:$B$1311,D109,الدخول!$N$3:$N$1311)) -> 
H110: =IF(E110="","",SUMIF(الدخول!$B$3:$B$1311,D110,الدخول!$F$3:$F$1311)+SUMIF(الدخول!$B$3:$B$1311,D110,الدخول!$Q$3:$Q$1311)+E110-SUMIF(الدخول!$B$3:$B$1311,D110,الدخول!$K$3:$K$1311)) ->  | I110: =IF(F110="","",SUMIF(الدخول!$B$3:$B$1311,D110,الدخول!$G$3:$G$1311)+SUMIF(الدخول!$B$3:$B$1311,D110,الدخول!$R$3:$R$1311)+F110-SUMIF(الدخول!$B$3:$B$1311,D110,الدخول!$L$3:$L$1311)) ->  | J110: =IF(G110="","",SUMIF(الدخول!$B$3:$B$1311,D110,الدخول!$I$3:$I$1311)+SUMIF(الدخول!$B$3:$B$1311,D110,الدخول!$T$3:$T$1311)+G110-SUMIF(الدخول!$B$3:$B$1311,D110,الدخول!$N$3:$N$1311)) -> 
H111: =IF(E111="","",SUMIF(الدخول!$B$3:$B$1311,D111,الدخول!$F$3:$F$1311)+SUMIF(الدخول!$B$3:$B$1311,D111,الدخول!$Q$3:$Q$1311)+E111-SUMIF(الدخول!$B$3:$B$1311,D111,الدخول!$K$3:$K$1311)) ->  | I111: =IF(F111="","",SUMIF(الدخول!$B$3:$B$1311,D111,الدخول!$G$3:$G$1311)+SUMIF(الدخول!$B$3:$B$1311,D111,الدخول!$R$3:$R$1311)+F111-SUMIF(الدخول!$B$3:$B$1311,D111,الدخول!$L$3:$L$1311)) ->  | J111: =IF(G111="","",SUMIF(الدخول!$B$3:$B$1311,D111,الدخول!$I$3:$I$1311)+SUMIF(الدخول!$B$3:$B$1311,D111,الدخول!$T$3:$T$1311)+G111-SUMIF(الدخول!$B$3:$B$1311,D111,الدخول!$N$3:$N$1311)) -> 
H112: =IF(E112="","",SUMIF(الدخول!$B$3:$B$1311,D112,الدخول!$F$3:$F$1311)+SUMIF(الدخول!$B$3:$B$1311,D112,الدخول!$Q$3:$Q$1311)+E112-SUMIF(الدخول!$B$3:$B$1311,D112,الدخول!$K$3:$K$1311)) ->  | I112: =IF(F112="","",SUMIF(الدخول!$B$3:$B$1311,D112,الدخول!$G$3:$G$1311)+SUMIF(الدخول!$B$3:$B$1311,D112,الدخول!$R$3:$R$1311)+F112-SUMIF(الدخول!$B$3:$B$1311,D112,الدخول!$L$3:$L$1311)) ->  | J112: =IF(G112="","",SUMIF(الدخول!$B$3:$B$1311,D112,الدخول!$I$3:$I$1311)+SUMIF(الدخول!$B$3:$B$1311,D112,الدخول!$T$3:$T$1311)+G112-SUMIF(الدخول!$B$3:$B$1311,D112,الدخول!$N$3:$N$1311)) -> 
H113: =IF(E113="","",SUMIF(الدخول!$B$3:$B$1311,D113,الدخول!$F$3:$F$1311)+SUMIF(الدخول!$B$3:$B$1311,D113,الدخول!$Q$3:$Q$1311)+E113-SUMIF(الدخول!$B$3:$B$1311,D113,الدخول!$K$3:$K$1311)) ->  | I113: =IF(F113="","",SUMIF(الدخول!$B$3:$B$1311,D113,الدخول!$G$3:$G$1311)+SUMIF(الدخول!$B$3:$B$1311,D113,الدخول!$R$3:$R$1311)+F113-SUMIF(الدخول!$B$3:$B$1311,D113,الدخول!$L$3:$L$1311)) ->  | J113: =IF(G113="","",SUMIF(الدخول!$B$3:$B$1311,D113,الدخول!$I$3:$I$1311)+SUMIF(الدخول!$B$3:$B$1311,D113,الدخول!$T$3:$T$1311)+G113-SUMIF(الدخول!$B$3:$B$1311,D113,الدخول!$N$3:$N$1311)) -> 
H114: =IF(E114="","",SUMIF(الدخول!$B$3:$B$1311,D114,الدخول!$F$3:$F$1311)+SUMIF(الدخول!$B$3:$B$1311,D114,الدخول!$Q$3:$Q$1311)+E114-SUMIF(الدخول!$B$3:$B$1311,D114,الدخول!$K$3:$K$1311)) ->  | I114: =IF(F114="","",SUMIF(الدخول!$B$3:$B$1311,D114,الدخول!$G$3:$G$1311)+SUMIF(الدخول!$B$3:$B$1311,D114,الدخول!$R$3:$R$1311)+F114-SUMIF(الدخول!$B$3:$B$1311,D114,الدخول!$L$3:$L$1311)) ->  | J114: =IF(G114="","",SUMIF(الدخول!$B$3:$B$1311,D114,الدخول!$I$3:$I$1311)+SUMIF(الدخول!$B$3:$B$1311,D114,الدخول!$T$3:$T$1311)+G114-SUMIF(الدخول!$B$3:$B$1311,D114,الدخول!$N$3:$N$1311)) -> 
H115: =IF(E115="","",SUMIF(الدخول!$B$3:$B$1311,D115,الدخول!$F$3:$F$1311)+SUMIF(الدخول!$B$3:$B$1311,D115,الدخول!$Q$3:$Q$1311)+E115-SUMIF(الدخول!$B$3:$B$1311,D115,الدخول!$K$3:$K$1311)) ->  | I115: =IF(F115="","",SUMIF(الدخول!$B$3:$B$1311,D115,الدخول!$G$3:$G$1311)+SUMIF(الدخول!$B$3:$B$1311,D115,الدخول!$R$3:$R$1311)+F115-SUMIF(الدخول!$B$3:$B$1311,D115,الدخول!$L$3:$L$1311)) ->  | J115: =IF(G115="","",SUMIF(الدخول!$B$3:$B$1311,D115,الدخول!$I$3:$I$1311)+SUMIF(الدخول!$B$3:$B$1311,D115,الدخول!$T$3:$T$1311)+G115-SUMIF(الدخول!$B$3:$B$1311,D115,الدخول!$N$3:$N$1311)) -> 

Sheet الدخول
A1: التاريخ | B1: اللون | C1: رصيد ختامي بالكيلو | D1: رصيد ختامي بالمتر | E1: رصيد ختامي بالقطع | F1: أضافة | H1: وزن المتر | I1: اجمالي القطع | J1: رقم اذن اضافة | K1: صرف | M1: وزن المتر | N1: اجمالي القطع | O1: رقم اذن صرف | P1: جرد | Q1: مرتجع | S1: وزن المتر | T1: اجمالي القطع | U1: رقم اذن المرتجع | V1: ملاحظات | CI1: combobox1
F2: كيلو | G2: متر | K2: كيلو | L2: متر | Q2: كيلو | R2: متر
A3: 2023-07-10T12:32:48 | B3: ابيض كروشيه 5.8cm | C3: =IF(B3="","",SUMIF('الرصيد الثابت'!$D$2:$D$115,B3,'الرصيد الثابت'!$H$2:$H$115)) -> 1005 | D3: =IF(B3="","",SUMIF('الرصيد الثابت'!$D$2:$D$115,B3,'الرصيد الثابت'!$I$2:$I$115)) -> 3332 | E3: =IF(B3="","",SUMIF('الرصيد الثابت'!$D$2:$D$115,B3,'الرصيد الثابت'!$J$2:$J$115)) -> 15018 | F3: 1 | G3: =SUM(H3*F3) -> 2 | H3: 2 | I3: 3 | J3: 500 | K3: 5 | L3: =SUM(M3*K3) -> 30 | M3: 6 | N3: 7 | O3: 8 | Q3: 9 | R3: =SUM(S3*Q3) -> 360 | S3: 40 | T3: 22 | U3: 55 | CF3: =IFERROR(VLOOKUP(ROWS($CF$3:CF3),$CH$3:$CI$2001,2,FALSE),"") -> ابيض كروشيه 5.8cm | CG3: =OFFSET($CF$3,,,COUNTIF($CF$3:CF2001,"?*")) -> ابيض كروشيه 5.8cm | CH3: =IF(ISNUMBER(SEARCH(B3,CI3)),MAX($CH$2:CH2)+1,0) -> 1 | CI3: ابيض كروشيه 5.8cm
A4: 2023-07-10T12:32:51 | B4: ابيض كروشيه 5.5cm | C4: =IF(B4="","",SUMIF('الرصيد الثابت'!$D$2:$D$115,B4,'الرصيد الثابت'!$H$2:$H$115)) -> 9051 | D4: =IF(B4="","",SUMIF('الرصيد الثابت'!$D$2:$D$115,B4,'الرصيد الثابت'!$I$2:$I$115)) -> 3847 | E4: =IF(B4="","",SUMIF('الرصيد الثابت'!$D$2:$D$115,B4,'الرصيد الثابت'!$J$2:$J$115)) -> 5047 | F4: 1 | G4: 2 | H4: 2 | I4: 3 | J4: 2000 | K4: 5 | L4: 30 | M4: 6 | N4: 7 | O4: 8 | Q4: 55 | R4: =SUM(S4*Q4) -> 1375 | S4: 25 | T4: 51 | U4: 152 | CF4: =IFERROR(VLOOKUP(ROWS($CF$3:CF4),$CH$3:$CI$2001,2,FALSE),"") -> ابيض كروشيه 5.5cm | CH4: =IF(ISNUMBER(SEARCH(B4,CI4)),MAX($CH$2:CH3)+1,0) -> 2 | CI4: ابيض كروشيه 5.5cm
A5: 2023-07-10T12:32:56 | B5: ابيض كروشيه 5cm | C5: =IF(B5="","",SUMIF('الرصيد الثابت'!$D$2:$D$115,B5,'الرصيد الثابت'!$H$2:$H$115)) -> 6005 | D5: =IF(B5="","",SUMIF('الرصيد الثابت'!$D$2:$D$115,B5,'الرصيد الثابت'!$I$2:$I$115)) -> 4015 | E5: =IF(B5="","",SUMIF('الرصيد الثابت'!$D$2:$D$115,B5,'الرصيد الثابت'!$J$2:$J$115)) -> 310 | F5: 5 | G5: 15 | H5: 3 | I5: 10 | J5: 2001 | L5: 0 | R5: =SUM(S5*Q5) -> 0 | CF5: =IFERROR(VLOOKUP(ROWS($CF$3:CF5),$CH$3:$CI$2001,2,FALSE),"") -> ابيض كروشيه 5cm | CH5: =IF(ISNUMBER(SEARCH(B5,CI5)),MAX($CH$2:CH4)+1,0) -> 0 | CI5: ابيض كروشيه 5.3cm
A6: 2023-07-10T12:33:43 | B6: ابيض كروشيه 5cm | C6: =IF(B6="","",SUMIF('الرصيد الثابت'!$D$2:$D$115,B6,'الرصيد الثابت'!$H$2:$H$115)) -> 6005 | D6: =IF(B6="","",SUMIF('الرصيد الثابت'!$D$2:$D$115,B6,'الرصيد الثابت'!$I$2:$I$115)) -> 4015 | E6: =IF(B6="","",SUMIF('الرصيد الثابت'!$D$2:$D$115,B6,'الرصيد الثابت'!$J$2:$J$115)) -> 310 | G6: 0 | L6: 0 | R6: =SUM(S6*Q6) -> 0 | CF6: =IFERROR(VLOOKUP(ROWS($CF$3:CF6),$CH$3:$CI$2001,2,FALSE),"") -> ابيض كروشيه 3.5cm | CH6: =IF(ISNUMBER(SEARCH(B6,CI6)),MAX($CH$2:CH5)+1,0) -> 3 | CI6: ابيض كروشيه 5cm
A7: 2023-07-10T12:33:48 | B7: ابيض كروشيه 5.8cm | C7: =IF(B7="","",SUMIF('الرصيد الثابت'!$D$2:$D$115,B7,'الرصيد الثابت'!$H$2:$H$115)) -> 1005 | D7: =IF(B7="","",SUMIF('الرصيد الثابت'!$D$2:$D$115,B7,'الرصيد الثابت'!$I$2:$I$115)) -> 3332 | E7: =IF(B7="","",SUMIF('الرصيد الثابت'!$D$2:$D$115,B7,'الرصيد الثابت'!$J$2:$J$115)) -> 15018 | G7: 0 | L7: 0 | R7: =SUM(S7*Q7) -> 0 | CF7: =IFERROR(VLOOKUP(ROWS($CF$3:CF7),$CH$3:$CI$2001,2,FALSE),"") -> ابيض كروشيه 3.2cm | CH7: =IF(ISNUMBER(SEARCH(B7,CI7)),MAX($CH$2:CH6)+1,0) -> 0 | CI7: ابيض كروشيه 4.5cm
A8: 2023-07-10T12:33:35 | B8: ابيض كروشيه 4.5cm | C8: =IF(B8="","",SUMIF('الرصيد الثابت'!$D$2:$D$115,B8,'الرصيد الثابت'!$H$2:$H$115)) -> 0 | D8: =IF(B8="","",SUMIF('الرصيد الثابت'!$D$2:$D$115,B8,'الرصيد الثابت'!$I$2:$I$115)) -> 0 | E8: =IF(B8="","",SUMIF('الرصيد الثابت'!$D$2:$D$115,B8,'الرصيد الثابت'!$J$2:$J$115)) -> 0 | G8: 0 | L8: 0 | R8: =SUM(S8*Q8) -> 0 | CF8: =IFERROR(VLOOKUP(ROWS($CF$3:CF8),$CH$3:$CI$2001,2,FALSE),"") -> ابيض كروشيه 3cm | CH8: =IF(ISNUMBER(SEARCH(B8,CI8)),MAX($CH$2:CH7)+1,0) -> 0 | CI8: ابيض كروشيه 4cm
C9: =IF(B9="","",SUMIF('الرصيد الثابت'!$D$2:$D$115,B9,'الرصيد الثابت'!$H$2:$H$115)) ->  | D9: =IF(B9="","",SUMIF('الرصيد الثابت'!$D$2:$D$115,B9,'الرصيد الثابت'!$I$2:$I$115)) ->  | E9: =IF(B9="","",SUMIF('الرصيد الثابت'!$D$2:$D$115,B9,'الرصيد الثابت'!$J$2:$J$115)) ->  | G9: 0 | L9: 0 | R9: 0 | CF9: =IFERROR(VLOOKUP(ROWS($CF$3:CF9),$CH$3:$CI$2001,2,FALSE),"") -> ابيض كروشيه 2.2cm | CH9: =IF(ISNUMBER(SEARCH(B9,CI9)),MAX($CH$2:CH8)+1,0) -> 4 | CI9: ابيض كروشيه 3.5cm
C10: =IF(B10="","",SUMIF('الرصيد الثابت'!$D$2:$D$115,B10,'الرصيد الثابت'!$H$2:$H$115)) ->  | D10: =IF(B10="","",SUMIF('الرصيد الثابت'!$D$2:$D$115,B10,'الرصيد الثابت'!$I$2:$I$115)) ->  | E10: =IF(B10="","",SUMIF('الرصيد الثابت'!$D$2:$D$115,B10,'الرصيد الثابت'!$J$2:$J$115)) ->  | G10: 0 | L10: 0 | R10: 0 | CF10: =IFERROR(VLOOKUP(ROWS($CF$3:CF10),$CH$3:$CI$2001,2,FALSE),"") -> ابيض كروشيه 2cm | CH10: =IF(ISNUMBER(SEARCH(B10,CI10)),MAX($CH$2:CH9)+1,0) -> 5 | CI10: ابيض كروشيه 3.2cm
C11: =IF(B11="","",SUMIF('الرصيد الثابت'!$D$2:$D$115,B11,'الرصيد الثابت'!$H$2:$H$115)) ->  | D11: =IF(B11="","",SUMIF('الرصيد الثابت'!$D$2:$D$115,B11,'الرصيد الثابت'!$I$2:$I$115)) ->  | G11: 0 | L11: 0 | P11: =SUM(F11-K11) -> 0 | R11: 0 | CF11: =IFERROR(VLOOKUP(ROWS($CF$3:CF11),$CH$3:$CI$2001,2,FALSE),"") -> ابيض كروشيه 1.5cm | CH11: =IF(ISNUMBER(SEARCH(B11,CI11)),MAX($CH$2:CH10)+1,0) -> 6 | CI11: ابيض كروشيه 3cm
C12: =IF(B12="","",SUMIF('الرصيد الثابت'!$D$2:$D$115,B12,'الرصيد الثابت'!$H$2:$H$115)) ->  | D12: =IF(B12="","",SUMIF('الرصيد الثابت'!$D$2:$D$115,B12,'الرصيد الثابت'!$I$2:$I$115)) ->  | E12: =IF(B12="","",SUMIF('الرصيد الثابت'!$D$2:$D$115,B12,'الرصيد الثابت'!$J$2:$J$115)) ->  | G12: 0 | L12: 0 | P12: 0 | R12: 0 | CF12: =IFERROR(VLOOKUP(ROWS($CF$3:CF12),$CH$3:$CI$2001,2,FALSE),"") -> ابيض كروشيه 1.2cm | CH12: =IF(ISNUMBER(SEARCH(B12,CI12)),MAX($CH$2:CH11)+1,0) -> 7 | CI12: ابيض كروشيه 2.2cm
C13: =IF(B13="","",SUMIF('الرصيد الثابت'!$D$2:$D$115,B13,'الرصيد الثابت'!$H$2:$H$115)) ->  | D13: =IF(B13="","",SUMIF('الرصيد الثابت'!$D$2:$D$115,B13,'الرصيد الثابت'!$I$2:$I$115)) ->  | E13: =IF(B13="","",SUMIF('الرصيد الثابت'!$D$2:$D$115,B13,'الرصيد الثابت'!$J$2:$J$115)) ->  | G13: 0 | L13: 0 | P13: 0 | R13: 0 | CF13: =IFERROR(VLOOKUP(ROWS($CF$3:CF13),$CH$3:$CI$2001,2,FALSE),"") -> ابيض كروشيه 1cm | CH13: =IF(ISNUMBER(SEARCH(B13,CI13)),MAX($CH$2:CH12)+1,0) -> 8 | CI13: ابيض كروشيه 2cm
C14: =IF(B14="","",SUMIF('الرصيد الثابت'!$D$2:$D$115,B14,'الرصيد الثابت'!$H$2:$H$115)) ->  | D14: =IF(B14="","",SUMIF('الرصيد الثابت'!$D$2:$D$115,B14,'الرصيد الثابت'!$I$2:$I$115)) ->  | E14: =IF(B14="","",SUMIF('الرصيد الثابت'!$D$2:$D$115,B14,'الرصيد الثابت'!$J$2:$J$115)) ->  | G14: 0 | L14: 0 | P14: 0 | R14: 0 | CF14: =IFERROR(VLOOKUP(ROWS($CF$3:CF14),$CH$3:$CI$2001,2,FALSE),"") -> ابيض كروشيه 8mm | CH14: =IF(ISNUMBER(SEARCH(B14,CI14)),MAX($CH$2:CH13)+1,0) -> 9 | CI14: ابيض كروشيه 1.5cm
C15: =IF(B15="","",SUMIF('الرصيد الثابت'!$D$2:$D$115,B15,'الرصيد الثابت'!$H$2:$H$115)) ->  | D15: =IF(B15="","",SUMIF('الرصيد الثابت'!$D$2:$D$115,B15,'الرصيد الثابت'!$I$2:$I$115)) ->  | E15: =IF(B15="","",SUMIF('الرصيد الثابت'!$D$2:$D$115,B15,'الرصيد الثابت'!$J$2:$J$115)) ->  | G15: 0 | L15: 0 | P15: 0 | R15: 0 | CF15: =IFERROR(VLOOKUP(ROWS($CF$3:CF15),$CH$3:$CI$2001,2,FALSE),"") -> ابيض كروشيه 7mm | CH15: =IF(ISNUMBER(SEARCH(B15,CI15)),MAX($CH$2:CH14)+1,0) -> 10 | CI15: ابيض كروشيه 1.2cm
C16: =IF(B16="","",SUMIF('الرصيد الثابت'!$D$2:$D$115,B16,'الرصيد الثابت'!$H$2:$H$115)) ->  | D16: =IF(B16="","",SUMIF('الرصيد الثابت'!$D$2:$D$115,B16,'الرصيد الثابت'!$I$2:$I$115)) ->  | E16: =IF(B16="","",SUMIF('الرصيد الثابت'!$D$2:$D$115,B16,'الرصيد الثابت'!$J$2:$J$115)) ->  | G16: 0 | L16: 0 | P16: 0 | R16: 0 | CF16: =IFERROR(VLOOKUP(ROWS($CF$3:CF16),$CH$3:$CI$2001,2,FALSE),"") -> ابيض كروشيه 6mm | CH16: =IF(ISNUMBER(SEARCH(B16,CI16)),MAX($CH$2:CH15)+1,0) -> 11 | CI16: ابيض كروشيه 1cm
C17: =IF(B17="","",SUMIF('الرصيد الثابت'!$D$2:$D$115,B17,'الرصيد الثابت'!$H$2:$H$115)) ->  | D17: =IF(B17="","",SUMIF('الرصيد الثابت'!$D$2:$D$115,B17,'الرصيد الثابت'!$I$2:$I$115)) ->  | E17: =IF(B17="","",SUMIF('الرصيد الثابت'!$D$2:$D$115,B17,'الرصيد الثابت'!$J$2:$J$115)) ->  | G17: 0 | L17: 0 | P17: 0 | R17: 0 | CF17: =IFERROR(VLOOKUP(ROWS($CF$3:CF17),$CH$3:$CI$2001,2,FALSE),"") -> ابيض كروشيه 5mm | CH17: =IF(ISNUMBER(SEARCH(B17,CI17)),MAX($CH$2:CH16)+1,0) -> 12 | CI17: ابيض كروشيه 8mm
C18: =IF(B18="","",SUMIF('الرصيد الثابت'!$D$2:$D$115,B18,'الرصيد الثابت'!$H$2:$H$115)) ->  | D18: =IF(B18="","",SUMIF('الرصيد الثابت'!$D$2:$D$115,B18,'الرصيد الثابت'!$I$2:$I$115)) ->  | E18: =IF(B18="","",SUMIF('الرصيد الثابت'!$D$2:$D$115,B18,'الرصيد الثابت'!$J$2:$J$115)) ->  | G18: 0 | L18: 0 | P18: 0 | R18: 0 | CF18: =IFERROR(VLOOKUP(ROWS($CF$3:CF18),$CH$3:$CI$2001,2,FALSE),"") -> ابيض كروشيه 2.5cm | CH18: =IF(ISNUMBER(SEARCH(B18,CI18)),MAX($CH$2:CH17)+1,0) -> 13 | CI18: ابيض كروشيه 7mm
C19: =IF(B19="","",SUMIF('الرصيد الثابت'!$D$2:$D$115,B19,'الرصيد الثابت'!$H$2:$H$115)) ->  | D19: =IF(B19="","",SUMIF('الرصيد الثابت'!$D$2:$D$115,B19,'الرصيد الثابت'!$I$2:$I$115)) ->  | E19: =IF(B19="","",SUMIF('الرصيد الثابت'!$D$2:$D$115,B19,'الرصيد الثابت'!$J$2:$J$115)) ->  | G19: 0 | L19: 0 | P19: 0 | R19: 0 | CF19: =IFERROR(VLOOKUP(ROWS($CF$3:CF19),$CH$3:$CI$2001,2,FALSE),"") -> ابيض كروشيه 6.5cm | CH19: =IF(ISNUMBER(SEARCH(B19,CI19)),MAX($CH$2:CH18)+1,0) -> 14 | CI19: ابيض كروشيه 6mm
C20: =IF(B20="","",SUMIF('الرصيد الثابت'!$D$2:$D$115,B20,'الرصيد الثابت'!$H$2:$H$115)) ->  | D20: =IF(B20="","",SUMIF('الرصيد الثابت'!$D$2:$D$115,B20,'الرصيد الثابت'!$I$2:$I$115)) ->  | E20: =IF(B20="","",SUMIF('الرصيد الثابت'!$D$2:$D$115,B20,'الرصيد الثابت'!$J$2:$J$115)) ->  | G20: 0 | L20: 0 | P20: 0 | R20: 0 | CF20: =IFERROR(VLOOKUP(ROWS($CF$3:CF20),$CH$3:$CI$2001,2,FALSE),"") -> ابيض كروشيه 1.8cm | CH20: =IF(ISNUMBER(SEARCH(B20,CI20)),MAX($CH$2:CH19)+1,0) -> 15 | CI20: ابيض كروشيه 5mm
C21: =IF(B21="","",SUMIF('الرصيد الثابت'!$D$2:$D$115,B21,'الرصيد الثابت'!$H$2:$H$115)) ->  | D21: =IF(B21="","",SUMIF('الرصيد الثابت'!$D$2:$D$115,B21,'الرصيد الثابت'!$I$2:$I$115)) ->  | E21: =IF(B21="","",SUMIF('الرصيد الثابت'!$D$2:$D$115,B21,'الرصيد الثابت'!$J$2:$J$115)) ->  | G21: 0 | L21: 0 | P21: 0 | R21: 0 | CF21: =IFERROR(VLOOKUP(ROWS($CF$3:CF21),$CH$3:$CI$2001,2,FALSE),"") -> ابيض كروشيه 1,8 | CH21: =IF(ISNUMBER(SEARCH(B21,CI21)),MAX($CH$2:CH20)+1,0) -> 16 | CI21: ابيض كروشيه 2.5cm
C22: =IF(B22="","",SUMIF('الرصيد الثابت'!$D$2:$D$115,B22,'الرصيد الثابت'!$H$2:$H$115)) ->  | D22: =IF(B22="","",SUMIF('الرصيد الثابت'!$D$2:$D$115,B22,'الرصيد الثابت'!$I$2:$I$115)) ->  | E22: =IF(B22="","",SUMIF('الرصيد الثابت'!$D$2:$D$115,B22,'الرصيد الثابت'!$J$2:$J$115)) ->  | G22: 0 | L22: 0 | P22: 0 | R22: 0 | CF22: =IFERROR(VLOOKUP(ROWS($CF$3:CF22),$CH$3:$CI$2001,2,FALSE),"") -> ابيض كروشيه .8m | CH22: =IF(ISNUMBER(SEARCH(B22,CI22)),MAX($CH$2:CH21)+1,0) -> 17 | CI22: ابيض كروشيه 6.5cm
C23: =IF(B23="","",SUMIF('الرصيد الثابت'!$D$2:$D$115,B23,'الرصيد الثابت'!$H$2:$H$115)) ->  | D23: =IF(B23="","",SUMIF('الرصيد الثابت'!$D$2:$D$115,B23,'الرصيد الثابت'!$I$2:$I$115)) ->  | E23: =IF(B23="","",SUMIF('الرصيد الثابت'!$D$2:$D$115,B23,'الرصيد الثابت'!$J$2:$J$115)) ->  | G23: 0 | L23: 0 | P23: 0 | R23: 0 | CF23: =IFERROR(VLOOKUP(ROWS($CF$3:CF23),$CH$3:$CI$2001,2,FALSE),"") -> ابيض كروشيه 7cm | CH23: =IF(ISNUMBER(SEARCH(B23,CI23)),MAX($CH$2:CH22)+1,0) -> 18 | CI23: ابيض كروشيه 1.8cm
C24: =IF(B24="","",SUMIF('الرصيد الثابت'!$D$2:$D$115,B24,'الرصيد الثابت'!$H$2:$H$115)) ->  | D24: =IF(B24="","",SUMIF('الرصيد الثابت'!$D$2:$D$115,B24,'الرصيد الثابت'!$I$2:$I$115)) ->  | E24: =IF(B24="","",SUMIF('الرصيد الثابت'!$D$2:$D$115,B24,'الرصيد الثابت'!$J$2:$J$115)) ->  | G24: 0 | L24: 0 | P24: 0 | R24: 0 | CF24: =IFERROR(VLOOKUP(ROWS($CF$3:CF24),$CH$3:$CI$2001,2,FALSE),"") -> ابيض كروشيه 6.3cm | CH24: =IF(ISNUMBER(SEARCH(B24,CI24)),MAX($CH$2:CH23)+1,0) -> 19 | CI24: ابيض كروشيه 1,8
C25: =IF(B25="","",SUMIF('الرصيد الثابت'!$D$2:$D$115,B25,'الرصيد الثابت'!$H$2:$H$115)) ->  | D25: =IF(B25="","",SUMIF('الرصيد الثابت'!$D$2:$D$115,B25,'الرصيد الثابت'!$I$2:$I$115)) ->  | E25: =IF(B25="","",SUMIF('الرصيد الثابت'!$D$2:$D$115,B25,'الرصيد الثابت'!$J$2:$J$115)) ->  | G25: 0 | L25: 0 | P25: 0 | R25: 0 | CF25: =IFERROR(VLOOKUP(ROWS($CF$3:CF25),$CH$3:$CI$2001,2,FALSE),"") -> ابيض كروشيه 0.2m | CH25: =IF(ISNUMBER(SEARCH(B25,CI25)),MAX($CH$2:CH24)+1,0) -> 20 | CI25: ابيض كروشيه .8m
C26: =IF(B26="","",SUMIF('الرصيد الثابت'!$D$2:$D$115,B26,'الرصيد الثابت'!$H$2:$H$115)) ->  | D26: =IF(B26="","",SUMIF('الرصيد الثابت'!$D$2:$D$115,B26,'الرصيد الثابت'!$I$2:$I$115)) ->  | E26: =IF(B26="","",SUMIF('الرصيد الثابت'!$D$2:$D$115,B26,'الرصيد الثابت'!$J$2:$J$115)) ->  | G26: 0 | L26: 0 | P26: 0 | R26: 0 | CF26: =IFERROR(VLOOKUP(ROWS($CF$3:CF26),$CH$3:$CI$2001,2,FALSE),"") -> ابيض كروشيه .5m | CH26: =IF(ISNUMBER(SEARCH(B26,CI26)),MAX($CH$2:CH25)+1,0) -> 21 | CI26: ابيض كروشيه 7cm
C27: =IF(B27="","",SUMIF('الرصيد الثابت'!$D$2:$D$115,B27,'الرصيد الثابت'!$H$2:$H$115)) ->  | D27: =IF(B27="","",SUMIF('الرصيد الثابت'!$D$2:$D$115,B27,'الرصيد الثابت'!$I$2:$I$115)) ->  | E27: =IF(B27="","",SUMIF('الرصيد الثابت'!$D$2:$D$115,B27,'الرصيد الثابت'!$J$2:$J$115)) ->  | G27: 0 | L27: 0 | P27: 0 | R27: 0 | CF27: =IFERROR(VLOOKUP(ROWS($CF$3:CF27),$CH$3:$CI$2001,2,FALSE),"") -> ابيض كروشيه .6m | CH27: =IF(ISNUMBER(SEARCH(B27,CI27)),MAX($CH$2:CH26)+1,0) -> 22 | CI27: ابيض كروشيه 6.3cm
C28: =IF(B28="","",SUMIF('الرصيد الثابت'!$D$2:$D$115,B28,'الرصيد الثابت'!$H$2:$H$115)) ->  | D28: =IF(B28="","",SUMIF('الرصيد الثابت'!$D$2:$D$115,B28,'الرصيد الثابت'!$I$2:$I$115)) ->  | E28: =IF(B28="","",SUMIF('الرصيد الثابت'!$D$2:$D$115,B28,'الرصيد الثابت'!$J$2:$J$115)) ->  | G28: 0 | L28: 0 | P28: 0 | R28: 0 | CF28: =IFERROR(VLOOKUP(ROWS($CF$3:CF28),$CH$3:$CI$2001,2,FALSE),"") -> ابيض كروشيه .7m | CH28: =IF(ISNUMBER(SEARCH(B28,CI28)),MAX($CH$2:CH27)+1,0) -> 23 | CI28: ابيض كروشيه 0.2m
C29: =IF(B29="","",SUMIF('الرصيد الثابت'!$D$2:$D$115,B29,'الرصيد الثابت'!$H$2:$H$115)) ->  | D29: =IF(B29="","",SUMIF('الرصيد الثابت'!$D$2:$D$115,B29,'الرصيد الثابت'!$I$2:$I$115)) ->  | E29: =IF(B29="","",SUMIF('الرصيد الثابت'!$D$2:$D$115,B29,'الرصيد الثابت'!$J$2:$J$115)) ->  | G29: 0 | L29: 0 | P29: 0 | R29: 0 | CF29: =IFERROR(VLOOKUP(ROWS($CF$3:CF29),$CH$3:$CI$2001,2,FALSE),"") -> ابيض كروشيه 1.6cm | CH29: =IF(ISNUMBER(SEARCH(B29,CI29)),MAX($CH$2:CH28)+1,0) -> 24 | CI29: ابيض كروشيه .5m
C30: =IF(B30="","",SUMIF('الرصيد الثابت'!$D$2:$D$115,B30,'الرصيد الثابت'!$H$2:$H$115)) ->  | D30: =IF(B30="","",SUMIF('الرصيد الثابت'!$D$2:$D$115,B30,'الرصيد الثابت'!$I$2:$I$115)) ->  | E30: =IF(B30="","",SUMIF('الرصيد الثابت'!$D$2:$D$115,B30,'الرصيد الثابت'!$J$2:$J$115)) ->  | G30: 0 | L30: 0 | P30: 0 | R30: 0 | CF30: =IFERROR(VLOOKUP(ROWS($CF$3:CF30),$CH$3:$CI$2001,2,FALSE),"") -> ابيض كروشيه 1.3cm | CH30: =IF(ISNUMBER(SEARCH(B30,CI30)),MAX($CH$2:CH29)+1,0) -> 25 | CI30: ابيض كروشيه .6m
C31: =IF(B31="","",SUMIF('الرصيد الثابت'!$D$2:$D$115,B31,'الرصيد الثابت'!$H$2:$H$115)) ->  | D31: =IF(B31="","",SUMIF('الرصيد الثابت'!$D$2:$D$115,B31,'الرصيد الثابت'!$I$2:$I$115)) ->  | E31: =IF(B31="","",SUMIF('الرصيد الثابت'!$D$2:$D$115,B31,'الرصيد الثابت'!$J$2:$J$115)) ->  | G31: 0 | L31: 0 | P31: 0 | R31: 0 | CF31: =IFERROR(VLOOKUP(ROWS($CF$3:CF31),$CH$3:$CI$2001,2,FALSE),"") -> ابيض كروشيه 1.8.cm | CH31: =IF(ISNUMBER(SEARCH(B31,CI31)),MAX($CH$2:CH30)+1,0) -> 26 | CI31: ابيض كروشيه .7m
C32: =IF(B32="","",SUMIF('الرصيد الثابت'!$D$2:$D$115,B32,'الرصيد الثابت'!$H$2:$H$115)) ->  | D32: =IF(B32="","",SUMIF('الرصيد الثابت'!$D$2:$D$115,B32,'الرصيد الثابت'!$I$2:$I$115)) ->  | E32: =IF(B32="","",SUMIF('الرصيد الثابت'!$D$2:$D$115,B32,'الرصيد الثابت'!$J$2:$J$115)) ->  | G32: 0 | L32: 0 | P32: 0 | R32: 0 | CF32: =IFERROR(VLOOKUP(ROWS($CF$3:CF32),$CH$3:$CI$2001,2,FALSE),"") -> ابيض ووفين فستون 1cm | CH32: =IF(ISNUMBER(SEARCH(B32,CI32)),MAX($CH$2:CH31)+1,0) -> 27 | CI32: ابيض كروشيه 1.6cm
C33: =IF(B33="","",SUMIF('الرصيد الثابت'!$D$2:$D$115,B33,'الرصيد الثابت'!$H$2:$H$115)) ->  | D33: =IF(B33="","",SUMIF('الرصيد الثابت'!$D$2:$D$115,B33,'الرصيد الثابت'!$I$2:$I$115)) ->  | E33: =IF(B33="","",SUMIF('الرصيد الثابت'!$D$2:$D$115,B33,'الرصيد الثابت'!$J$2:$J$115)) ->  | G33: 0 | L33: 0 | P33: 0 | R33: 0 | CF33: =IFERROR(VLOOKUP(ROWS($CF$3:CF33),$CH$3:$CI$2001,2,FALSE),"") -> ابيض استك طبي 3,18 | CH33: =IF(ISNUMBER(SEARCH(B33,CI33)),MAX($CH$2:CH32)+1,0) -> 28 | CI33: ابيض كروشيه 1.3cm
C34: =IF(B34="","",SUMIF('الرصيد الثابت'!$D$2:$D$115,B34,'الرصيد الثابت'!$H$2:$H$115)) ->  | D34: =IF(B34="","",SUMIF('الرصيد الثابت'!$D$2:$D$115,B34,'الرصيد الثابت'!$I$2:$I$115)) ->  | E34: =IF(B34="","",SUMIF('الرصيد الثابت'!$D$2:$D$115,B34,'الرصيد الثابت'!$J$2:$J$115)) ->  | G34: 0 | L34: 0 | P34: 0 | R34: 0 | CF34: =IFERROR(VLOOKUP(ROWS($CF$3:CF34),$CH$3:$CI$2001,2,FALSE),"") -> ابيض استك طبي 4,14 | CH34: =IF(ISNUMBER(SEARCH(B34,CI34)),MAX($CH$2:CH33)+1,0) -> 29 | CI34: ابيض كروشيه 1.8.cm
C35: =IF(B35="","",SUMIF('الرصيد الثابت'!$D$2:$D$115,B35,'الرصيد الثابت'!$H$2:$H$115)) ->  | D35: =IF(B35="","",SUMIF('الرصيد الثابت'!$D$2:$D$115,B35,'الرصيد الثابت'!$I$2:$I$115)) ->  | E35: =IF(B35="","",SUMIF('الرصيد الثابت'!$D$2:$D$115,B35,'الرصيد الثابت'!$J$2:$J$115)) ->  | G35: 0 | L35: 0 | P35: 0 | R35: 0 | CF35: =IFERROR(VLOOKUP(ROWS($CF$3:CF35),$CH$3:$CI$2001,2,FALSE),"") -> ابيض استك طبي 2,78 | CH35: =IF(ISNUMBER(SEARCH(B35,CI35)),MAX($CH$2:CH34)+1,0) -> 30 | CI35: ابيض ووفين فستون 1cm
C36: =IF(B36="","",SUMIF('الرصيد الثابت'!$D$2:$D$115,B36,'الرصيد الثابت'!$H$2:$H$115)) ->  | D36: =IF(B36="","",SUMIF('الرصيد الثابت'!$D$2:$D$115,B36,'الرصيد الثابت'!$I$2:$I$115)) ->  | E36: =IF(B36="","",SUMIF('الرصيد الثابت'!$D$2:$D$115,B36,'الرصيد الثابت'!$J$2:$J$115)) ->  | G36: 0 | L36: 0 | P36: 0 | R36: 0 | CF36: =IFERROR(VLOOKUP(ROWS($CF$3:CF36),$CH$3:$CI$2001,2,FALSE),"") -> ابيض استك طبي 7,52 | CH36: =IF(ISNUMBER(SEARCH(B36,CI36)),MAX($CH$2:CH35)+1,0) -> 31 | CI36: ابيض استك طبي 3,18
C37: =IF(B37="","",SUMIF('الرصيد الثابت'!$D$2:$D$115,B37,'الرصيد الثابت'!$H$2:$H$115)) ->  | D37: =IF(B37="","",SUMIF('الرصيد الثابت'!$D$2:$D$115,B37,'الرصيد الثابت'!$I$2:$I$115)) ->  | E37: =IF(B37="","",SUMIF('الرصيد الثابت'!$D$2:$D$115,B37,'الرصيد الثابت'!$J$2:$J$115)) ->  | G37: 0 | L37: 0 | P37: 0 | R37: 0 | CF37: =IFERROR(VLOOKUP(ROWS($CF$3:CF37),$CH$3:$CI$2001,2,FALSE),"") -> ابيض استك طبي 3,5 | CH37: =IF(ISNUMBER(SEARCH(B37,CI37)),MAX($CH$2:CH36)+1,0) -> 32 | CI37: ابيض استك طبي 4,14
C38: =IF(B38="","",SUMIF('الرصيد الثابت'!$D$2:$D$115,B38,'الرصيد الثابت'!$H$2:$H$115)) ->  | D38: =IF(B38="","",SUMIF('الرصيد الثابت'!$D$2:$D$115,B38,'الرصيد الثابت'!$I$2:$I$115)) ->  | E38: =IF(B38="","",SUMIF('الرصيد الثابت'!$D$2:$D$115,B38,'الرصيد الثابت'!$J$2:$J$115)) ->  | G38: 0 | L38: 0 | P38: 0 | R38: 0 | CF38: =IFERROR(VLOOKUP(ROWS($CF$3:CF38),$CH$3:$CI$2001,2,FALSE),"") -> ابيض استك طبي 3,3 | CH38: =IF(ISNUMBER(SEARCH(B38,CI38)),MAX($CH$2:CH37)+1,0) -> 33 | CI38: ابيض استك طبي 2,78
C39: =IF(B39="","",SUMIF('الرصيد الثابت'!$D$2:$D$115,B39,'الرصيد الثابت'!$H$2:$H$115)) ->  | D39: =IF(B39="","",SUMIF('الرصيد الثابت'!$D$2:$D$115,B39,'الرصيد الثابت'!$I$2:$I$115)) ->  | E39: =IF(B39="","",SUMIF('الرصيد الثابت'!$D$2:$D$115,B39,'الرصيد الثابت'!$J$2:$J$115)) ->  | G39: 0 | L39: 0 | P39: 0 | R39: 0 | CF39: =IFERROR(VLOOKUP(ROWS($CF$3:CF39),$CH$3:$CI$2001,2,FALSE),"") -> ابيض استك طبي 3,36 | CH39: =IF(ISNUMBER(SEARCH(B39,CI39)),MAX($CH$2:CH38)+1,0) -> 34 | CI39: ابيض استك طبي 7,52
C40: =IF(B40="","",SUMIF('الرصيد الثابت'!$D$2:$D$115,B40,'الرصيد الثابت'!$H$2:$H$115)) ->  | D40: =IF(B40="","",SUMIF('الرصيد الثابت'!$D$2:$D$115,B40,'الرصيد الثابت'!$I$2:$I$115)) ->  | E40: =IF(B40="","",SUMIF('الرصيد الثابت'!$D$2:$D$115,B40,'الرصيد الثابت'!$J$2:$J$115)) ->  | G40: 0 | L40: 0 | P40: 0 | R40: 0 | CF40: =IFERROR(VLOOKUP(ROWS($CF$3:CF40),$CH$3:$CI$2001,2,FALSE),"") -> ابيض استك طبي 2,58 | CH40: =IF(ISNUMBER(SEARCH(B40,CI40)),MAX($CH$2:CH39)+1,0) -> 35 | CI40: ابيض استك طبي 3,5
C41: =IF(B41="","",SUMIF('الرصيد الثابت'!$D$2:$D$115,B41,'الرصيد الثابت'!$H$2:$H$115)) ->  | D41: =IF(B41="","",SUMIF('الرصيد الثابت'!$D$2:$D$115,B41,'الرصيد الثابت'!$I$2:$I$115)) ->  | E41: =IF(B41="","",SUMIF('الرصيد الثابت'!$D$2:$D$115,B41,'الرصيد الثابت'!$J$2:$J$115)) ->  | G41: 0 | L41: 0 | P41: 0 | R41: 0 | CF41: =IFERROR(VLOOKUP(ROWS($CF$3:CF41),$CH$3:$CI$2001,2,FALSE),"") -> ابيض استك طبي 3,02 | CH41: =IF(ISNUMBER(SEARCH(B41,CI41)),MAX($CH$2:CH40)+1,0) -> 36 | CI41: ابيض استك طبي 3,3
C42: =IF(B42="","",SUMIF('الرصيد الثابت'!$D$2:$D$115,B42,'الرصيد الثابت'!$H$2:$H$115)) ->  | D42: =IF(B42="","",SUMIF('الرصيد الثابت'!$D$2:$D$115,B42,'الرصيد الثابت'!$I$2:$I$115)) ->  | E42: =IF(B42="","",SUMIF('الرصيد الثابت'!$D$2:$D$115,B42,'الرصيد الثابت'!$J$2:$J$115)) ->  | G42: 0 | L42: 0 | P42: 0 | R42: 0 | CF42: =IFERROR(VLOOKUP(ROWS($CF$3:CF42),$CH$3:$CI$2001,2,FALSE),"") -> ابيض استك طبي 4,92 | CH42: =IF(ISNUMBER(SEARCH(B42,CI42)),MAX($CH$2:CH41)+1,0) -> 37 | CI42: ابيض استك طبي 3,36
C43: =IF(B43="","",SUMIF('الرصيد الثابت'!$D$2:$D$115,B43,'الرصيد الثابت'!$H$2:$H$115)) ->  | D43: =IF(B43="","",SUMIF('الرصيد الثابت'!$D$2:$D$115,B43,'الرصيد الثابت'!$I$2:$I$115)) ->  | E43: =IF(B43="","",SUMIF('الرصيد الثابت'!$D$2:$D$115,B43,'الرصيد الثابت'!$J$2:$J$115)) ->  | G43: 0 | L43: 0 | P43: 0 | R43: 0 | CF43: =IFERROR(VLOOKUP(ROWS($CF$3:CF43),$CH$3:$CI$2001,2,FALSE),"") -> ابيض فلاش كروشيه 5cm | CH43: =IF(ISNUMBER(SEARCH(B43,CI43)),MAX($CH$2:CH42)+1,0) -> 38 | CI43: ابيض استك طبي 2,58
C44: =IF(B44="","",SUMIF('الرصيد الثابت'!$D$2:$D$115,B44,'الرصيد الثابت'!$H$2:$H$115)) ->  | D44: =IF(B44="","",SUMIF('الرصيد الثابت'!$D$2:$D$115,B44,'الرصيد الثابت'!$I$2:$I$115)) ->  | E44: =IF(B44="","",SUMIF('الرصيد الثابت'!$D$2:$D$115,B44,'الرصيد الثابت'!$J$2:$J$115)) ->  | G44: 0 | L44: 0 | P44: 0 | R44: 0 | CF44: =IFERROR(VLOOKUP(ROWS($CF$3:CF44),$CH$3:$CI$2001,2,FALSE),"") -> ابيض فلاش كروشيه 4.5cm | CH44: =IF(ISNUMBER(SEARCH(B44,CI44)),MAX($CH$2:CH43)+1,0) -> 39 | CI44: ابيض استك طبي 3,02
C45: =IF(B45="","",SUMIF('الرصيد الثابت'!$D$2:$D$115,B45,'الرصيد الثابت'!$H$2:$H$115)) ->  | D45: =IF(B45="","",SUMIF('الرصيد الثابت'!$D$2:$D$115,B45,'الرصيد الثابت'!$I$2:$I$115)) ->  | E45: =IF(B45="","",SUMIF('الرصيد الثابت'!$D$2:$D$115,B45,'الرصيد الثابت'!$J$2:$J$115)) ->  | G45: 0 | L45: 0 | P45: 0 | R45: 0 | CF45: =IFERROR(VLOOKUP(ROWS($CF$3:CF45),$CH$3:$CI$2001,2,FALSE),"") -> ابيض فلاش كروشيه 3.5cm | CH45: =IF(ISNUMBER(SEARCH(B45,CI45)),MAX($CH$2:CH44)+1,0) -> 40 | CI45: ابيض استك طبي 4,92
C46: =IF(B46="","",SUMIF('الرصيد الثابت'!$D$2:$D$115,B46,'الرصيد الثابت'!$H$2:$H$115)) ->  | D46: =IF(B46="","",SUMIF('الرصيد الثابت'!$D$2:$D$115,B46,'الرصيد الثابت'!$I$2:$I$115)) ->  | E46: =IF(B46="","",SUMIF('الرصيد الثابت'!$D$2:$D$115,B46,'الرصيد الثابت'!$J$2:$J$115)) ->  | G46: 0 | L46: 0 | P46: 0 | R46: 0 | CF46: =IFERROR(VLOOKUP(ROWS($CF$3:CF46),$CH$3:$CI$2001,2,FALSE),"") -> ابيض فلاش كروشيه 2cm | CH46: =IF(ISNUMBER(SEARCH(B46,CI46)),MAX($CH$2:CH45)+1,0) -> 41 | CI46: ابيض فلاش كروشيه 5cm
C47: =IF(B47="","",SUMIF('الرصيد الثابت'!$D$2:$D$115,B47,'الرصيد الثابت'!$H$2:$H$115)) ->  | D47: =IF(B47="","",SUMIF('الرصيد الثابت'!$D$2:$D$115,B47,'الرصيد الثابت'!$I$2:$I$115)) ->  | E47: =IF(B47="","",SUMIF('الرصيد الثابت'!$D$2:$D$115,B47,'الرصيد الثابت'!$J$2:$J$115)) ->  | G47: 0 | L47: 0 | P47: 0 | R47: 0 | CF47: =IFERROR(VLOOKUP(ROWS($CF$3:CF47),$CH$3:$CI$2001,2,FALSE),"") -> ابيض كانون كروشيه 5.5cm | CH47: =IF(ISNUMBER(SEARCH(B47,CI47)),MAX($CH$2:CH46)+1,0) -> 42 | CI47: ابيض فلاش كروشيه 4.5cm
C48: =IF(B48="","",SUMIF('الرصيد الثابت'!$D$2:$D$115,B48,'الرصيد الثابت'!$H$2:$H$115)) ->  | D48: =IF(B48="","",SUMIF('الرصيد الثابت'!$D$2:$D$115,B48,'الرصيد الثابت'!$I$2:$I$115)) ->  | E48: =IF(B48="","",SUMIF('الرصيد الثابت'!$D$2:$D$115,B48,'الرصيد الثابت'!$J$2:$J$115)) ->  | G48: 0 | L48: 0 | P48: 0 | R48: 0 | CF48: =IFERROR(VLOOKUP(ROWS($CF$3:CF48),$CH$3:$CI$2001,2,FALSE),"") -> ابيض كانون كروشيه 4.5cm | CH48: =IF(ISNUMBER(SEARCH(B48,CI48)),MAX($CH$2:CH47)+1,0) -> 43 | CI48: ابيض فلاش كروشيه 3.5cm
C49: =IF(B49="","",SUMIF('الرصيد الثابت'!$D$2:$D$115,B49,'الرصيد الثابت'!$H$2:$H$115)) ->  | D49: =IF(B49="","",SUMIF('الرصيد الثابت'!$D$2:$D$115,B49,'الرصيد الثابت'!$I$2:$I$115)) ->  | E49: =IF(B49="","",SUMIF('الرصيد الثابت'!$D$2:$D$115,B49,'الرصيد الثابت'!$J$2:$J$115)) ->  | G49: 0 | L49: 0 | P49: 0 | R49: 0 | CF49: =IFERROR(VLOOKUP(ROWS($CF$3:CF49),$CH$3:$CI$2001,2,FALSE),"") -> ابيض510 كروشيه 3cm | CH49: =IF(ISNUMBER(SEARCH(B49,CI49)),MAX($CH$2:CH48)+1,0) -> 44 | CI49: ابيض فلاش كروشيه 2cm
C50: =IF(B50="","",SUMIF('الرصيد الثابت'!$D$2:$D$115,B50,'الرصيد الثابت'!$H$2:$H$115)) ->  | D50: =IF(B50="","",SUMIF('الرصيد الثابت'!$D$2:$D$115,B50,'الرصيد الثابت'!$I$2:$I$115)) ->  | E50: =IF(B50="","",SUMIF('الرصيد الثابت'!$D$2:$D$115,B50,'الرصيد الثابت'!$J$2:$J$115)) ->  | G50: 0 | L50: 0 | P50: 0 | R50: 0 | CF50: =IFERROR(VLOOKUP(ROWS($CF$3:CF50),$CH$3:$CI$2001,2,FALSE),"") -> ابيض510 كروشيه 4cm | CH50: =IF(ISNUMBER(SEARCH(B50,CI50)),MAX($CH$2:CH49)+1,0) -> 45 | CI50: ابيض كانون كروشيه 5.5cm
C51: =IF(B51="","",SUMIF('الرصيد الثابت'!$D$2:$D$115,B51,'الرصيد الثابت'!$H$2:$H$115)) ->  | D51: =IF(B51="","",SUMIF('الرصيد الثابت'!$D$2:$D$115,B51,'الرصيد الثابت'!$I$2:$I$115)) ->  | E51: =IF(B51="","",SUMIF('الرصيد الثابت'!$D$2:$D$115,B51,'الرصيد الثابت'!$J$2:$J$115)) ->  | G51: 0 | L51: 0 | P51: 0 | R51: 0 | CF51: =IFERROR(VLOOKUP(ROWS($CF$3:CF51),$CH$3:$CI$2001,2,FALSE),"") -> احمر كورد مبطط | CH51: =IF(ISNUMBER(SEARCH(B51,CI51)),MAX($CH$2:CH50)+1,0) -> 46 | CI51: ابيض كانون كروشيه 4.5cm
C52: =IF(B52="","",SUMIF('الرصيد الثابت'!$D$2:$D$115,B52,'الرصيد الثابت'!$H$2:$H$115)) ->  | D52: =IF(B52="","",SUMIF('الرصيد الثابت'!$D$2:$D$115,B52,'الرصيد الثابت'!$I$2:$I$115)) ->  | E52: =IF(B52="","",SUMIF('الرصيد الثابت'!$D$2:$D$115,B52,'الرصيد الثابت'!$J$2:$J$115)) ->  | G52: 0 | L52: 0 | P52: =SUM(F2000-K2000) -> 0 | R52: 0 | CF52: =IFERROR(VLOOKUP(ROWS($CF$3:CF52),$CH$3:$CI$2001,2,FALSE),"") -> احمر كورد كبسله بلاستك | CH52: =IF(ISNUMBER(SEARCH(B52,CI52)),MAX($CH$2:CH51)+1,0) -> 47 | CI52: ابيض510 كروشيه 3cm
C53: =IF(B53="","",SUMIF('الرصيد الثابت'!$D$2:$D$115,B53,'الرصيد الثابت'!$H$2:$H$115)) ->  | D53: =IF(B53="","",SUMIF('الرصيد الثابت'!$D$2:$D$115,B53,'الرصيد الثابت'!$I$2:$I$115)) ->  | E53: =IF(B53="","",SUMIF('الرصيد الثابت'!$D$2:$D$115,B53,'الرصيد الثابت'!$J$2:$J$115)) ->  | G53: 0 | L53: 0 | P53: 0 | R53: 0 | CF53: =IFERROR(VLOOKUP(ROWS($CF$3:CF53),$CH$3:$CI$2001,2,FALSE),"") -> اخضر كورد مبطط | CH53: =IF(ISNUMBER(SEARCH(B53,CI53)),MAX($CH$2:CH52)+1,0) -> 48 | CI53: ابيض510 كروشيه 4cm
C54: =IF(B54="","",SUMIF('الرصيد الثابت'!$D$2:$D$115,B54,'الرصيد الثابت'!$H$2:$H$115)) ->  | D54: =IF(B54="","",SUMIF('الرصيد الثابت'!$D$2:$D$115,B54,'الرصيد الثابت'!$I$2:$I$115)) ->  | E54: =IF(B54="","",SUMIF('الرصيد الثابت'!$D$2:$D$115,B54,'الرصيد الثابت'!$J$2:$J$115)) ->  | G54: 0 | L54: 0 | P54: 0 | R54: 0 | CF54: =IFERROR(VLOOKUP(ROWS($CF$3:CF54),$CH$3:$CI$2001,2,FALSE),"") -> اسود كروشيه 5.8cm | CH54: =IF(ISNUMBER(SEARCH(B54,CI54)),MAX($CH$2:CH53)+1,0) -> 49 | CI54: احمر كورد مبطط
C55: =IF(B55="","",SUMIF('الرصيد الثابت'!$D$2:$D$115,B55,'الرصيد الثابت'!$H$2:$H$115)) ->  | D55: =IF(B55="","",SUMIF('الرصيد الثابت'!$D$2:$D$115,B55,'الرصيد الثابت'!$I$2:$I$115)) ->  | E55: =IF(B55="","",SUMIF('الرصيد الثابت'!$D$2:$D$115,B55,'الرصيد الثابت'!$J$2:$J$115)) ->  | G55: 0 | L55: 0 | P55: 0 | R55: 0 | CF55: =IFERROR(VLOOKUP(ROWS($CF$3:CF55),$CH$3:$CI$2001,2,FALSE),"") -> اسود كروشيه 5.5cm | CH55: =IF(ISNUMBER(SEARCH(B55,CI55)),MAX($CH$2:CH54)+1,0) -> 50 | CI55: احمر كورد كبسله بلاستك
C56: =IF(B56="","",SUMIF('الرصيد الثابت'!$D$2:$D$115,B56,'الرصيد الثابت'!$H$2:$H$115)) ->  | D56: =IF(B56="","",SUMIF('الرصيد الثابت'!$D$2:$D$115,B56,'الرصيد الثابت'!$I$2:$I$115)) ->  | E56: =IF(B56="","",SUMIF('الرصيد الثابت'!$D$2:$D$115,B56,'الرصيد الثابت'!$J$2:$J$115)) ->  | G56: 0 | L56: 0 | P56: 0 | R56: 0 | CF56: =IFERROR(VLOOKUP(ROWS($CF$3:CF56),$CH$3:$CI$2001,2,FALSE),"") -> اسود كروشيه 5cm | CH56: =IF(ISNUMBER(SEARCH(B56,CI56)),MAX($CH$2:CH55)+1,0) -> 51 | CI56: اخضر كورد مبطط
C57: =IF(B57="","",SUMIF('الرصيد الثابت'!$D$2:$D$115,B57,'الرصيد الثابت'!$H$2:$H$115)) ->  | D57: =IF(B57="","",SUMIF('الرصيد الثابت'!$D$2:$D$115,B57,'الرصيد الثابت'!$I$2:$I$115)) ->  | E57: =IF(B57="","",SUMIF('الرصيد الثابت'!$D$2:$D$115,B57,'الرصيد الثابت'!$J$2:$J$115)) ->  | G57: 0 | L57: 0 | P57: 0 | R57: 0 | CF57: =IFERROR(VLOOKUP(ROWS($CF$3:CF57),$CH$3:$CI$2001,2,FALSE),"") -> اسود كروشيه 4.8cm | CH57: =IF(ISNUMBER(SEARCH(B57,CI57)),MAX($CH$2:CH56)+1,0) -> 52 | CI57: اسود كروشيه 5.8cm
C58: =IF(B58="","",SUMIF('الرصيد الثابت'!$D$2:$D$115,B58,'الرصيد الثابت'!$H$2:$H$115)) ->  | D58: =IF(B58="","",SUMIF('الرصيد الثابت'!$D$2:$D$115,B58,'الرصيد الثابت'!$I$2:$I$115)) ->  | E58: =IF(B58="","",SUMIF('الرصيد الثابت'!$D$2:$D$115,B58,'الرصيد الثابت'!$J$2:$J$115)) ->  | G58: 0 | L58: 0 | P58: 0 | R58: 0 | CF58: =IFERROR(VLOOKUP(ROWS($CF$3:CF58),$CH$3:$CI$2001,2,FALSE),"") -> اسود كروشيه 4.5cm | CH58: =IF(ISNUMBER(SEARCH(B58,CI58)),MAX($CH$2:CH57)+1,0) -> 53 | CI58: اسود كروشيه 5.5cm
C59: =IF(B59="","",SUMIF('الرصيد الثابت'!$D$2:$D$115,B59,'الرصيد الثابت'!$H$2:$H$115)) ->  | D59: =IF(B59="","",SUMIF('الرصيد الثابت'!$D$2:$D$115,B59,'الرصيد الثابت'!$I$2:$I$115)) ->  | E59: =IF(B59="","",SUMIF('الرصيد الثابت'!$D$2:$D$115,B59,'الرصيد الثابت'!$J$2:$J$115)) ->  | G59: 0 | L59: 0 | P59: 0 | R59: 0 | CF59: =IFERROR(VLOOKUP(ROWS($CF$3:CF59),$CH$3:$CI$2001,2,FALSE),"") -> اسود كروشيه 4cm | CH59: =IF(ISNUMBER(SEARCH(B59,CI59)),MAX($CH$2:CH58)+1,0) -> 54 | CI59: اسود كروشيه 5cm
C60: =IF(B60="","",SUMIF('الرصيد الثابت'!$D$2:$D$115,B60,'الرصيد الثابت'!$H$2:$H$115)) ->  | D60: =IF(B60="","",SUMIF('الرصيد الثابت'!$D$2:$D$115,B60,'الرصيد الثابت'!$I$2:$I$115)) ->  | E60: =IF(B60="","",SUMIF('الرصيد الثابت'!$D$2:$D$115,B60,'الرصيد الثابت'!$J$2:$J$115)) ->  | G60: 0 | L60: 0 | P60: 0 | R60: 0 | CF60: =IFERROR(VLOOKUP(ROWS($CF$3:CF60),$CH$3:$CI$2001,2,FALSE),"") -> اسود كروشيه 3.5cm | CH60: =IF(ISNUMBER(SEARCH(B60,CI60)),MAX($CH$2:CH59)+1,0) -> 55 | CI60: اسود كروشيه 4.8cm
C61: =IF(B61="","",SUMIF('الرصيد الثابت'!$D$2:$D$115,B61,'الرصيد الثابت'!$H$2:$H$115)) ->  | D61: =IF(B61="","",SUMIF('الرصيد الثابت'!$D$2:$D$115,B61,'الرصيد الثابت'!$I$2:$I$115)) ->  | E61: =IF(B61="","",SUMIF('الرصيد الثابت'!$D$2:$D$115,B61,'الرصيد الثابت'!$J$2:$J$115)) ->  | G61: 0 | L61: 0 | P61: 0 | R61: 0 | CF61: =IFERROR(VLOOKUP(ROWS($CF$3:CF61),$CH$3:$CI$2001,2,FALSE),"") -> اسود كروشيه 3cm | CH61: =IF(ISNUMBER(SEARCH(B61,CI61)),MAX($CH$2:CH60)+1,0) -> 56 | CI61: اسود كروشيه 4.5cm
C62: =IF(B62="","",SUMIF('الرصيد الثابت'!$D$2:$D$115,B62,'الرصيد الثابت'!$H$2:$H$115)) ->  | D62: =IF(B62="","",SUMIF('الرصيد الثابت'!$D$2:$D$115,B62,'الرصيد الثابت'!$I$2:$I$115)) ->  | E62: =IF(B62="","",SUMIF('الرصيد الثابت'!$D$2:$D$115,B62,'الرصيد الثابت'!$J$2:$J$115)) ->  | G62: 0 | L62: 0 | P62: 0 | R62: 0 | CF62: =IFERROR(VLOOKUP(ROWS($CF$3:CF62),$CH$3:$CI$2001,2,FALSE),"") -> اسود كروشيه 2.5cm | CH62: =IF(ISNUMBER(SEARCH(B62,CI62)),MAX($CH$2:CH61)+1,0) -> 57 | CI62: اسود كروشيه 4cm
C63: =IF(B63="","",SUMIF('الرصيد الثابت'!$D$2:$D$115,B63,'الرصيد الثابت'!$H$2:$H$115)) ->  | D63: =IF(B63="","",SUMIF('الرصيد الثابت'!$D$2:$D$115,B63,'الرصيد الثابت'!$I$2:$I$115)) ->  | E63: =IF(B63="","",SUMIF('الرصيد الثابت'!$D$2:$D$115,B63,'الرصيد الثابت'!$J$2:$J$115)) ->  | G63: 0 | L63: 0 | P63: 0 | R63: 0 | CF63: =IFERROR(VLOOKUP(ROWS($CF$3:CF63),$CH$3:$CI$2001,2,FALSE),"") -> اسود كروشيه 2cm | CH63: =IF(ISNUMBER(SEARCH(B63,CI63)),MAX($CH$2:CH62)+1,0) -> 58 | CI63: اسود كروشيه 3.5cm
C64: =IF(B64="","",SUMIF('الرصيد الثابت'!$D$2:$D$115,B64,'الرصيد الثابت'!$H$2:$H$115)) ->  | D64: =IF(B64="","",SUMIF('الرصيد الثابت'!$D$2:$D$115,B64,'الرصيد الثابت'!$I$2:$I$115)) ->  | E64: =IF(B64="","",SUMIF('الرصيد الثابت'!$D$2:$D$115,B64,'الرصيد الثابت'!$J$2:$J$115)) ->  | G64: 0 | L64: 0 | P64: 0 | R64: 0 | CF64: =IFERROR(VLOOKUP(ROWS($CF$3:CF64),$CH$3:$CI$2001,2,FALSE),"") -> اسود كروشيه 1.7cm | CH64: =IF(ISNUMBER(SEARCH(B64,CI64)),MAX($CH$2:CH63)+1,0) -> 59 | CI64: اسود كروشيه 3cm
C65: =IF(B65="","",SUMIF('الرصيد الثابت'!$D$2:$D$115,B65,'الرصيد الثابت'!$H$2:$H$115)) ->  | D65: =IF(B65="","",SUMIF('الرصيد الثابت'!$D$2:$D$115,B65,'الرصيد الثابت'!$I$2:$I$115)) ->  | E65: =IF(B65="","",SUMIF('الرصيد الثابت'!$D$2:$D$115,B65,'الرصيد الثابت'!$J$2:$J$115)) ->  | G65: 0 | L65: 0 | P65: 0 | R65: 0 | CF65: =IFERROR(VLOOKUP(ROWS($CF$3:CF65),$CH$3:$CI$2001,2,FALSE),"") -> اسود كروشيه 1.5cm | CH65: =IF(ISNUMBER(SEARCH(B65,CI65)),MAX($CH$2:CH64)+1,0) -> 60 | CI65: اسود كروشيه 2.5cm
C66: =IF(B66="","",SUMIF('الرصيد الثابت'!$D$2:$D$115,B66,'الرصيد الثابت'!$H$2:$H$115)) ->  | D66: =IF(B66="","",SUMIF('الرصيد الثابت'!$D$2:$D$115,B66,'الرصيد الثابت'!$I$2:$I$115)) ->  | E66: =IF(B66="","",SUMIF('الرصيد الثابت'!$D$2:$D$115,B66,'الرصيد الثابت'!$J$2:$J$115)) ->  | G66: 0 | L66: 0 | P66: 0 | R66: 0 | CF66: =IFERROR(VLOOKUP(ROWS($CF$3:CF66),$CH$3:$CI$2001,2,FALSE),"") -> اسود كروشيه 1.3cm | CH66: =IF(ISNUMBER(SEARCH(B66,CI66)),MAX($CH$2:CH65)+1,0) -> 61 | CI66: اسود كروشيه 2cm
C67: =IF(B67="","",SUMIF('الرصيد الثابت'!$D$2:$D$115,B67,'الرصيد الثابت'!$H$2:$H$115)) ->  | D67: =IF(B67="","",SUMIF('الرصيد الثابت'!$D$2:$D$115,B67,'الرصيد الثابت'!$I$2:$I$115)) ->  | E67: =IF(B67="","",SUMIF('الرصيد الثابت'!$D$2:$D$115,B67,'الرصيد الثابت'!$J$2:$J$115)) ->  | G67: 0 | L67: =SUM(M67*K67) -> 0 | P67: 0 | R67: 0 | CF67: =IFERROR(VLOOKUP(ROWS($CF$3:CF67),$CH$3:$CI$2001,2,FALSE),"") -> اسود كروشيه 1cm | CH67: =IF(ISNUMBER(SEARCH(B67,CI67)),MAX($CH$2:CH66)+1,0) -> 62 | CI67: اسود كروشيه 1.7cm
C68: =IF(B68="","",SUMIF('الرصيد الثابت'!$D$2:$D$115,B68,'الرصيد الثابت'!$H$2:$H$115)) ->  | D68: =IF(B68="","",SUMIF('الرصيد الثابت'!$D$2:$D$115,B68,'الرصيد الثابت'!$I$2:$I$115)) ->  | E68: =IF(B68="","",SUMIF('الرصيد الثابت'!$D$2:$D$115,B68,'الرصيد الثابت'!$J$2:$J$115)) ->  | G68: =SUM(H68*F68) -> 0 | L68: 0 | P68: =SUM(F68-K68) -> 0 | R68: 0 | CF68: =IFERROR(VLOOKUP(ROWS($CF$3:CF68),$CH$3:$CI$2001,2,FALSE),"") -> اسود كروشيه 8mm | CH68: =IF(ISNUMBER(SEARCH(B68,CI68)),MAX($CH$2:CH67)+1,0) -> 63 | CI68: اسود كروشيه 1.5cm
C69: =IF(B69="","",SUMIF('الرصيد الثابت'!$D$2:$D$115,B69,'الرصيد الثابت'!$H$2:$H$115)) ->  | D69: =IF(B69="","",SUMIF('الرصيد الثابت'!$D$2:$D$115,B69,'الرصيد الثابت'!$I$2:$I$115)) ->  | E69: =IF(B69="","",SUMIF('الرصيد الثابت'!$D$2:$D$115,B69,'الرصيد الثابت'!$J$2:$J$115)) ->  | G69: 0 | L69: 0 | P69: 0 | R69: 0 | CF69: =IFERROR(VLOOKUP(ROWS($CF$3:CF69),$CH$3:$CI$2001,2,FALSE),"") -> اسود كروشيه 3.8cm | CH69: =IF(ISNUMBER(SEARCH(B69,CI69)),MAX($CH$2:CH68)+1,0) -> 64 | CI69: اسود كروشيه 1.3cm
C70: =IF(B70="","",SUMIF('الرصيد الثابت'!$D$2:$D$115,B70,'الرصيد الثابت'!$H$2:$H$115)) ->  | D70: =IF(B70="","",SUMIF('الرصيد الثابت'!$D$2:$D$115,B70,'الرصيد الثابت'!$I$2:$I$115)) ->  | E70: =IF(B70="","",SUMIF('الرصيد الثابت'!$D$2:$D$115,B70,'الرصيد الثابت'!$J$2:$J$115)) ->  | G70: 0 | L70: 0 | P70: 0 | R70: 0 | CF70: =IFERROR(VLOOKUP(ROWS($CF$3:CF70),$CH$3:$CI$2001,2,FALSE),"") -> اسود كروشيه .8m | CH70: =IF(ISNUMBER(SEARCH(B70,CI70)),MAX($CH$2:CH69)+1,0) -> 65 | CI70: اسود كروشيه 1cm
C71: =IF(B71="","",SUMIF('الرصيد الثابت'!$D$2:$D$115,B71,'الرصيد الثابت'!$H$2:$H$115)) ->  | D71: =IF(B71="","",SUMIF('الرصيد الثابت'!$D$2:$D$115,B71,'الرصيد الثابت'!$I$2:$I$115)) ->  | E71: =IF(B71="","",SUMIF('الرصيد الثابت'!$D$2:$D$115,B71,'الرصيد الثابت'!$J$2:$J$115)) ->  | G71: 0 | L71: 0 | P71: 0 | R71: =SUM(S71*Q71) -> 0 | CF71: =IFERROR(VLOOKUP(ROWS($CF$3:CF71),$CH$3:$CI$2001,2,FALSE),"") -> اسود كروشيه 1.2cm | CH71: =IF(ISNUMBER(SEARCH(B71,CI71)),MAX($CH$2:CH70)+1,0) -> 66 | CI71: اسود كروشيه 8mm
C72: =IF(B72="","",SUMIF('الرصيد الثابت'!$D$2:$D$115,B72,'الرصيد الثابت'!$H$2:$H$115)) ->  | D72: =IF(B72="","",SUMIF('الرصيد الثابت'!$D$2:$D$115,B72,'الرصيد الثابت'!$I$2:$I$115)) ->  | E72: =IF(B72="","",SUMIF('الرصيد الثابت'!$D$2:$D$115,B72,'الرصيد الثابت'!$J$2:$J$115)) ->  | G72: 0 | L72: 0 | P72: 0 | R72: 0 | CF72: =IFERROR(VLOOKUP(ROWS($CF$3:CF72),$CH$3:$CI$2001,2,FALSE),"") -> اسود كروشيه .4m | CH72: =IF(ISNUMBER(SEARCH(B72,CI72)),MAX($CH$2:CH71)+1,0) -> 67 | CI72: اسود كروشيه 3.8cm
C73: =IF(B73="","",SUMIF('الرصيد الثابت'!$D$2:$D$115,B73,'الرصيد الثابت'!$H$2:$H$115)) ->  | D73: =IF(B73="","",SUMIF('الرصيد الثابت'!$D$2:$D$115,B73,'الرصيد الثابت'!$I$2:$I$115)) ->  | E73: =IF(B73="","",SUMIF('الرصيد الثابت'!$D$2:$D$115,B73,'الرصيد الثابت'!$J$2:$J$115)) ->  | G73: 0 | L73: 0 | P73: 0 | R73: 0 | CF73: =IFERROR(VLOOKUP(ROWS($CF$3:CF73),$CH$3:$CI$2001,2,FALSE),"") -> اسود كروشيه 1.4cm | CH73: =IF(ISNUMBER(SEARCH(B73,CI73)),MAX($CH$2:CH72)+1,0) -> 68 | CI73: اسود كروشيه .8m
C74: =IF(B74="","",SUMIF('الرصيد الثابت'!$D$2:$D$115,B74,'الرصيد الثابت'!$H$2:$H$115)) ->  | D74: =IF(B74="","",SUMIF('الرصيد الثابت'!$D$2:$D$115,B74,'الرصيد الثابت'!$I$2:$I$115)) ->  | E74: =IF(B74="","",SUMIF('الرصيد الثابت'!$D$2:$D$115,B74,'الرصيد الثابت'!$J$2:$J$115)) ->  | G74: 0 | L74: 0 | P74: 0 | R74: 0 | CF74: =IFERROR(VLOOKUP(ROWS($CF$3:CF74),$CH$3:$CI$2001,2,FALSE),"") -> اسود كروشيه 2.2cm | CH74: =IF(ISNUMBER(SEARCH(B74,CI74)),MAX($CH$2:CH73)+1,0) -> 69 | CI74: اسود كروشيه 1.2cm
C75: =IF(B75="","",SUMIF('الرصيد الثابت'!$D$2:$D$115,B75,'الرصيد الثابت'!$H$2:$H$115)) ->  | D75: =IF(B75="","",SUMIF('الرصيد الثابت'!$D$2:$D$115,B75,'الرصيد الثابت'!$I$2:$I$115)) ->  | E75: =IF(B75="","",SUMIF('الرصيد الثابت'!$D$2:$D$115,B75,'الرصيد الثابت'!$J$2:$J$115)) ->  | G75: 0 | L75: 0 | P75: 0 | R75: 0 | CF75: =IFERROR(VLOOKUP(ROWS($CF$3:CF75),$CH$3:$CI$2001,2,FALSE),"") -> اسود كورد 1cm | CH75: =IF(ISNUMBER(SEARCH(B75,CI75)),MAX($CH$2:CH74)+1,0) -> 70 | CI75: اسود كروشيه .4m
C76: =IF(B76="","",SUMIF('الرصيد الثابت'!$D$2:$D$115,B76,'الرصيد الثابت'!$H$2:$H$115)) ->  | D76: =IF(B76="","",SUMIF('الرصيد الثابت'!$D$2:$D$115,B76,'الرصيد الثابت'!$I$2:$I$115)) ->  | E76: =IF(B76="","",SUMIF('الرصيد الثابت'!$D$2:$D$115,B76,'الرصيد الثابت'!$J$2:$J$115)) ->  | G76: 0 | L76: 0 | P76: 0 | R76: 0 | CF76: =IFERROR(VLOOKUP(ROWS($CF$3:CF76),$CH$3:$CI$2001,2,FALSE),"") -> اسود كورد مبطط | CH76: =IF(ISNUMBER(SEARCH(B76,CI76)),MAX($CH$2:CH75)+1,0) -> 71 | CI76: اسود كروشيه 1.4cm
C77: =IF(B77="","",SUMIF('الرصيد الثابت'!$D$2:$D$115,B77,'الرصيد الثابت'!$H$2:$H$115)) ->  | D77: =IF(B77="","",SUMIF('الرصيد الثابت'!$D$2:$D$115,B77,'الرصيد الثابت'!$I$2:$I$115)) ->  | E77: =IF(B77="","",SUMIF('الرصيد الثابت'!$D$2:$D$115,B77,'الرصيد الثابت'!$J$2:$J$115)) ->  | G77: 0 | L77: 0 | P77: 0 | R77: 0 | CF77: =IFERROR(VLOOKUP(ROWS($CF$3:CF77),$CH$3:$CI$2001,2,FALSE),"") -> اسود كورد مبروم | CH77: =IF(ISNUMBER(SEARCH(B77,CI77)),MAX($CH$2:CH76)+1,0) -> 72 | CI77: اسود كروشيه 2.2cm
C78: =IF(B78="","",SUMIF('الرصيد الثابت'!$D$2:$D$115,B78,'الرصيد الثابت'!$H$2:$H$115)) ->  | D78: =IF(B78="","",SUMIF('الرصيد الثابت'!$D$2:$D$115,B78,'الرصيد الثابت'!$I$2:$I$115)) ->  | E78: =IF(B78="","",SUMIF('الرصيد الثابت'!$D$2:$D$115,B78,'الرصيد الثابت'!$J$2:$J$115)) ->  | G78: 0 | L78: 0 | P78: 0 | R78: 0 | CF78: =IFERROR(VLOOKUP(ROWS($CF$3:CF78),$CH$3:$CI$2001,2,FALSE),"") -> اسود ووفين ساندوتش 1.5cm | CH78: =IF(ISNUMBER(SEARCH(B78,CI78)),MAX($CH$2:CH77)+1,0) -> 73 | CI78: اسود كورد 1cm
C79: =IF(B79="","",SUMIF('الرصيد الثابت'!$D$2:$D$115,B79,'الرصيد الثابت'!$H$2:$H$115)) ->  | D79: =IF(B79="","",SUMIF('الرصيد الثابت'!$D$2:$D$115,B79,'الرصيد الثابت'!$I$2:$I$115)) ->  | E79: =IF(B79="","",SUMIF('الرصيد الثابت'!$D$2:$D$115,B79,'الرصيد الثابت'!$J$2:$J$115)) ->  | G79: 0 | L79: 0 | P79: 0 | R79: 0 | CF79: =IFERROR(VLOOKUP(ROWS($CF$3:CF79),$CH$3:$CI$2001,2,FALSE),"") -> اسود ووفين ساندوتش 1.8cm | CH79: =IF(ISNUMBER(SEARCH(B79,CI79)),MAX($CH$2:CH78)+1,0) -> 74 | CI79: اسود كورد مبطط
C80: =IF(B80="","",SUMIF('الرصيد الثابت'!$D$2:$D$115,B80,'الرصيد الثابت'!$H$2:$H$115)) ->  | D80: =IF(B80="","",SUMIF('الرصيد الثابت'!$D$2:$D$115,B80,'الرصيد الثابت'!$I$2:$I$115)) ->  | E80: =IF(B80="","",SUMIF('الرصيد الثابت'!$D$2:$D$115,B80,'الرصيد الثابت'!$J$2:$J$115)) ->  | G80: 0 | L80: 0 | P80: 0 | R80: 0 | CF80: =IFERROR(VLOOKUP(ROWS($CF$3:CF80),$CH$3:$CI$2001,2,FALSE),"") -> اسود ووفين ساندوتش 1.7cm | CH80: =IF(ISNUMBER(SEARCH(B80,CI80)),MAX($CH$2:CH79)+1,0) -> 75 | CI80: اسود كورد مبروم
C81: =IF(B81="","",SUMIF('الرصيد الثابت'!$D$2:$D$115,B81,'الرصيد الثابت'!$H$2:$H$115)) ->  | D81: =IF(B81="","",SUMIF('الرصيد الثابت'!$D$2:$D$115,B81,'الرصيد الثابت'!$I$2:$I$115)) ->  | E81: =IF(B81="","",SUMIF('الرصيد الثابت'!$D$2:$D$115,B81,'الرصيد الثابت'!$J$2:$J$115)) ->  | G81: 0 | L81: 0 | P81: 0 | R81: 0 | CF81: =IFERROR(VLOOKUP(ROWS($CF$3:CF81),$CH$3:$CI$2001,2,FALSE),"") -> اسود ووفين ساندوتش 2cm | CH81: =IF(ISNUMBER(SEARCH(B81,CI81)),MAX($CH$2:CH80)+1,0) -> 76 | CI81: اسود ووفين ساندوتش 1.5cm
C82: =IF(B82="","",SUMIF('الرصيد الثابت'!$D$2:$D$115,B82,'الرصيد الثابت'!$H$2:$H$115)) ->  | D82: =IF(B82="","",SUMIF('الرصيد الثابت'!$D$2:$D$115,B82,'الرصيد الثابت'!$I$2:$I$115)) ->  | E82: =IF(B82="","",SUMIF('الرصيد الثابت'!$D$2:$D$115,B82,'الرصيد الثابت'!$J$2:$J$115)) ->  | G82: 0 | L82: 0 | P82: 0 | R82: 0 | CF82: =IFERROR(VLOOKUP(ROWS($CF$3:CF82),$CH$3:$CI$2001,2,FALSE),"") -> اسود استك طبي 2,98 | CH82: =IF(ISNUMBER(SEARCH(B82,CI82)),MAX($CH$2:CH81)+1,0) -> 77 | CI82: اسود ووفين ساندوتش 1.8cm
C83: =IF(B83="","",SUMIF('الرصيد الثابت'!$D$2:$D$115,B83,'الرصيد الثابت'!$H$2:$H$115)) ->  | D83: =IF(B83="","",SUMIF('الرصيد الثابت'!$D$2:$D$115,B83,'الرصيد الثابت'!$I$2:$I$115)) ->  | E83: =IF(B83="","",SUMIF('الرصيد الثابت'!$D$2:$D$115,B83,'الرصيد الثابت'!$J$2:$J$115)) ->  | G83: 0 | L83: 0 | P83: 0 | R83: 0 | CF83: =IFERROR(VLOOKUP(ROWS($CF$3:CF83),$CH$3:$CI$2001,2,FALSE),"") -> اسود استك طبي 2,26 | CH83: =IF(ISNUMBER(SEARCH(B83,CI83)),MAX($CH$2:CH82)+1,0) -> 78 | CI83: اسود ووفين ساندوتش 1.7cm
C84: =IF(B84="","",SUMIF('الرصيد الثابت'!$D$2:$D$115,B84,'الرصيد الثابت'!$H$2:$H$115)) ->  | D84: =IF(B84="","",SUMIF('الرصيد الثابت'!$D$2:$D$115,B84,'الرصيد الثابت'!$I$2:$I$115)) ->  | E84: =IF(B84="","",SUMIF('الرصيد الثابت'!$D$2:$D$115,B84,'الرصيد الثابت'!$J$2:$J$115)) ->  | G84: 0 | L84: 0 | P84: 0 | R84: 0 | CF84: =IFERROR(VLOOKUP(ROWS($CF$3:CF84),$CH$3:$CI$2001,2,FALSE),"") -> اسود كروشيه 5.8cm | CH84: =IF(ISNUMBER(SEARCH(B84,CI84)),MAX($CH$2:CH83)+1,0) -> 79 | CI84: اسود ووفين ساندوتش 2cm
C85: =IF(B85="","",SUMIF('الرصيد الثابت'!$D$2:$D$115,B85,'الرصيد الثابت'!$H$2:$H$115)) ->  | D85: =IF(B85="","",SUMIF('الرصيد الثابت'!$D$2:$D$115,B85,'الرصيد الثابت'!$I$2:$I$115)) ->  | E85: =IF(B85="","",SUMIF('الرصيد الثابت'!$D$2:$D$115,B85,'الرصيد الثابت'!$J$2:$J$115)) ->  | G85: 0 | L85: 0 | P85: 0 | R85: 0 | CF85: =IFERROR(VLOOKUP(ROWS($CF$3:CF85),$CH$3:$CI$2001,2,FALSE),"") -> اسود استريب كروشيه 3cm | CH85: =IF(ISNUMBER(SEARCH(B85,CI85)),MAX($CH$2:CH84)+1,0) -> 80 | CI85: اسود استك طبي 2,98
C86: =IF(B86="","",SUMIF('الرصيد الثابت'!$D$2:$D$115,B86,'الرصيد الثابت'!$H$2:$H$115)) ->  | D86: =IF(B86="","",SUMIF('الرصيد الثابت'!$D$2:$D$115,B86,'الرصيد الثابت'!$I$2:$I$115)) ->  | E86: =IF(B86="","",SUMIF('الرصيد الثابت'!$D$2:$D$115,B86,'الرصيد الثابت'!$J$2:$J$115)) ->  | G86: 0 | L86: 0 | P86: 0 | R86: 0 | CF86: =IFERROR(VLOOKUP(ROWS($CF$3:CF86),$CH$3:$CI$2001,2,FALSE),"") -> اسود فلاش كروشيه 5.5cm | CH86: =IF(ISNUMBER(SEARCH(B86,CI86)),MAX($CH$2:CH85)+1,0) -> 81 | CI86: اسود استك طبي 2,26
C87: =IF(B87="","",SUMIF('الرصيد الثابت'!$D$2:$D$115,B87,'الرصيد الثابت'!$H$2:$H$115)) ->  | D87: =IF(B87="","",SUMIF('الرصيد الثابت'!$D$2:$D$115,B87,'الرصيد الثابت'!$I$2:$I$115)) ->  | E87: =IF(B87="","",SUMIF('الرصيد الثابت'!$D$2:$D$115,B87,'الرصيد الثابت'!$J$2:$J$115)) ->  | G87: 0 | L87: 0 | P87: 0 | R87: 0 | CF87: =IFERROR(VLOOKUP(ROWS($CF$3:CF87),$CH$3:$CI$2001,2,FALSE),"") -> اسود فلاش كروشيه 5cm | CH87: =IF(ISNUMBER(SEARCH(B87,CI87)),MAX($CH$2:CH86)+1,0) -> 82 | CI87: اسود كروشيه 5.8cm
C88: =IF(B88="","",SUMIF('الرصيد الثابت'!$D$2:$D$115,B88,'الرصيد الثابت'!$H$2:$H$115)) ->  | D88: =IF(B88="","",SUMIF('الرصيد الثابت'!$D$2:$D$115,B88,'الرصيد الثابت'!$I$2:$I$115)) ->  | E88: =IF(B88="","",SUMIF('الرصيد الثابت'!$D$2:$D$115,B88,'الرصيد الثابت'!$J$2:$J$115)) ->  | G88: 0 | L88: 0 | P88: 0 | R88: 0 | CF88: =IFERROR(VLOOKUP(ROWS($CF$3:CF88),$CH$3:$CI$2001,2,FALSE),"") -> اسود فلاش كروشيه 3.5cm | CH88: =IF(ISNUMBER(SEARCH(B88,CI88)),MAX($CH$2:CH87)+1,0) -> 83 | CI88: اسود استريب كروشيه 3cm
C89: =IF(B89="","",SUMIF('الرصيد الثابت'!$D$2:$D$115,B89,'الرصيد الثابت'!$H$2:$H$115)) ->  | D89: =IF(B89="","",SUMIF('الرصيد الثابت'!$D$2:$D$115,B89,'الرصيد الثابت'!$I$2:$I$115)) ->  | E89: =IF(B89="","",SUMIF('الرصيد الثابت'!$D$2:$D$115,B89,'الرصيد الثابت'!$J$2:$J$115)) ->  | G89: 0 | L89: 0 | P89: 0 | R89: 0 | CF89: =IFERROR(VLOOKUP(ROWS($CF$3:CF89),$CH$3:$CI$2001,2,FALSE),"") -> اسود510 كروشيه 5cm | CH89: =IF(ISNUMBER(SEARCH(B89,CI89)),MAX($CH$2:CH88)+1,0) -> 84 | CI89: اسود فلاش كروشيه 5.5cm
C90: =IF(B90="","",SUMIF('الرصيد الثابت'!$D$2:$D$115,B90,'الرصيد الثابت'!$H$2:$H$115)) ->  | D90: =IF(B90="","",SUMIF('الرصيد الثابت'!$D$2:$D$115,B90,'الرصيد الثابت'!$I$2:$I$115)) ->  | E90: =IF(B90="","",SUMIF('الرصيد الثابت'!$D$2:$D$115,B90,'الرصيد الثابت'!$J$2:$J$115)) ->  | G90: 0 | L90: 0 | P90: 0 | R90: 0 | CF90: =IFERROR(VLOOKUP(ROWS($CF$3:CF90),$CH$3:$CI$2001,2,FALSE),"") -> اسود510 كروشيه 3.5cm | CH90: =IF(ISNUMBER(SEARCH(B90,CI90)),MAX($CH$2:CH89)+1,0) -> 85 | CI90: اسود فلاش كروشيه 5cm
C91: =IF(B91="","",SUMIF('الرصيد الثابت'!$D$2:$D$115,B91,'الرصيد الثابت'!$H$2:$H$115)) ->  | D91: =IF(B91="","",SUMIF('الرصيد الثابت'!$D$2:$D$115,B91,'الرصيد الثابت'!$I$2:$I$115)) ->  | E91: =IF(B91="","",SUMIF('الرصيد الثابت'!$D$2:$D$115,B91,'الرصيد الثابت'!$J$2:$J$115)) ->  | G91: 0 | L91: 0 | P91: 0 | R91: 0 | CF91: =IFERROR(VLOOKUP(ROWS($CF$3:CF91),$CH$3:$CI$2001,2,FALSE),"") -> الالوان كورد 1.2cm | CH91: =IF(ISNUMBER(SEARCH(B91,CI91)),MAX($CH$2:CH90)+1,0) -> 86 | CI91: اسود فلاش كروشيه 3.5cm
C92: =IF(B92="","",SUMIF('الرصيد الثابت'!$D$2:$D$115,B92,'الرصيد الثابت'!$H$2:$H$115)) ->  | D92: =IF(B92="","",SUMIF('الرصيد الثابت'!$D$2:$D$115,B92,'الرصيد الثابت'!$I$2:$I$115)) ->  | E92: =IF(B92="","",SUMIF('الرصيد الثابت'!$D$2:$D$115,B92,'الرصيد الثابت'!$J$2:$J$115)) ->  | G92: 0 | L92: 0 | P92: 0 | R92: 0 | CF92: =IFERROR(VLOOKUP(ROWS($CF$3:CF92),$CH$3:$CI$2001,2,FALSE),"") -> اورنج كورد 1.2cm | CH92: =IF(ISNUMBER(SEARCH(B92,CI92)),MAX($CH$2:CH91)+1,0) -> 87 | CI92: اسود510 كروشيه 5cm
C93: =IF(B93="","",SUMIF('الرصيد الثابت'!$D$2:$D$115,B93,'الرصيد الثابت'!$H$2:$H$115)) ->  | D93: =IF(B93="","",SUMIF('الرصيد الثابت'!$D$2:$D$115,B93,'الرصيد الثابت'!$I$2:$I$115)) ->  | E93: =IF(B93="","",SUMIF('الرصيد الثابت'!$D$2:$D$115,B93,'الرصيد الثابت'!$J$2:$J$115)) ->  | G93: 0 | L93: 0 | P93: 0 | R93: 0 | CF93: =IFERROR(VLOOKUP(ROWS($CF$3:CF93),$CH$3:$CI$2001,2,FALSE),"") -> اورنح كورد مبطط | CH93: =IF(ISNUMBER(SEARCH(B93,CI93)),MAX($CH$2:CH92)+1,0) -> 88 | CI93: اسود510 كروشيه 3.5cm
C94: =IF(B94="","",SUMIF('الرصيد الثابت'!$D$2:$D$115,B94,'الرصيد الثابت'!$H$2:$H$115)) ->  | D94: =IF(B94="","",SUMIF('الرصيد الثابت'!$D$2:$D$115,B94,'الرصيد الثابت'!$I$2:$I$115)) ->  | E94: =IF(B94="","",SUMIF('الرصيد الثابت'!$D$2:$D$115,B94,'الرصيد الثابت'!$J$2:$J$115)) ->  | G94: 0 | L94: 0 | P94: 0 | R94: 0 | CF94: =IFERROR(VLOOKUP(ROWS($CF$3:CF94),$CH$3:$CI$2001,2,FALSE),"") -> بينك ووفين فستون 1cm | CH94: =IF(ISNUMBER(SEARCH(B94,CI94)),MAX($CH$2:CH93)+1,0) -> 89 | CI94: الالوان كورد 1.2cm
C95: =IF(B95="","",SUMIF('الرصيد الثابت'!$D$2:$D$115,B95,'الرصيد الثابت'!$H$2:$H$115)) ->  | D95: =IF(B95="","",SUMIF('الرصيد الثابت'!$D$2:$D$115,B95,'الرصيد الثابت'!$I$2:$I$115)) ->  | E95: =IF(B95="","",SUMIF('الرصيد الثابت'!$D$2:$D$115,B95,'الرصيد الثابت'!$J$2:$J$115)) ->  | G95: 0 | L95: 0 | P95: 0 | R95: 0 | CF95: =IFERROR(VLOOKUP(ROWS($CF$3:CF95),$CH$3:$CI$2001,2,FALSE),"") -> بينك ووفين فستون 1.3cm | CH95: =IF(ISNUMBER(SEARCH(B95,CI95)),MAX($CH$2:CH94)+1,0) -> 90 | CI95: اورنج كورد 1.2cm
C96: =IF(B96="","",SUMIF('الرصيد الثابت'!$D$2:$D$115,B96,'الرصيد الثابت'!$H$2:$H$115)) ->  | D96: =IF(B96="","",SUMIF('الرصيد الثابت'!$D$2:$D$115,B96,'الرصيد الثابت'!$I$2:$I$115)) ->  | E96: =IF(B96="","",SUMIF('الرصيد الثابت'!$D$2:$D$115,B96,'الرصيد الثابت'!$J$2:$J$115)) ->  | G96: 0 | L96: 0 | P96: 0 | R96: 0 | CF96: =IFERROR(VLOOKUP(ROWS($CF$3:CF96),$CH$3:$CI$2001,2,FALSE),"") -> رصاصي استريب كروشيه 3cm | CH96: =IF(ISNUMBER(SEARCH(B96,CI96)),MAX($CH$2:CH95)+1,0) -> 91 | CI96: اورنح كورد مبطط
C97: =IF(B97="","",SUMIF('الرصيد الثابت'!$D$2:$D$115,B97,'الرصيد الثابت'!$H$2:$H$115)) ->  | D97: =IF(B97="","",SUMIF('الرصيد الثابت'!$D$2:$D$115,B97,'الرصيد الثابت'!$I$2:$I$115)) ->  | E97: =IF(B97="","",SUMIF('الرصيد الثابت'!$D$2:$D$115,B97,'الرصيد الثابت'!$J$2:$J$115)) ->  | G97: 0 | L97: 0 | P97: 0 | R97: 0 | CF97: =IFERROR(VLOOKUP(ROWS($CF$3:CF97),$CH$3:$CI$2001,2,FALSE),"") -> زهري كورد مبطط | CH97: =IF(ISNUMBER(SEARCH(B97,CI97)),MAX($CH$2:CH96)+1,0) -> 92 | CI97: بينك ووفين فستون 1cm
C98: =IF(B98="","",SUMIF('الرصيد الثابت'!$D$2:$D$115,B98,'الرصيد الثابت'!$H$2:$H$115)) ->  | D98: =IF(B98="","",SUMIF('الرصيد الثابت'!$D$2:$D$115,B98,'الرصيد الثابت'!$I$2:$I$115)) ->  | E98: =IF(B98="","",SUMIF('الرصيد الثابت'!$D$2:$D$115,B98,'الرصيد الثابت'!$J$2:$J$115)) ->  | G98: 0 | L98: 0 | P98: 0 | R98: 0 | CF98: =IFERROR(VLOOKUP(ROWS($CF$3:CF98),$CH$3:$CI$2001,2,FALSE),"") -> شاركول كورد مبطط | CH98: =IF(ISNUMBER(SEARCH(B98,CI98)),MAX($CH$2:CH97)+1,0) -> 93 | CI98: بينك ووفين فستون 1.3cm
C99: =IF(B99="","",SUMIF('الرصيد الثابت'!$D$2:$D$115,B99,'الرصيد الثابت'!$H$2:$H$115)) ->  | D99: =IF(B99="","",SUMIF('الرصيد الثابت'!$D$2:$D$115,B99,'الرصيد الثابت'!$I$2:$I$115)) ->  | E99: =IF(B99="","",SUMIF('الرصيد الثابت'!$D$2:$D$115,B99,'الرصيد الثابت'!$J$2:$J$115)) ->  | G99: 0 | L99: 0 | P99: 0 | R99: 0 | CF99: =IFERROR(VLOOKUP(ROWS($CF$3:CF99),$CH$3:$CI$2001,2,FALSE),"") -> موف غامق كروشيه 1.6cm | CH99: =IF(ISNUMBER(SEARCH(B99,CI99)),MAX($CH$2:CH98)+1,0) -> 94 | CI99: رصاصي استريب كروشيه 3cm
C100: =IF(B100="","",SUMIF('الرصيد الثابت'!$D$2:$D$115,B100,'الرصيد الثابت'!$H$2:$H$115)) ->  | D100: =IF(B100="","",SUMIF('الرصيد الثابت'!$D$2:$D$115,B100,'الرصيد الثابت'!$I$2:$I$115)) ->  | E100: =IF(B100="","",SUMIF('الرصيد الثابت'!$D$2:$D$115,B100,'الرصيد الثابت'!$J$2:$J$115)) ->  | G100: 0 | L100: 0 | P100: 0 | R100: 0 | CF100: =IFERROR(VLOOKUP(ROWS($CF$3:CF100),$CH$3:$CI$2001,2,FALSE),"") -> كروشيه 1.8cm | CH100: =IF(ISNUMBER(SEARCH(B100,CI100)),MAX($CH$2:CH99)+1,0) -> 95 | CI100: زهري كورد مبطط
C101: =IF(B101="","",SUMIF('الرصيد الثابت'!$D$2:$D$115,B101,'الرصيد الثابت'!$H$2:$H$115)) ->  | D101: =IF(B101="","",SUMIF('الرصيد الثابت'!$D$2:$D$115,B101,'الرصيد الثابت'!$I$2:$I$115)) ->  | E101: =IF(B101="","",SUMIF('الرصيد الثابت'!$D$2:$D$115,B101,'الرصيد الثابت'!$J$2:$J$115)) ->  | G101: 0 | L101: 0 | P101: 0 | R101: 0 | CF101: =IFERROR(VLOOKUP(ROWS($CF$3:CF101),$CH$3:$CI$2001,2,FALSE),"") -> كروشيه 1.9cm | CH101: =IF(ISNUMBER(SEARCH(B101,CI101)),MAX($CH$2:CH100)+1,0) -> 96 | CI101: شاركول كورد مبطط
C102: =IF(B102="","",SUMIF('الرصيد الثابت'!$D$2:$D$115,B102,'الرصيد الثابت'!$H$2:$H$115)) ->  | D102: =IF(B102="","",SUMIF('الرصيد الثابت'!$D$2:$D$115,B102,'الرصيد الثابت'!$I$2:$I$115)) ->  | E102: =IF(B102="","",SUMIF('الرصيد الثابت'!$D$2:$D$115,B102,'الرصيد الثابت'!$J$2:$J$115)) ->  | G102: 0 | L102: 0 | P102: 0 | R102: 0 | CF102: =IFERROR(VLOOKUP(ROWS($CF$3:CF102),$CH$3:$CI$2001,2,FALSE),"") -> موف فاتح كروشيه 4,6 | CH102: =IF(ISNUMBER(SEARCH(B102,CI102)),MAX($CH$2:CH101)+1,0) -> 97 | CI102: موف غامق كروشيه 1.6cm
C103: =IF(B103="","",SUMIF('الرصيد الثابت'!$D$2:$D$115,B103,'الرصيد الثابت'!$H$2:$H$115)) ->  | D103: =IF(B103="","",SUMIF('الرصيد الثابت'!$D$2:$D$115,B103,'الرصيد الثابت'!$I$2:$I$115)) ->  | E103: =IF(B103="","",SUMIF('الرصيد الثابت'!$D$2:$D$115,B103,'الرصيد الثابت'!$J$2:$J$115)) ->  | G103: 0 | L103: 0 | P103: 0 | R103: 0 | CF103: =IFERROR(VLOOKUP(ROWS($CF$3:CF103),$CH$3:$CI$2001,2,FALSE),"") ->  | CH103: =IF(ISNUMBER(SEARCH(B103,CI103)),MAX($CH$2:CH102)+1,0) -> 98 | CI103: كروشيه 1.8cm
C104: =IF(B104="","",SUMIF('الرصيد الثابت'!$D$2:$D$115,B104,'الرصيد الثابت'!$H$2:$H$115)) ->  | D104: =IF(B104="","",SUMIF('الرصيد الثابت'!$D$2:$D$115,B104,'الرصيد الثابت'!$I$2:$I$115)) ->  | E104: =IF(B104="","",SUMIF('الرصيد الثابت'!$D$2:$D$115,B104,'الرصيد الثابت'!$J$2:$J$115)) ->  | G104: 0 | L104: 0 | P104: 0 | R104: 0 | CF104: =IFERROR(VLOOKUP(ROWS($CF$3:CF104),$CH$3:$CI$2001,2,FALSE),"") ->  | CH104: =IF(ISNUMBER(SEARCH(B104,CI104)),MAX($CH$2:CH103)+1,0) -> 99 | CI104: كروشيه 1.9cm
C105: =IF(B105="","",SUMIF('الرصيد الثابت'!$D$2:$D$115,B105,'الرصيد الثابت'!$H$2:$H$115)) ->  | D105: =IF(B105="","",SUMIF('الرصيد الثابت'!$D$2:$D$115,B105,'الرصيد الثابت'!$I$2:$I$115)) ->  | E105: =IF(B105="","",SUMIF('الرصيد الثابت'!$D$2:$D$115,B105,'الرصيد الثابت'!$J$2:$J$115)) ->  | G105: 0 | L105: 0 | P105: 0 | R105: 0 | CF105: =IFERROR(VLOOKUP(ROWS($CF$3:CF105),$CH$3:$CI$2001,2,FALSE),"") ->  | CH105: =IF(ISNUMBER(SEARCH(B105,CI105)),MAX($CH$2:CH104)+1,0) -> 100 | CI105: موف فاتح كروشيه 4,6
C106: =IF(B106="","",SUMIF('الرصيد الثابت'!$D$2:$D$115,B106,'الرصيد الثابت'!$H$2:$H$115)) ->  | D106: =IF(B106="","",SUMIF('الرصيد الثابت'!$D$2:$D$115,B106,'الرصيد الثابت'!$I$2:$I$115)) ->  | E106: =IF(B106="","",SUMIF('الرصيد الثابت'!$D$2:$D$115,B106,'الرصيد الثابت'!$J$2:$J$115)) ->  | G106: 0 | L106: 0 | P106: 0 | R106: 0 | CF106: =IFERROR(VLOOKUP(ROWS($CF$3:CF106),$CH$3:$CI$2001,2,FALSE),"") ->  | CH106: =IF(ISNUMBER(SEARCH(B106,CI106)),MAX($CH$2:CH105)+1,0) -> 0
C107: =IF(B107="","",SUMIF('الرصيد الثابت'!$D$2:$D$115,B107,'الرصيد الثابت'!$H$2:$H$115)) ->  | D107: =IF(B107="","",SUMIF('الرصيد الثابت'!$D$2:$D$115,B107,'الرصيد الثابت'!$I$2:$I$115)) ->  | E107: =IF(B107="","",SUMIF('الرصيد الثابت'!$D$2:$D$115,B107,'الرصيد الثابت'!$J$2:$J$115)) ->  | G107: 0 | L107: 0 | P107: 0 | R107: 0 | CF107: =IFERROR(VLOOKUP(ROWS($CF$3:CF107),$CH$3:$CI$2001,2,FALSE),"") ->  | CH107: =IF(ISNUMBER(SEARCH(B107,CI107)),MAX($CH$2:CH106)+1,0) -> 0
C108: =IF(B108="","",SUMIF('الرصيد الثابت'!$D$2:$D$115,B108,'الرصيد الثابت'!$H$2:$H$115)) ->  | D108: =IF(B108="","",SUMIF('الرصيد الثابت'!$D$2:$D$115,B108,'الرصيد الثابت'!$I$2:$I$115)) ->  | E108: =IF(B108="","",SUMIF('الرصيد الثابت'!$D$2:$D$115,B108,'الرصيد الثابت'!$J$2:$J$115)) ->  | G108: 0 | L108: 0 | P108: 0 | R108: 0 | CF108: =IFERROR(VLOOKUP(ROWS($CF$3:CF108),$CH$3:$CI$2001,2,FALSE),"") ->  | CH108: =IF(ISNUMBER(SEARCH(B108,CI108)),MAX($CH$2:CH107)+1,0) -> 0
C109: =IF(B109="","",SUMIF('الرصيد الثابت'!$D$2:$D$115,B109,'الرصيد الثابت'!$H$2:$H$115)) ->  | D109: =IF(B109="","",SUMIF('الرصيد الثابت'!$D$2:$D$115,B109,'الرصيد الثابت'!$I$2:$I$115)) ->  | E109: =IF(B109="","",SUMIF('الرصيد الثابت'!$D$2:$D$115,B109,'الرصيد الثابت'!$J$2:$J$115)) ->  | G109: 0 | L109: 0 | P109: 0 | R109: 0 | CF109: =IFERROR(VLOOKUP(ROWS($CF$3:CF109),$CH$3:$CI$2001,2,FALSE),"") ->  | CH109: =IF(ISNUMBER(SEARCH(B109,CI109)),MAX($CH$2:CH108)+1,0) -> 0
C110: =IF(B110="","",SUMIF('الرصيد الثابت'!$D$2:$D$115,B110,'الرصيد الثابت'!$H$2:$H$115)) ->  | D110: =IF(B110="","",SUMIF('الرصيد الثابت'!$D$2:$D$115,B110,'الرصيد الثابت'!$I$2:$I$115)) ->  | E110: =IF(B110="","",SUMIF('الرصيد الثابت'!$D$2:$D$115,B110,'الرصيد الثابت'!$J$2:$J$115)) ->  | G110: 0 | L110: 0 | P110: 0 | R110: 0 | CF110: =IFERROR(VLOOKUP(ROWS($CF$3:CF110),$CH$3:$CI$2001,2,FALSE),"") ->  | CH110: =IF(ISNUMBER(SEARCH(B110,CI110)),MAX($CH$2:CH109)+1,0) -> 0
C111: =IF(B111="","",SUMIF('الرصيد الثابت'!$D$2:$D$115,B111,'الرصيد الثابت'!$H$2:$H$115)) ->  | D111: =IF(B111="","",SUMIF('الرصيد الثابت'!$D$2:$D$115,B111,'الرصيد الثابت'!$I$2:$I$115)) ->  | E111: =IF(B111="","",SUMIF('الرصيد الثابت'!$D$2:$D$115,B111,'الرصيد الثابت'!$J$2:$J$115)) ->  | G111: 0 | L111: 0 | P111: 0 | R111: 0 | CF111: =IFERROR(VLOOKUP(ROWS($CF$3:CF111),$CH$3:$CI$2001,2,FALSE),"") ->  | CH111: =IF(ISNUMBER(SEARCH(B111,CI111)),MAX($CH$2:CH110)+1,0) -> 0
C112: =IF(B112="","",SUMIF('الرصيد الثابت'!$D$2:$D$115,B112,'الرصيد الثابت'!$H$2:$H$115)) ->  | D112: =IF(B112="","",SUMIF('الرصيد الثابت'!$D$2:$D$115,B112,'الرصيد الثابت'!$I$2:$I$115)) ->  | E112: =IF(B112="","",SUMIF('الرصيد الثابت'!$D$2:$D$115,B112,'الرصيد الثابت'!$J$2:$J$115)) ->  | G112: 0 | L112: 0 | P112: 0 | R112: 0 | CF112: =IFERROR(VLOOKUP(ROWS($CF$3:CF112),$CH$3:$CI$2001,2,FALSE),"") ->  | CH112: =IF(ISNUMBER(SEARCH(B112,CI112)),MAX($CH$2:CH111)+1,0) -> 0
C113: =IF(B113="","",SUMIF('الرصيد الثابت'!$D$2:$D$115,B113,'الرصيد الثابت'!$H$2:$H$115)) ->  | D113: =IF(B113="","",SUMIF('الرصيد الثابت'!$D$2:$D$115,B113,'الرصيد الثابت'!$I$2:$I$115)) ->  | E113: =IF(B113="","",SUMIF('الرصيد الثابت'!$D$2:$D$115,B113,'الرصيد الثابت'!$J$2:$J$115)) ->  | G113: 0 | L113: 0 | P113: 0 | R113: 0 | CF113: =IFERROR(VLOOKUP(ROWS($CF$3:CF113),$CH$3:$CI$2001,2,FALSE),"") ->  | CH113: =IF(ISNUMBER(SEARCH(B113,CI113)),MAX($CH$2:CH112)+1,0) -> 0
C114: =IF(B114="","",SUMIF('الرصيد الثابت'!$D$2:$D$115,B114,'الرصيد الثابت'!$H$2:$H$115)) ->  | D114: =IF(B114="","",SUMIF('الرصيد الثابت'!$D$2:$D$115,B114,'الرصيد الثابت'!$I$2:$I$115)) ->  | E114: =IF(B114="","",SUMIF('الرصيد الثابت'!$D$2:$D$115,B114,'الرصيد الثابت'!$J$2:$J$115)) ->  | G114: 0 | L114: 0 | P114: 0 | R114: 0 | CF114: =IFERROR(VLOOKUP(ROWS($CF$3:CF114),$CH$3:$CI$2001,2,FALSE),"") ->  | CH114: =IF(ISNUMBER(SEARCH(B114,CI114)),MAX($CH$2:CH113)+1,0) -> 0
C115: =IF(B115="","",SUMIF('الرصيد الثابت'!$D$2:$D$115,B115,'الرصيد الثابت'!$H$2:$H$115)) ->  | D115: =IF(B115="","",SUMIF('الرصيد الثابت'!$D$2:$D$115,B115,'الرصيد الثابت'!$I$2:$I$115)) ->  | E115: =IF(B115="","",SUMIF('الرصيد الثابت'!$D$2:$D$115,B115,'الرصيد الثابت'!$J$2:$J$115)) ->  | G115: 0 | L115: 0 | P115: 0 | R115: 0 | CF115: =IFERROR(VLOOKUP(ROWS($CF$3:CF115),$CH$3:$CI$2001,2,FALSE),"") ->  | CH115: =IF(ISNUMBER(SEARCH(B115,CI115)),MAX($CH$2:CH114)+1,0) -> 0
C116: =IF(B116="","",SUMIF('الرصيد الثابت'!$D$2:$D$115,B116,'الرصيد الثابت'!$H$2:$H$115)) ->  | D116: =IF(B116="","",SUMIF('الرصيد الثابت'!$D$2:$D$115,B116,'الرصيد الثابت'!$I$2:$I$115)) ->  | E116: =IF(B116="","",SUMIF('الرصيد الثابت'!$D$2:$D$115,B116,'الرصيد الثابت'!$J$2:$J$115)) ->  | G116: 0 | L116: 0 | P116: 0 | R116: 0 | CF116: =IFERROR(VLOOKUP(ROWS($CF$3:CF116),$CH$3:$CI$2001,2,FALSE),"") ->  | CH116: =IF(ISNUMBER(SEARCH(B116,CI116)),MAX($CH$2:CH115)+1,0) -> 0
C117: =IF(B117="","",SUMIF('الرصيد الثابت'!$D$2:$D$115,B117,'الرصيد الثابت'!$H$2:$H$115)) ->  | D117: =IF(B117="","",SUMIF('الرصيد الثابت'!$D$2:$D$115,B117,'الرصيد الثابت'!$I$2:$I$115)) ->  | E117: =IF(B117="","",SUMIF('الرصيد الثابت'!$D$2:$D$115,B117,'الرصيد الثابت'!$J$2:$J$115)) ->  | G117: 0 | L117: 0 | P117: 0 | R117: 0 | CF117: =IFERROR(VLOOKUP(ROWS($CF$3:CF117),$CH$3:$CI$2001,2,FALSE),"") ->  | CH117: =IF(ISNUMBER(SEARCH(B117,CI117)),MAX($CH$2:CH116)+1,0) -> 0
C118: =IF(B118="","",SUMIF('الرصيد الثابت'!$D$2:$D$115,B118,'الرصيد الثابت'!$H$2:$H$115)) ->  | D118: =IF(B118="","",SUMIF('الرصيد الثابت'!$D$2:$D$115,B118,'الرصيد الثابت'!$I$2:$I$115)) ->  | E118: =IF(B118="","",SUMIF('الرصيد الثابت'!$D$2:$D$115,B118,'الرصيد الثابت'!$J$2:$J$115)) ->  | G118: 0 | L118: 0 | P118: 0 | R118: 0 | CF118: =IFERROR(VLOOKUP(ROWS($CF$3:CF118),$CH$3:$CI$2001,2,FALSE),"") ->  | CH118: =IF(ISNUMBER(SEARCH(B118,CI118)),MAX($CH$2:CH117)+1,0) -> 0
C119: =IF(B119="","",SUMIF('الرصيد الثابت'!$D$2:$D$115,B119,'الرصيد الثابت'!$H$2:$H$115)) ->  | D119: =IF(B119="","",SUMIF('الرصيد الثابت'!$D$2:$D$115,B119,'الرصيد الثابت'!$I$2:$I$115)) ->  | E119: =IF(B119="","",SUMIF('الرصيد الثابت'!$D$2:$D$115,B119,'الرصيد الثابت'!$J$2:$J$115)) ->  | G119: 0 | L119: 0 | P119: 0 | R119: 0 | CF119: =IFERROR(VLOOKUP(ROWS($CF$3:CF119),$CH$3:$CI$2001,2,FALSE),"") ->  | CH119: =IF(ISNUMBER(SEARCH(B119,CI119)),MAX($CH$2:CH118)+1,0) -> 0
C120: =IF(B120="","",SUMIF('الرصيد الثابت'!$D$2:$D$115,B120,'الرصيد الثابت'!$H$2:$H$115)) ->  | D120: =IF(B120="","",SUMIF('الرصيد الثابت'!$D$2:$D$115,B120,'الرصيد الثابت'!$I$2:$I$115)) ->  | E120: =IF(B120="","",SUMIF('الرصيد الثابت'!$D$2:$D$115,B120,'الرصيد الثابت'!$J$2:$J$115)) ->  | G120: 0 | L120: 0 | P120: 0 | R120: 0 | CF120: =IFERROR(VLOOKUP(ROWS($CF$3:CF120),$CH$3:$CI$2001,2,FALSE),"") ->  | CH120: =IF(ISNUMBER(SEARCH(B120,CI120)),MAX($CH$2:CH119)+1,0) -> 0
C121: =IF(B121="","",SUMIF('الرصيد الثابت'!$D$2:$D$115,B121,'الرصيد الثابت'!$H$2:$H$115)) ->  | D121: =IF(B121="","",SUMIF('الرصيد الثابت'!$D$2:$D$115,B121,'الرصيد الثابت'!$I$2:$I$115)) ->  | E121: =IF(B121="","",SUMIF('الرصيد الثابت'!$D$2:$D$115,B121,'الرصيد الثابت'!$J$2:$J$115)) ->  | G121: 0 | L121: 0 | P121: 0 | R121: 0 | CF121: =IFERROR(VLOOKUP(ROWS($CF$3:CF121),$CH$3:$CI$2001,2,FALSE),"") ->  | CH121: =IF(ISNUMBER(SEARCH(B121,CI121)),MAX($CH$2:CH120)+1,0) -> 0
C122: =IF(B122="","",SUMIF('الرصيد الثابت'!$D$2:$D$115,B122,'الرصيد الثابت'!$H$2:$H$115)) ->  | D122: =IF(B122="","",SUMIF('الرصيد الثابت'!$D$2:$D$115,B122,'الرصيد الثابت'!$I$2:$I$115)) ->  | E122: =IF(B122="","",SUMIF('الرصيد الثابت'!$D$2:$D$115,B122,'الرصيد الثابت'!$J$2:$J$115)) ->  | G122: 0 | L122: 0 | P122: 0 | R122: 0 | CF122: =IFERROR(VLOOKUP(ROWS($CF$3:CF122),$CH$3:$CI$2001,2,FALSE),"") ->  | CH122: =IF(ISNUMBER(SEARCH(B122,CI122)),MAX($CH$2:CH121)+1,0) -> 0
C123: =IF(B123="","",SUMIF('الرصيد الثابت'!$D$2:$D$115,B123,'الرصيد الثابت'!$H$2:$H$115)) ->  | D123: =IF(B123="","",SUMIF('الرصيد الثابت'!$D$2:$D$115,B123,'الرصيد الثابت'!$I$2:$I$115)) ->  | E123: =IF(B123="","",SUMIF('الرصيد الثابت'!$D$2:$D$115,B123,'الرصيد الثابت'!$J$2:$J$115)) ->  | G123: 0 | L123: 0 | P123: 0 | R123: 0 | CF123: =IFERROR(VLOOKUP(ROWS($CF$3:CF123),$CH$3:$CI$2001,2,FALSE),"") ->  | CH123: =IF(ISNUMBER(SEARCH(B123,CI123)),MAX($CH$2:CH122)+1,0) -> 0
C124: =IF(B124="","",SUMIF('الرصيد الثابت'!$D$2:$D$115,B124,'الرصيد الثابت'!$H$2:$H$115)) ->  | D124: =IF(B124="","",SUMIF('الرصيد الثابت'!$D$2:$D$115,B124,'الرصيد الثابت'!$I$2:$I$115)) ->  | E124: =IF(B124="","",SUMIF('الرصيد الثابت'!$D$2:$D$115,B124,'الرصيد الثابت'!$J$2:$J$115)) ->  | G124: 0 | L124: 0 | P124: 0 | R124: 0 | CF124: =IFERROR(VLOOKUP(ROWS($CF$3:CF124),$CH$3:$CI$2001,2,FALSE),"") ->  | CH124: =IF(ISNUMBER(SEARCH(B124,CI124)),MAX($CH$2:CH123)+1,0) -> 0
C125: =IF(B125="","",SUMIF('الرصيد الثابت'!$D$2:$D$115,B125,'الرصيد الثابت'!$H$2:$H$115)) ->  | D125: =IF(B125="","",SUMIF('الرصيد الثابت'!$D$2:$D$115,B125,'الرصيد الثابت'!$I$2:$I$115)) ->  | E125: =IF(B125="","",SUMIF('الرصيد الثابت'!$D$2:$D$115,B125,'الرصيد الثابت'!$J$2:$J$115)) ->  | G125: 0 | L125: 0 | P125: 0 | R125: 0 | CF125: =IFERROR(VLOOKUP(ROWS($CF$3:CF125),$CH$3:$CI$2001,2,FALSE),"") ->  | CH125: =IF(ISNUMBER(SEARCH(B125,CI125)),MAX($CH$2:CH124)+1,0) -> 0
C126: =IF(B126="","",SUMIF('الرصيد الثابت'!$D$2:$D$115,B126,'الرصيد الثابت'!$H$2:$H$115)) ->  | D126: =IF(B126="","",SUMIF('الرصيد الثابت'!$D$2:$D$115,B126,'الرصيد الثابت'!$I$2:$I$115)) ->  | E126: =IF(B126="","",SUMIF('الرصيد الثابت'!$D$2:$D$115,B126,'الرصيد الثابت'!$J$2:$J$115)) ->  | G126: 0 | L126: 0 | P126: 0 | R126: 0 | CF126: =IFERROR(VLOOKUP(ROWS($CF$3:CF126),$CH$3:$CI$2001,2,FALSE),"") ->  | CH126: =IF(ISNUMBER(SEARCH(B126,CI126)),MAX($CH$2:CH125)+1,0) -> 0
C127: =IF(B127="","",SUMIF('الرصيد الثابت'!$D$2:$D$115,B127,'الرصيد الثابت'!$H$2:$H$115)) ->  | D127: =IF(B127="","",SUMIF('الرصيد الثابت'!$D$2:$D$115,B127,'الرصيد الثابت'!$I$2:$I$115)) ->  | E127: =IF(B127="","",SUMIF('الرصيد الثابت'!$D$2:$D$115,B127,'الرصيد الثابت'!$J$2:$J$115)) ->  | G127: 0 | L127: 0 | P127: 0 | R127: 0 | CF127: =IFERROR(VLOOKUP(ROWS($CF$3:CF127),$CH$3:$CI$2001,2,FALSE),"") ->  | CH127: =IF(ISNUMBER(SEARCH(B127,CI127)),MAX($CH$2:CH126)+1,0) -> 0
C128: =IF(B128="","",SUMIF('الرصيد الثابت'!$D$2:$D$115,B128,'الرصيد الثابت'!$H$2:$H$115)) ->  | D128: =IF(B128="","",SUMIF('الرصيد الثابت'!$D$2:$D$115,B128,'الرصيد الثابت'!$I$2:$I$115)) ->  | E128: =IF(B128="","",SUMIF('الرصيد الثابت'!$D$2:$D$115,B128,'الرصيد الثابت'!$J$2:$J$115)) ->  | G128: 0 | L128: 0 | P128: 0 | R128: 0 | CF128: =IFERROR(VLOOKUP(ROWS($CF$3:CF128),$CH$3:$CI$2001,2,FALSE),"") ->  | CH128: =IF(ISNUMBER(SEARCH(B128,CI128)),MAX($CH$2:CH127)+1,0) -> 0
C129: =IF(B129="","",SUMIF('الرصيد الثابت'!$D$2:$D$115,B129,'الرصيد الثابت'!$H$2:$H$115)) ->  | D129: =IF(B129="","",SUMIF('الرصيد الثابت'!$D$2:$D$115,B129,'الرصيد الثابت'!$I$2:$I$115)) ->  | E129: =IF(B129="","",SUMIF('الرصيد الثابت'!$D$2:$D$115,B129,'الرصيد الثابت'!$J$2:$J$115)) ->  | G129: 0 | L129: 0 | P129: 0 | R129: 0 | CF129: =IFERROR(VLOOKUP(ROWS($CF$3:CF129),$CH$3:$CI$2001,2,FALSE),"") ->  | CH129: =IF(ISNUMBER(SEARCH(B129,CI129)),MAX($CH$2:CH128)+1,0) -> 0
C130: =IF(B130="","",SUMIF('الرصيد الثابت'!$D$2:$D$115,B130,'الرصيد الثابت'!$H$2:$H$115)) ->  | D130: =IF(B130="","",SUMIF('الرصيد الثابت'!$D$2:$D$115,B130,'الرصيد الثابت'!$I$2:$I$115)) ->  | E130: =IF(B130="","",SUMIF('الرصيد الثابت'!$D$2:$D$115,B130,'الرصيد الثابت'!$J$2:$J$115)) ->  | G130: 0 | L130: 0 | P130: 0 | R130: 0 | CF130: =IFERROR(VLOOKUP(ROWS($CF$3:CF130),$CH$3:$CI$2001,2,FALSE),"") ->  | CH130: =IF(ISNUMBER(SEARCH(B130,CI130)),MAX($CH$2:CH129)+1,0) -> 0
C131: =IF(B131="","",SUMIF('الرصيد الثابت'!$D$2:$D$115,B131,'الرصيد الثابت'!$H$2:$H$115)) ->  | D131: =IF(B131="","",SUMIF('الرصيد الثابت'!$D$2:$D$115,B131,'الرصيد الثابت'!$I$2:$I$115)) ->  | E131: =IF(B131="","",SUMIF('الرصيد الثابت'!$D$2:$D$115,B131,'الرصيد الثابت'!$J$2:$J$115)) ->  | G131: 0 | L131: =SUM(M131*K131) -> 0 | P131: 0 | R131: 0 | CF131: =IFERROR(VLOOKUP(ROWS($CF$3:CF131),$CH$3:$CI$2001,2,FALSE),"") ->  | CH131: =IF(ISNUMBER(SEARCH(B131,CI131)),MAX($CH$2:CH130)+1,0) -> 0
C132: =IF(B132="","",SUMIF('الرصيد الثابت'!$D$2:$D$115,B132,'الرصيد الثابت'!$H$2:$H$115)) ->  | D132: =IF(B132="","",SUMIF('الرصيد الثابت'!$D$2:$D$115,B132,'الرصيد الثابت'!$I$2:$I$115)) ->  | E132: =IF(B132="","",SUMIF('الرصيد الثابت'!$D$2:$D$115,B132,'الرصيد الثابت'!$J$2:$J$115)) ->  | G132: =SUM(H132*F132) -> 0 | L132: 0 | P132: =SUM(F132-K132) -> 0 | R132: 0 | CF132: =IFERROR(VLOOKUP(ROWS($CF$3:CF132),$CH$3:$CI$2001,2,FALSE),"") ->  | CH132: =IF(ISNUMBER(SEARCH(B132,CI132)),MAX($CH$2:CH131)+1,0) -> 0
C133: =IF(B133="","",SUMIF('الرصيد الثابت'!$D$2:$D$115,B133,'الرصيد الثابت'!$H$2:$H$115)) ->  | D133: =IF(B133="","",SUMIF('الرصيد الثابت'!$D$2:$D$115,B133,'الرصيد الثابت'!$I$2:$I$115)) ->  | E133: =IF(B133="","",SUMIF('الرصيد الثابت'!$D$2:$D$115,B133,'الرصيد الثابت'!$J$2:$J$115)) ->  | G133: 0 | L133: 0 | P133: 0 | R133: 0 | CF133: =IFERROR(VLOOKUP(ROWS($CF$3:CF133),$CH$3:$CI$2001,2,FALSE),"") ->  | CH133: =IF(ISNUMBER(SEARCH(B133,CI133)),MAX($CH$2:CH132)+1,0) -> 0
C134: =IF(B134="","",SUMIF('الرصيد الثابت'!$D$2:$D$115,B134,'الرصيد الثابت'!$H$2:$H$115)) ->  | D134: =IF(B134="","",SUMIF('الرصيد الثابت'!$D$2:$D$115,B134,'الرصيد الثابت'!$I$2:$I$115)) ->  | E134: =IF(B134="","",SUMIF('الرصيد الثابت'!$D$2:$D$115,B134,'الرصيد الثابت'!$J$2:$J$115)) ->  | G134: 0 | L134: 0 | P134: 0 | R134: 0 | CF134: =IFERROR(VLOOKUP(ROWS($CF$3:CF134),$CH$3:$CI$2001,2,FALSE),"") ->  | CH134: =IF(ISNUMBER(SEARCH(B134,CI134)),MAX($CH$2:CH133)+1,0) -> 0
C135: =IF(B135="","",SUMIF('الرصيد الثابت'!$D$2:$D$115,B135,'الرصيد الثابت'!$H$2:$H$115)) ->  | D135: =IF(B135="","",SUMIF('الرصيد الثابت'!$D$2:$D$115,B135,'الرصيد الثابت'!$I$2:$I$115)) ->  | E135: =IF(B135="","",SUMIF('الرصيد الثابت'!$D$2:$D$115,B135,'الرصيد الثابت'!$J$2:$J$115)) ->  | G135: 0 | L135: 0 | P135: 0 | R135: =SUM(S135*Q135) -> 0 | CF135: =IFERROR(VLOOKUP(ROWS($CF$3:CF135),$CH$3:$CI$2001,2,FALSE),"") ->  | CH135: =IF(ISNUMBER(SEARCH(B135,CI135)),MAX($CH$2:CH134)+1,0) -> 0
C136: =IF(B136="","",SUMIF('الرصيد الثابت'!$D$2:$D$115,B136,'الرصيد الثابت'!$H$2:$H$115)) ->  | D136: =IF(B136="","",SUMIF('الرصيد الثابت'!$D$2:$D$115,B136,'الرصيد الثابت'!$I$2:$I$115)) ->  | E136: =IF(B136="","",SUMIF('الرصيد الثابت'!$D$2:$D$115,B136,'الرصيد الثابت'!$J$2:$J$115)) ->  | G136: 0 | L136: 0 | P136: 0 | R136: 0 | CF136: =IFERROR(VLOOKUP(ROWS($CF$3:CF136),$CH$3:$CI$2001,2,FALSE),"") ->  | CH136: =IF(ISNUMBER(SEARCH(B136,CI136)),MAX($CH$2:CH135)+1,0) -> 0
C137: =IF(B137="","",SUMIF('الرصيد الثابت'!$D$2:$D$115,B137,'الرصيد الثابت'!$H$2:$H$115)) ->  | D137: =IF(B137="","",SUMIF('الرصيد الثابت'!$D$2:$D$115,B137,'الرصيد الثابت'!$I$2:$I$115)) ->  | E137: =IF(B137="","",SUMIF('الرصيد الثابت'!$D$2:$D$115,B137,'الرصيد الثابت'!$J$2:$J$115)) ->  | G137: 0 | L137: 0 | P137: 0 | R137: 0 | CF137: =IFERROR(VLOOKUP(ROWS($CF$3:CF137),$CH$3:$CI$2001,2,FALSE),"") ->  | CH137: =IF(ISNUMBER(SEARCH(B137,CI137)),MAX($CH$2:CH136)+1,0) -> 0
C138: =IF(B138="","",SUMIF('الرصيد الثابت'!$D$2:$D$115,B138,'الرصيد الثابت'!$H$2:$H$115)) ->  | D138: =IF(B138="","",SUMIF('الرصيد الثابت'!$D$2:$D$115,B138,'الرصيد الثابت'!$I$2:$I$115)) ->  | E138: =IF(B138="","",SUMIF('الرصيد الثابت'!$D$2:$D$115,B138,'الرصيد الثابت'!$J$2:$J$115)) ->  | G138: 0 | L138: 0 | P138: 0 | R138: 0 | CF138: =IFERROR(VLOOKUP(ROWS($CF$3:CF138),$CH$3:$CI$2001,2,FALSE),"") ->  | CH138: =IF(ISNUMBER(SEARCH(B138,CI138)),MAX($CH$2:CH137)+1,0) -> 0
C139: =IF(B139="","",SUMIF('الرصيد الثابت'!$D$2:$D$115,B139,'الرصيد الثابت'!$H$2:$H$115)) ->  | D139: =IF(B139="","",SUMIF('الرصيد الثابت'!$D$2:$D$115,B139,'الرصيد الثابت'!$I$2:$I$115)) ->  | E139: =IF(B139="","",SUMIF('الرصيد الثابت'!$D$2:$D$115,B139,'الرصيد الثابت'!$J$2:$J$115)) ->  | G139: 0 | L139: 0 | P139: 0 | R139: 0 | CF139: =IFERROR(VLOOKUP(ROWS($CF$3:CF139),$CH$3:$CI$2001,2,FALSE),"") ->  | CH139: =IF(ISNUMBER(SEARCH(B139,CI139)),MAX($CH$2:CH138)+1,0) -> 0
C140: =IF(B140="","",SUMIF('الرصيد الثابت'!$D$2:$D$115,B140,'الرصيد الثابت'!$H$2:$H$115)) ->  | D140: =IF(B140="","",SUMIF('الرصيد الثابت'!$D$2:$D$115,B140,'الرصيد الثابت'!$I$2:$I$115)) ->  | E140: =IF(B140="","",SUMIF('الرصيد الثابت'!$D$2:$D$115,B140,'الرصيد الثابت'!$J$2:$J$115)) ->  | G140: 0 | L140: 0 | P140: 0 | R140: 0 | CF140: =IFERROR(VLOOKUP(ROWS($CF$3:CF140),$CH$3:$CI$2001,2,FALSE),"") ->  | CH140: =IF(ISNUMBER(SEARCH(B140,CI140)),MAX($CH$2:CH139)+1,0) -> 0
C141: =IF(B141="","",SUMIF('الرصيد الثابت'!$D$2:$D$115,B141,'الرصيد الثابت'!$H$2:$H$115)) ->  | D141: =IF(B141="","",SUMIF('الرصيد الثابت'!$D$2:$D$115,B141,'الرصيد الثابت'!$I$2:$I$115)) ->  | E141: =IF(B141="","",SUMIF('الرصيد الثابت'!$D$2:$D$115,B141,'الرصيد الثابت'!$J$2:$J$115)) ->  | G141: 0 | L141: 0 | P141: 0 | R141: 0 | CF141: =IFERROR(VLOOKUP(ROWS($CF$3:CF141),$CH$3:$CI$2001,2,FALSE),"") ->  | CH141: =IF(ISNUMBER(SEARCH(B141,CI141)),MAX($CH$2:CH140)+1,0) -> 0
C142: =IF(B142="","",SUMIF('الرصيد الثابت'!$D$2:$D$115,B142,'الرصيد الثابت'!$H$2:$H$115)) ->  | D142: =IF(B142="","",SUMIF('الرصيد الثابت'!$D$2:$D$115,B142,'الرصيد الثابت'!$I$2:$I$115)) ->  | E142: =IF(B142="","",SUMIF('الرصيد الثابت'!$D$2:$D$115,B142,'الرصيد الثابت'!$J$2:$J$115)) ->  | G142: 0 | L142: 0 | P142: 0 | R142: 0 | CF142: =IFERROR(VLOOKUP(ROWS($CF$3:CF142),$CH$3:$CI$2001,2,FALSE),"") ->  | CH142: =IF(ISNUMBER(SEARCH(B142,CI142)),MAX($CH$2:CH141)+1,0) -> 0
C143: =IF(B143="","",SUMIF('الرصيد الثابت'!$D$2:$D$115,B143,'الرصيد الثابت'!$H$2:$H$115)) ->  | D143: =IF(B143="","",SUMIF('الرصيد الثابت'!$D$2:$D$115,B143,'الرصيد الثابت'!$I$2:$I$115)) ->  | E143: =IF(B143="","",SUMIF('الرصيد الثابت'!$D$2:$D$115,B143,'الرصيد الثابت'!$J$2:$J$115)) ->  | G143: 0 | L143: 0 | P143: 0 | R143: 0 | CF143: =IFERROR(VLOOKUP(ROWS($CF$3:CF143),$CH$3:$CI$2001,2,FALSE),"") ->  | CH143: =IF(ISNUMBER(SEARCH(B143,CI143)),MAX($CH$2:CH142)+1,0) -> 0
C144: =IF(B144="","",SUMIF('الرصيد الثابت'!$D$2:$D$115,B144,'الرصيد الثابت'!$H$2:$H$115)) ->  | D144: =IF(B144="","",SUMIF('الرصيد الثابت'!$D$2:$D$115,B144,'الرصيد الثابت'!$I$2:$I$115)) ->  | E144: =IF(B144="","",SUMIF('الرصيد الثابت'!$D$2:$D$115,B144,'الرصيد الثابت'!$J$2:$J$115)) ->  | G144: 0 | L144: 0 | P144: 0 | R144: 0 | CF144: =IFERROR(VLOOKUP(ROWS($CF$3:CF144),$CH$3:$CI$2001,2,FALSE),"") ->  | CH144: =IF(ISNUMBER(SEARCH(B144,CI144)),MAX($CH$2:CH143)+1,0) -> 0
C145: =IF(B145="","",SUMIF('الرصيد الثابت'!$D$2:$D$115,B145,'الرصيد الثابت'!$H$2:$H$115)) ->  | D145: =IF(B145="","",SUMIF('الرصيد الثابت'!$D$2:$D$115,B145,'الرصيد الثابت'!$I$2:$I$115)) ->  | E145: =IF(B145="","",SUMIF('الرصيد الثابت'!$D$2:$D$115,B145,'الرصيد الثابت'!$J$2:$J$115)) ->  | G145: 0 | L145: 0 | P145: 0 | R145: 0 | CF145: =IFERROR(VLOOKUP(ROWS($CF$3:CF145),$CH$3:$CI$2001,2,FALSE),"") ->  | CH145: =IF(ISNUMBER(SEARCH(B145,CI145)),MAX($CH$2:CH144)+1,0) -> 0
C146: =IF(B146="","",SUMIF('الرصيد الثابت'!$D$2:$D$115,B146,'الرصيد الثابت'!$H$2:$H$115)) ->  | D146: =IF(B146="","",SUMIF('الرصيد الثابت'!$D$2:$D$115,B146,'الرصيد الثابت'!$I$2:$I$115)) ->  | E146: =IF(B146="","",SUMIF('الرصيد الثابت'!$D$2:$D$115,B146,'الرصيد الثابت'!$J$2:$J$115)) ->  | G146: 0 | L146: 0 | P146: 0 | R146: 0 | CF146: =IFERROR(VLOOKUP(ROWS($CF$3:CF146),$CH$3:$CI$2001,2,FALSE),"") ->  | CH146: =IF(ISNUMBER(SEARCH(B146,CI146)),MAX($CH$2:CH145)+1,0) -> 0
C147: =IF(B147="","",SUMIF('الرصيد الثابت'!$D$2:$D$115,B147,'الرصيد الثابت'!$H$2:$H$115)) ->  | D147: =IF(B147="","",SUMIF('الرصيد الثابت'!$D$2:$D$115,B147,'الرصيد الثابت'!$I$2:$I$115)) ->  | E147: =IF(B147="","",SUMIF('الرصيد الثابت'!$D$2:$D$115,B147,'الرصيد الثابت'!$J$2:$J$115)) ->  | G147: 0 | L147: 0 | P147: 0 | R147: 0 | CF147: =IFERROR(VLOOKUP(ROWS($CF$3:CF147),$CH$3:$CI$2001,2,FALSE),"") ->  | CH147: =IF(ISNUMBER(SEARCH(B147,CI147)),MAX($CH$2:CH146)+1,0) -> 0
C148: =IF(B148="","",SUMIF('الرصيد الثابت'!$D$2:$D$115,B148,'الرصيد الثابت'!$H$2:$H$115)) ->  | D148: =IF(B148="","",SUMIF('الرصيد الثابت'!$D$2:$D$115,B148,'الرصيد الثابت'!$I$2:$I$115)) ->  | E148: =IF(B148="","",SUMIF('الرصيد الثابت'!$D$2:$D$115,B148,'الرصيد الثابت'!$J$2:$J$115)) ->  | G148: 0 | L148: 0 | P148: 0 | R148: 0 | CF148: =IFERROR(VLOOKUP(ROWS($CF$3:CF148),$CH$3:$CI$2001,2,FALSE),"") ->  | CH148: =IF(ISNUMBER(SEARCH(B148,CI148)),MAX($CH$2:CH147)+1,0) -> 0
C149: =IF(B149="","",SUMIF('الرصيد الثابت'!$D$2:$D$115,B149,'الرصيد الثابت'!$H$2:$H$115)) ->  | D149: =IF(B149="","",SUMIF('الرصيد الثابت'!$D$2:$D$115,B149,'الرصيد الثابت'!$I$2:$I$115)) ->  | E149: =IF(B149="","",SUMIF('الرصيد الثابت'!$D$2:$D$115,B149,'الرصيد الثابت'!$J$2:$J$115)) ->  | G149: 0 | L149: 0 | P149: 0 | R149: 0 | CF149: =IFERROR(VLOOKUP(ROWS($CF$3:CF149),$CH$3:$CI$2001,2,FALSE),"") ->  | CH149: =IF(ISNUMBER(SEARCH(B149,CI149)),MAX($CH$2:CH148)+1,0) -> 0
C150: =IF(B150="","",SUMIF('الرصيد الثابت'!$D$2:$D$115,B150,'الرصيد الثابت'!$H$2:$H$115)) ->  | D150: =IF(B150="","",SUMIF('الرصيد الثابت'!$D$2:$D$115,B150,'الرصيد الثابت'!$I$2:$I$115)) ->  | E150: =IF(B150="","",SUMIF('الرصيد الثابت'!$D$2:$D$115,B150,'الرصيد الثابت'!$J$2:$J$115)) ->  | G150: 0 | L150: 0 | P150: 0 | R150: 0 | CF150: =IFERROR(VLOOKUP(ROWS($CF$3:CF150),$CH$3:$CI$2001,2,FALSE),"") ->  | CH150: =IF(ISNUMBER(SEARCH(B150,CI150)),MAX($CH$2:CH149)+1,0) -> 0
C151: =IF(B151="","",SUMIF('الرصيد الثابت'!$D$2:$D$115,B151,'الرصيد الثابت'!$H$2:$H$115)) ->  | D151: =IF(B151="","",SUMIF('الرصيد الثابت'!$D$2:$D$115,B151,'الرصيد الثابت'!$I$2:$I$115)) ->  | E151: =IF(B151="","",SUMIF('الرصيد الثابت'!$D$2:$D$115,B151,'الرصيد الثابت'!$J$2:$J$115)) ->  | G151: 0 | L151: 0 | P151: 0 | R151: 0 | CF151: =IFERROR(VLOOKUP(ROWS($CF$3:CF151),$CH$3:$CI$2001,2,FALSE),"") ->  | CH151: =IF(ISNUMBER(SEARCH(B151,CI151)),MAX($CH$2:CH150)+1,0) -> 0
C152: =IF(B152="","",SUMIF('الرصيد الثابت'!$D$2:$D$115,B152,'الرصيد الثابت'!$H$2:$H$115)) ->  | D152: =IF(B152="","",SUMIF('الرصيد الثابت'!$D$2:$D$115,B152,'الرصيد الثابت'!$I$2:$I$115)) ->  | E152: =IF(B152="","",SUMIF('الرصيد الثابت'!$D$2:$D$115,B152,'الرصيد الثابت'!$J$2:$J$115)) ->  | G152: 0 | L152: 0 | P152: =SUM(#REF!-#REF!) ->  | R152: 0 | CF152: =IFERROR(VLOOKUP(ROWS($CF$3:CF152),$CH$3:$CI$2001,2,FALSE),"") ->  | CH152: =IF(ISNUMBER(SEARCH(B152,CI152)),MAX($CH$2:CH151)+1,0) -> 0
C153: =IF(B153="","",SUMIF('الرصيد الثابت'!$D$2:$D$115,B153,'الرصيد الثابت'!$H$2:$H$115)) ->  | D153: =IF(B153="","",SUMIF('الرصيد الثابت'!$D$2:$D$115,B153,'الرصيد الثابت'!$I$2:$I$115)) ->  | E153: =IF(B153="","",SUMIF('الرصيد الثابت'!$D$2:$D$115,B153,'الرصيد الثابت'!$J$2:$J$115)) ->  | G153: 0 | L153: 0 | P153: 0 | R153: 0 | CF153: =IFERROR(VLOOKUP(ROWS($CF$3:CF153),$CH$3:$CI$2001,2,FALSE),"") ->  | CH153: =IF(ISNUMBER(SEARCH(B153,CI153)),MAX($CH$2:CH152)+1,0) -> 0
C154: =IF(B154="","",SUMIF('الرصيد الثابت'!$D$2:$D$115,B154,'الرصيد الثابت'!$H$2:$H$115)) ->  | D154: =IF(B154="","",SUMIF('الرصيد الثابت'!$D$2:$D$115,B154,'الرصيد الثابت'!$I$2:$I$115)) ->  | E154: =IF(B154="","",SUMIF('الرصيد الثابت'!$D$2:$D$115,B154,'الرصيد الثابت'!$J$2:$J$115)) ->  | G154: 0 | L154: 0 | P154: 0 | R154: 0 | CF154: =IFERROR(VLOOKUP(ROWS($CF$3:CF154),$CH$3:$CI$2001,2,FALSE),"") ->  | CH154: =IF(ISNUMBER(SEARCH(B154,CI154)),MAX($CH$2:CH153)+1,0) -> 0
C155: =IF(B155="","",SUMIF('الرصيد الثابت'!$D$2:$D$115,B155,'الرصيد الثابت'!$H$2:$H$115)) ->  | D155: =IF(B155="","",SUMIF('الرصيد الثابت'!$D$2:$D$115,B155,'الرصيد الثابت'!$I$2:$I$115)) ->  | E155: =IF(B155="","",SUMIF('الرصيد الثابت'!$D$2:$D$115,B155,'الرصيد الثابت'!$J$2:$J$115)) ->  | G155: 0 | L155: 0 | P155: 0 | R155: 0 | CF155: =IFERROR(VLOOKUP(ROWS($CF$3:CF155),$CH$3:$CI$2001,2,FALSE),"") ->  | CH155: =IF(ISNUMBER(SEARCH(B155,CI155)),MAX($CH$2:CH154)+1,0) -> 0
C156: =IF(B156="","",SUMIF('الرصيد الثابت'!$D$2:$D$115,B156,'الرصيد الثابت'!$H$2:$H$115)) ->  | D156: =IF(B156="","",SUMIF('الرصيد الثابت'!$D$2:$D$115,B156,'الرصيد الثابت'!$I$2:$I$115)) ->  | E156: =IF(B156="","",SUMIF('الرصيد الثابت'!$D$2:$D$115,B156,'الرصيد الثابت'!$J$2:$J$115)) ->  | G156: 0 | L156: 0 | P156: 0 | R156: 0 | CF156: =IFERROR(VLOOKUP(ROWS($CF$3:CF156),$CH$3:$CI$2001,2,FALSE),"") ->  | CH156: =IF(ISNUMBER(SEARCH(B156,CI156)),MAX($CH$2:CH155)+1,0) -> 0
C157: =IF(B157="","",SUMIF('الرصيد الثابت'!$D$2:$D$115,B157,'الرصيد الثابت'!$H$2:$H$115)) ->  | D157: =IF(B157="","",SUMIF('الرصيد الثابت'!$D$2:$D$115,B157,'الرصيد الثابت'!$I$2:$I$115)) ->  | E157: =IF(B157="","",SUMIF('الرصيد الثابت'!$D$2:$D$115,B157,'الرصيد الثابت'!$J$2:$J$115)) ->  | G157: 0 | L157: 0 | P157: 0 | R157: 0 | CF157: =IFERROR(VLOOKUP(ROWS($CF$3:CF157),$CH$3:$CI$2001,2,FALSE),"") ->  | CH157: =IF(ISNUMBER(SEARCH(B157,CI157)),MAX($CH$2:CH156)+1,0) -> 0
C158: =IF(B158="","",SUMIF('الرصيد الثابت'!$D$2:$D$115,B158,'الرصيد الثابت'!$H$2:$H$115)) ->  | D158: =IF(B158="","",SUMIF('الرصيد الثابت'!$D$2:$D$115,B158,'الرصيد الثابت'!$I$2:$I$115)) ->  | E158: =IF(B158="","",SUMIF('الرصيد الثابت'!$D$2:$D$115,B158,'الرصيد الثابت'!$J$2:$J$115)) ->  | G158: 0 | L158: 0 | P158: 0 | R158: 0 | CF158: =IFERROR(VLOOKUP(ROWS($CF$3:CF158),$CH$3:$CI$2001,2,FALSE),"") ->  | CH158: =IF(ISNUMBER(SEARCH(B158,CI158)),MAX($CH$2:CH157)+1,0) -> 0
C159: =IF(B159="","",SUMIF('الرصيد الثابت'!$D$2:$D$115,B159,'الرصيد الثابت'!$H$2:$H$115)) ->  | D159: =IF(B159="","",SUMIF('الرصيد الثابت'!$D$2:$D$115,B159,'الرصيد الثابت'!$I$2:$I$115)) ->  | E159: =IF(B159="","",SUMIF('الرصيد الثابت'!$D$2:$D$115,B159,'الرصيد الثابت'!$J$2:$J$115)) ->  | G159: 0 | L159: 0 | P159: 0 | R159: 0 | CF159: =IFERROR(VLOOKUP(ROWS($CF$3:CF159),$CH$3:$CI$2001,2,FALSE),"") ->  | CH159: =IF(ISNUMBER(SEARCH(B159,CI159)),MAX($CH$2:CH158)+1,0) -> 0
C160: =IF(B160="","",SUMIF('الرصيد الثابت'!$D$2:$D$115,B160,'الرصيد الثابت'!$H$2:$H$115)) ->  | D160: =IF(B160="","",SUMIF('الرصيد الثابت'!$D$2:$D$115,B160,'الرصيد الثابت'!$I$2:$I$115)) ->  | E160: =IF(B160="","",SUMIF('الرصيد الثابت'!$D$2:$D$115,B160,'الرصيد الثابت'!$J$2:$J$115)) ->  | G160: 0 | L160: 0 | P160: 0 | R160: 0 | CF160: =IFERROR(VLOOKUP(ROWS($CF$3:CF160),$CH$3:$CI$2001,2,FALSE),"") ->  | CH160: =IF(ISNUMBER(SEARCH(B160,CI160)),MAX($CH$2:CH159)+1,0) -> 0
C161: =IF(B161="","",SUMIF('الرصيد الثابت'!$D$2:$D$115,B161,'الرصيد الثابت'!$H$2:$H$115)) ->  | D161: =IF(B161="","",SUMIF('الرصيد الثابت'!$D$2:$D$115,B161,'الرصيد الثابت'!$I$2:$I$115)) ->  | E161: =IF(B161="","",SUMIF('الرصيد الثابت'!$D$2:$D$115,B161,'الرصيد الثابت'!$J$2:$J$115)) ->  | G161: 0 | L161: 0 | P161: 0 | R161: 0 | CF161: =IFERROR(VLOOKUP(ROWS($CF$3:CF161),$CH$3:$CI$2001,2,FALSE),"") ->  | CH161: =IF(ISNUMBER(SEARCH(B161,CI161)),MAX($CH$2:CH160)+1,0) -> 0
C162: =IF(B162="","",SUMIF('الرصيد الثابت'!$D$2:$D$115,B162,'الرصيد الثابت'!$H$2:$H$115)) ->  | D162: =IF(B162="","",SUMIF('الرصيد الثابت'!$D$2:$D$115,B162,'الرصيد الثابت'!$I$2:$I$115)) ->  | E162: =IF(B162="","",SUMIF('الرصيد الثابت'!$D$2:$D$115,B162,'الرصيد الثابت'!$J$2:$J$115)) ->  | G162: 0 | L162: 0 | P162: 0 | R162: 0 | CF162: =IFERROR(VLOOKUP(ROWS($CF$3:CF162),$CH$3:$CI$2001,2,FALSE),"") ->  | CH162: =IF(ISNUMBER(SEARCH(B162,CI162)),MAX($CH$2:CH161)+1,0) -> 0
C163: =IF(B163="","",SUMIF('الرصيد الثابت'!$D$2:$D$115,B163,'الرصيد الثابت'!$H$2:$H$115)) ->  | D163: =IF(B163="","",SUMIF('الرصيد الثابت'!$D$2:$D$115,B163,'الرصيد الثابت'!$I$2:$I$115)) ->  | E163: =IF(B163="","",SUMIF('الرصيد الثابت'!$D$2:$D$115,B163,'الرصيد الثابت'!$J$2:$J$115)) ->  | G163: 0 | L163: 0 | P163: 0 | R163: 0 | CF163: =IFERROR(VLOOKUP(ROWS($CF$3:CF163),$CH$3:$CI$2001,2,FALSE),"") ->  | CH163: =IF(ISNUMBER(SEARCH(B163,CI163)),MAX($CH$2:CH162)+1,0) -> 0
C164: =IF(B164="","",SUMIF('الرصيد الثابت'!$D$2:$D$115,B164,'الرصيد الثابت'!$H$2:$H$115)) ->  | D164: =IF(B164="","",SUMIF('الرصيد الثابت'!$D$2:$D$115,B164,'الرصيد الثابت'!$I$2:$I$115)) ->  | E164: =IF(B164="","",SUMIF('الرصيد الثابت'!$D$2:$D$115,B164,'الرصيد الثابت'!$J$2:$J$115)) ->  | G164: 0 | L164: 0 | P164: 0 | R164: 0 | CF164: =IFERROR(VLOOKUP(ROWS($CF$3:CF164),$CH$3:$CI$2001,2,FALSE),"") ->  | CH164: =IF(ISNUMBER(SEARCH(B164,CI164)),MAX($CH$2:CH163)+1,0) -> 0
C165: =IF(B165="","",SUMIF('الرصيد الثابت'!$D$2:$D$115,B165,'الرصيد الثابت'!$H$2:$H$115)) ->  | D165: =IF(B165="","",SUMIF('الرصيد الثابت'!$D$2:$D$115,B165,'الرصيد الثابت'!$I$2:$I$115)) ->  | E165: =IF(B165="","",SUMIF('الرصيد الثابت'!$D$2:$D$115,B165,'الرصيد الثابت'!$J$2:$J$115)) ->  | G165: 0 | L165: 0 | P165: 0 | R165: 0 | CF165: =IFERROR(VLOOKUP(ROWS($CF$3:CF165),$CH$3:$CI$2001,2,FALSE),"") ->  | CH165: =IF(ISNUMBER(SEARCH(B165,CI165)),MAX($CH$2:CH164)+1,0) -> 0
C166: =IF(B166="","",SUMIF('الرصيد الثابت'!$D$2:$D$115,B166,'الرصيد الثابت'!$H$2:$H$115)) ->  | D166: =IF(B166="","",SUMIF('الرصيد الثابت'!$D$2:$D$115,B166,'الرصيد الثابت'!$I$2:$I$115)) ->  | E166: =IF(B166="","",SUMIF('الرصيد الثابت'!$D$2:$D$115,B166,'الرصيد الثابت'!$J$2:$J$115)) ->  | G166: 0 | L166: 0 | P166: 0 | R166: 0 | CF166: =IFERROR(VLOOKUP(ROWS($CF$3:CF166),$CH$3:$CI$2001,2,FALSE),"") ->  | CH166: =IF(ISNUMBER(SEARCH(B166,CI166)),MAX($CH$2:CH165)+1,0) -> 0
C167: =IF(B167="","",SUMIF('الرصيد الثابت'!$D$2:$D$115,B167,'الرصيد الثابت'!$H$2:$H$115)) ->  | D167: =IF(B167="","",SUMIF('الرصيد الثابت'!$D$2:$D$115,B167,'الرصيد الثابت'!$I$2:$I$115)) ->  | E167: =IF(B167="","",SUMIF('الرصيد الثابت'!$D$2:$D$115,B167,'الرصيد الثابت'!$J$2:$J$115)) ->  | G167: 0 | L167: 0 | P167: 0 | R167: 0 | CF167: =IFERROR(VLOOKUP(ROWS($CF$3:CF167),$CH$3:$CI$2001,2,FALSE),"") ->  | CH167: =IF(ISNUMBER(SEARCH(B167,CI167)),MAX($CH$2:CH166)+1,0) -> 0
C168: =IF(B168="","",SUMIF('الرصيد الثابت'!$D$2:$D$115,B168,'الرصيد الثابت'!$H$2:$H$115)) ->  | D168: =IF(B168="","",SUMIF('الرصيد الثابت'!$D$2:$D$115,B168,'الرصيد الثابت'!$I$2:$I$115)) ->  | E168: =IF(B168="","",SUMIF('الرصيد الثابت'!$D$2:$D$115,B168,'الرصيد الثابت'!$J$2:$J$115)) ->  | G168: 0 | L168: 0 | P168: 0 | R168: 0 | CF168: =IFERROR(VLOOKUP(ROWS($CF$3:CF168),$CH$3:$CI$2001,2,FALSE),"") ->  | CH168: =IF(ISNUMBER(SEARCH(B168,CI168)),MAX($CH$2:CH167)+1,0) -> 0
C169: =IF(B169="","",SUMIF('الرصيد الثابت'!$D$2:$D$115,B169,'الرصيد الثابت'!$H$2:$H$115)) ->  | D169: =IF(B169="","",SUMIF('الرصيد الثابت'!$D$2:$D$115,B169,'الرصيد الثابت'!$I$2:$I$115)) ->  | E169: =IF(B169="","",SUMIF('الرصيد الثابت'!$D$2:$D$115,B169,'الرصيد الثابت'!$J$2:$J$115)) ->  | G169: 0 | L169: 0 | P169: 0 | R169: 0 | CF169: =IFERROR(VLOOKUP(ROWS($CF$3:CF169),$CH$3:$CI$2001,2,FALSE),"") ->  | CH169: =IF(ISNUMBER(SEARCH(B169,CI169)),MAX($CH$2:CH168)+1,0) -> 0
C170: =IF(B170="","",SUMIF('الرصيد الثابت'!$D$2:$D$115,B170,'الرصيد الثابت'!$H$2:$H$115)) ->  | D170: =IF(B170="","",SUMIF('الرصيد الثابت'!$D$2:$D$115,B170,'الرصيد الثابت'!$I$2:$I$115)) ->  | E170: =IF(B170="","",SUMIF('الرصيد الثابت'!$D$2:$D$115,B170,'الرصيد الثابت'!$J$2:$J$115)) ->  | G170: 0 | L170: 0 | P170: 0 | R170: 0 | CF170: =IFERROR(VLOOKUP(ROWS($CF$3:CF170),$CH$3:$CI$2001,2,FALSE),"") ->  | CH170: =IF(ISNUMBER(SEARCH(B170,CI170)),MAX($CH$2:CH169)+1,0) -> 0
C171: =IF(B171="","",SUMIF('الرصيد الثابت'!$D$2:$D$115,B171,'الرصيد الثابت'!$H$2:$H$115)) ->  | D171: =IF(B171="","",SUMIF('الرصيد الثابت'!$D$2:$D$115,B171,'الرصيد الثابت'!$I$2:$I$115)) ->  | E171: =IF(B171="","",SUMIF('الرصيد الثابت'!$D$2:$D$115,B171,'الرصيد الثابت'!$J$2:$J$115)) ->  | G171: 0 | L171: 0 | P171: 0 | R171: 0 | CF171: =IFERROR(VLOOKUP(ROWS($CF$3:CF171),$CH$3:$CI$2001,2,FALSE),"") ->  | CH171: =IF(ISNUMBER(SEARCH(B171,CI171)),MAX($CH$2:CH170)+1,0) -> 0
C172: =IF(B172="","",SUMIF('الرصيد الثابت'!$D$2:$D$115,B172,'الرصيد الثابت'!$H$2:$H$115)) ->  | D172: =IF(B172="","",SUMIF('الرصيد الثابت'!$D$2:$D$115,B172,'الرصيد الثابت'!$I$2:$I$115)) ->  | E172: =IF(B172="","",SUMIF('الرصيد الثابت'!$D$2:$D$115,B172,'الرصيد الثابت'!$J$2:$J$115)) ->  | G172: 0 | L172: 0 | P172: 0 | R172: 0 | CF172: =IFERROR(VLOOKUP(ROWS($CF$3:CF172),$CH$3:$CI$2001,2,FALSE),"") ->  | CH172: =IF(ISNUMBER(SEARCH(B172,CI172)),MAX($CH$2:CH171)+1,0) -> 0
C173: =IF(B173="","",SUMIF('الرصيد الثابت'!$D$2:$D$115,B173,'الرصيد الثابت'!$H$2:$H$115)) ->  | D173: =IF(B173="","",SUMIF('الرصيد الثابت'!$D$2:$D$115,B173,'الرصيد الثابت'!$I$2:$I$115)) ->  | E173: =IF(B173="","",SUMIF('الرصيد الثابت'!$D$2:$D$115,B173,'الرصيد الثابت'!$J$2:$J$115)) ->  | G173: 0 | L173: 0 | P173: 0 | R173: 0 | CF173: =IFERROR(VLOOKUP(ROWS($CF$3:CF173),$CH$3:$CI$2001,2,FALSE),"") ->  | CH173: =IF(ISNUMBER(SEARCH(B173,CI173)),MAX($CH$2:CH172)+1,0) -> 0
C174: =IF(B174="","",SUMIF('الرصيد الثابت'!$D$2:$D$115,B174,'الرصيد الثابت'!$H$2:$H$115)) ->  | D174: =IF(B174="","",SUMIF('الرصيد الثابت'!$D$2:$D$115,B174,'الرصيد الثابت'!$I$2:$I$115)) ->  | E174: =IF(B174="","",SUMIF('الرصيد الثابت'!$D$2:$D$115,B174,'الرصيد الثابت'!$J$2:$J$115)) ->  | G174: 0 | L174: 0 | P174: 0 | R174: 0 | CF174: =IFERROR(VLOOKUP(ROWS($CF$3:CF174),$CH$3:$CI$2001,2,FALSE),"") ->  | CH174: =IF(ISNUMBER(SEARCH(B174,CI174)),MAX($CH$2:CH173)+1,0) -> 0
C175: =IF(B175="","",SUMIF('الرصيد الثابت'!$D$2:$D$115,B175,'الرصيد الثابت'!$H$2:$H$115)) ->  | D175: =IF(B175="","",SUMIF('الرصيد الثابت'!$D$2:$D$115,B175,'الرصيد الثابت'!$I$2:$I$115)) ->  | E175: =IF(B175="","",SUMIF('الرصيد الثابت'!$D$2:$D$115,B175,'الرصيد الثابت'!$J$2:$J$115)) ->  | G175: 0 | L175: 0 | P175: 0 | R175: 0 | CF175: =IFERROR(VLOOKUP(ROWS($CF$3:CF175),$CH$3:$CI$2001,2,FALSE),"") ->  | CH175: =IF(ISNUMBER(SEARCH(B175,CI175)),MAX($CH$2:CH174)+1,0) -> 0
C176: =IF(B176="","",SUMIF('الرصيد الثابت'!$D$2:$D$115,B176,'الرصيد الثابت'!$H$2:$H$115)) ->  | D176: =IF(B176="","",SUMIF('الرصيد الثابت'!$D$2:$D$115,B176,'الرصيد الثابت'!$I$2:$I$115)) ->  | E176: =IF(B176="","",SUMIF('الرصيد الثابت'!$D$2:$D$115,B176,'الرصيد الثابت'!$J$2:$J$115)) ->  | G176: 0 | L176: 0 | P176: 0 | R176: 0 | CF176: =IFERROR(VLOOKUP(ROWS($CF$3:CF176),$CH$3:$CI$2001,2,FALSE),"") ->  | CH176: =IF(ISNUMBER(SEARCH(B176,CI176)),MAX($CH$2:CH175)+1,0) -> 0
C177: =IF(B177="","",SUMIF('الرصيد الثابت'!$D$2:$D$115,B177,'الرصيد الثابت'!$H$2:$H$115)) ->  | D177: =IF(B177="","",SUMIF('الرصيد الثابت'!$D$2:$D$115,B177,'الرصيد الثابت'!$I$2:$I$115)) ->  | E177: =IF(B177="","",SUMIF('الرصيد الثابت'!$D$2:$D$115,B177,'الرصيد الثابت'!$J$2:$J$115)) ->  | G177: 0 | L177: 0 | P177: 0 | R177: 0 | CF177: =IFERROR(VLOOKUP(ROWS($CF$3:CF177),$CH$3:$CI$2001,2,FALSE),"") ->  | CH177: =IF(ISNUMBER(SEARCH(B177,CI177)),MAX($CH$2:CH176)+1,0) -> 0
C178: =IF(B178="","",SUMIF('الرصيد الثابت'!$D$2:$D$115,B178,'الرصيد الثابت'!$H$2:$H$115)) ->  | D178: =IF(B178="","",SUMIF('الرصيد الثابت'!$D$2:$D$115,B178,'الرصيد الثابت'!$I$2:$I$115)) ->  | E178: =IF(B178="","",SUMIF('الرصيد الثابت'!$D$2:$D$115,B178,'الرصيد الثابت'!$J$2:$J$115)) ->  | G178: 0 | L178: 0 | P178: 0 | R178: 0 | CF178: =IFERROR(VLOOKUP(ROWS($CF$3:CF178),$CH$3:$CI$2001,2,FALSE),"") ->  | CH178: =IF(ISNUMBER(SEARCH(B178,CI178)),MAX($CH$2:CH177)+1,0) -> 0
C179: =IF(B179="","",SUMIF('الرصيد الثابت'!$D$2:$D$115,B179,'الرصيد الثابت'!$H$2:$H$115)) ->  | D179: =IF(B179="","",SUMIF('الرصيد الثابت'!$D$2:$D$115,B179,'الرصيد الثابت'!$I$2:$I$115)) ->  | E179: =IF(B179="","",SUMIF('الرصيد الثابت'!$D$2:$D$115,B179,'الرصيد الثابت'!$J$2:$J$115)) ->  | G179: 0 | L179: 0 | P179: 0 | R179: 0 | CF179: =IFERROR(VLOOKUP(ROWS($CF$3:CF179),$CH$3:$CI$2001,2,FALSE),"") ->  | CH179: =IF(ISNUMBER(SEARCH(B179,CI179)),MAX($CH$2:CH178)+1,0) -> 0
C180: =IF(B180="","",SUMIF('الرصيد الثابت'!$D$2:$D$115,B180,'الرصيد الثابت'!$H$2:$H$115)) ->  | D180: =IF(B180="","",SUMIF('الرصيد الثابت'!$D$2:$D$115,B180,'الرصيد الثابت'!$I$2:$I$115)) ->  | E180: =IF(B180="","",SUMIF('الرصيد الثابت'!$D$2:$D$115,B180,'الرصيد الثابت'!$J$2:$J$115)) ->  | G180: 0 | L180: 0 | P180: 0 | R180: 0 | CF180: =IFERROR(VLOOKUP(ROWS($CF$3:CF180),$CH$3:$CI$2001,2,FALSE),"") ->  | CH180: =IF(ISNUMBER(SEARCH(B180,CI180)),MAX($CH$2:CH179)+1,0) -> 0
C181: =IF(B181="","",SUMIF('الرصيد الثابت'!$D$2:$D$115,B181,'الرصيد الثابت'!$H$2:$H$115)) ->  | D181: =IF(B181="","",SUMIF('الرصيد الثابت'!$D$2:$D$115,B181,'الرصيد الثابت'!$I$2:$I$115)) ->  | E181: =IF(B181="","",SUMIF('الرصيد الثابت'!$D$2:$D$115,B181,'الرصيد الثابت'!$J$2:$J$115)) ->  | G181: 0 | L181: 0 | P181: 0 | R181: 0 | CF181: =IFERROR(VLOOKUP(ROWS($CF$3:CF181),$CH$3:$CI$2001,2,FALSE),"") ->  | CH181: =IF(ISNUMBER(SEARCH(B181,CI181)),MAX($CH$2:CH180)+1,0) -> 0
C182: =IF(B182="","",SUMIF('الرصيد الثابت'!$D$2:$D$115,B182,'الرصيد الثابت'!$H$2:$H$115)) ->  | D182: =IF(B182="","",SUMIF('الرصيد الثابت'!$D$2:$D$115,B182,'الرصيد الثابت'!$I$2:$I$115)) ->  | E182: =IF(B182="","",SUMIF('الرصيد الثابت'!$D$2:$D$115,B182,'الرصيد الثابت'!$J$2:$J$115)) ->  | G182: 0 | L182: 0 | P182: 0 | R182: 0 | CF182: =IFERROR(VLOOKUP(ROWS($CF$3:CF182),$CH$3:$CI$2001,2,FALSE),"") ->  | CH182: =IF(ISNUMBER(SEARCH(B182,CI182)),MAX($CH$2:CH181)+1,0) -> 0
C183: =IF(B183="","",SUMIF('الرصيد الثابت'!$D$2:$D$115,B183,'الرصيد الثابت'!$H$2:$H$115)) ->  | D183: =IF(B183="","",SUMIF('الرصيد الثابت'!$D$2:$D$115,B183,'الرصيد الثابت'!$I$2:$I$115)) ->  | E183: =IF(B183="","",SUMIF('الرصيد الثابت'!$D$2:$D$115,B183,'الرصيد الثابت'!$J$2:$J$115)) ->  | G183: 0 | L183: 0 | P183: 0 | R183: 0 | CF183: =IFERROR(VLOOKUP(ROWS($CF$3:CF183),$CH$3:$CI$2001,2,FALSE),"") ->  | CH183: =IF(ISNUMBER(SEARCH(B183,CI183)),MAX($CH$2:CH182)+1,0) -> 0
C184: =IF(B184="","",SUMIF('الرصيد الثابت'!$D$2:$D$115,B184,'الرصيد الثابت'!$H$2:$H$115)) ->  | D184: =IF(B184="","",SUMIF('الرصيد الثابت'!$D$2:$D$115,B184,'الرصيد الثابت'!$I$2:$I$115)) ->  | E184: =IF(B184="","",SUMIF('الرصيد الثابت'!$D$2:$D$115,B184,'الرصيد الثابت'!$J$2:$J$115)) ->  | G184: 0 | L184: 0 | P184: 0 | R184: 0 | CF184: =IFERROR(VLOOKUP(ROWS($CF$3:CF184),$CH$3:$CI$2001,2,FALSE),"") ->  | CH184: =IF(ISNUMBER(SEARCH(B184,CI184)),MAX($CH$2:CH183)+1,0) -> 0
C185: =IF(B185="","",SUMIF('الرصيد الثابت'!$D$2:$D$115,B185,'الرصيد الثابت'!$H$2:$H$115)) ->  | D185: =IF(B185="","",SUMIF('الرصيد الثابت'!$D$2:$D$115,B185,'الرصيد الثابت'!$I$2:$I$115)) ->  | E185: =IF(B185="","",SUMIF('الرصيد الثابت'!$D$2:$D$115,B185,'الرصيد الثابت'!$J$2:$J$115)) ->  | G185: 0 | L185: 0 | P185: 0 | R185: 0 | CF185: =IFERROR(VLOOKUP(ROWS($CF$3:CF185),$CH$3:$CI$2001,2,FALSE),"") ->  | CH185: =IF(ISNUMBER(SEARCH(B185,CI185)),MAX($CH$2:CH184)+1,0) -> 0
C186: =IF(B186="","",SUMIF('الرصيد الثابت'!$D$2:$D$115,B186,'الرصيد الثابت'!$H$2:$H$115)) ->  | D186: =IF(B186="","",SUMIF('الرصيد الثابت'!$D$2:$D$115,B186,'الرصيد الثابت'!$I$2:$I$115)) ->  | E186: =IF(B186="","",SUMIF('الرصيد الثابت'!$D$2:$D$115,B186,'الرصيد الثابت'!$J$2:$J$115)) ->  | G186: 0 | L186: 0 | P186: 0 | R186: 0 | CF186: =IFERROR(VLOOKUP(ROWS($CF$3:CF186),$CH$3:$CI$2001,2,FALSE),"") ->  | CH186: =IF(ISNUMBER(SEARCH(B186,CI186)),MAX($CH$2:CH185)+1,0) -> 0
C187: =IF(B187="","",SUMIF('الرصيد الثابت'!$D$2:$D$115,B187,'الرصيد الثابت'!$H$2:$H$115)) ->  | D187: =IF(B187="","",SUMIF('الرصيد الثابت'!$D$2:$D$115,B187,'الرصيد الثابت'!$I$2:$I$115)) ->  | E187: =IF(B187="","",SUMIF('الرصيد الثابت'!$D$2:$D$115,B187,'الرصيد الثابت'!$J$2:$J$115)) ->  | G187: 0 | L187: 0 | P187: 0 | R187: 0 | CF187: =IFERROR(VLOOKUP(ROWS($CF$3:CF187),$CH$3:$CI$2001,2,FALSE),"") ->  | CH187: =IF(ISNUMBER(SEARCH(B187,CI187)),MAX($CH$2:CH186)+1,0) -> 0
C188: =IF(B188="","",SUMIF('الرصيد الثابت'!$D$2:$D$115,B188,'الرصيد الثابت'!$H$2:$H$115)) ->  | D188: =IF(B188="","",SUMIF('الرصيد الثابت'!$D$2:$D$115,B188,'الرصيد الثابت'!$I$2:$I$115)) ->  | E188: =IF(B188="","",SUMIF('الرصيد الثابت'!$D$2:$D$115,B188,'الرصيد الثابت'!$J$2:$J$115)) ->  | G188: 0 | L188: 0 | P188: 0 | R188: 0 | CF188: =IFERROR(VLOOKUP(ROWS($CF$3:CF188),$CH$3:$CI$2001,2,FALSE),"") ->  | CH188: =IF(ISNUMBER(SEARCH(B188,CI188)),MAX($CH$2:CH187)+1,0) -> 0
C189: =IF(B189="","",SUMIF('الرصيد الثابت'!$D$2:$D$115,B189,'الرصيد الثابت'!$H$2:$H$115)) ->  | D189: =IF(B189="","",SUMIF('الرصيد الثابت'!$D$2:$D$115,B189,'الرصيد الثابت'!$I$2:$I$115)) ->  | E189: =IF(B189="","",SUMIF('الرصيد الثابت'!$D$2:$D$115,B189,'الرصيد الثابت'!$J$2:$J$115)) ->  | G189: 0 | L189: 0 | P189: 0 | R189: 0 | CF189: =IFERROR(VLOOKUP(ROWS($CF$3:CF189),$CH$3:$CI$2001,2,FALSE),"") ->  | CH189: =IF(ISNUMBER(SEARCH(B189,CI189)),MAX($CH$2:CH188)+1,0) -> 0
C190: =IF(B190="","",SUMIF('الرصيد الثابت'!$D$2:$D$115,B190,'الرصيد الثابت'!$H$2:$H$115)) ->  | D190: =IF(B190="","",SUMIF('الرصيد الثابت'!$D$2:$D$115,B190,'الرصيد الثابت'!$I$2:$I$115)) ->  | E190: =IF(B190="","",SUMIF('الرصيد الثابت'!$D$2:$D$115,B190,'الرصيد الثابت'!$J$2:$J$115)) ->  | G190: 0 | L190: 0 | P190: 0 | R190: 0 | CF190: =IFERROR(VLOOKUP(ROWS($CF$3:CF190),$CH$3:$CI$2001,2,FALSE),"") ->  | CH190: =IF(ISNUMBER(SEARCH(B190,CI190)),MAX($CH$2:CH189)+1,0) -> 0
C191: =IF(B191="","",SUMIF('الرصيد الثابت'!$D$2:$D$115,B191,'الرصيد الثابت'!$H$2:$H$115)) ->  | D191: =IF(B191="","",SUMIF('الرصيد الثابت'!$D$2:$D$115,B191,'الرصيد الثابت'!$I$2:$I$115)) ->  | E191: =IF(B191="","",SUMIF('الرصيد الثابت'!$D$2:$D$115,B191,'الرصيد الثابت'!$J$2:$J$115)) ->  | G191: 0 | L191: 0 | P191: 0 | R191: 0 | CF191: =IFERROR(VLOOKUP(ROWS($CF$3:CF191),$CH$3:$CI$2001,2,FALSE),"") ->  | CH191: =IF(ISNUMBER(SEARCH(B191,CI191)),MAX($CH$2:CH190)+1,0) -> 0
C192: =IF(B192="","",SUMIF('الرصيد الثابت'!$D$2:$D$115,B192,'الرصيد الثابت'!$H$2:$H$115)) ->  | D192: =IF(B192="","",SUMIF('الرصيد الثابت'!$D$2:$D$115,B192,'الرصيد الثابت'!$I$2:$I$115)) ->  | E192: =IF(B192="","",SUMIF('الرصيد الثابت'!$D$2:$D$115,B192,'الرصيد الثابت'!$J$2:$J$115)) ->  | G192: 0 | L192: 0 | P192: 0 | R192: 0 | CF192: =IFERROR(VLOOKUP(ROWS($CF$3:CF192),$CH$3:$CI$2001,2,FALSE),"") ->  | CH192: =IF(ISNUMBER(SEARCH(B192,CI192)),MAX($CH$2:CH191)+1,0) -> 0
C193: =IF(B193="","",SUMIF('الرصيد الثابت'!$D$2:$D$115,B193,'الرصيد الثابت'!$H$2:$H$115)) ->  | D193: =IF(B193="","",SUMIF('الرصيد الثابت'!$D$2:$D$115,B193,'الرصيد الثابت'!$I$2:$I$115)) ->  | E193: =IF(B193="","",SUMIF('الرصيد الثابت'!$D$2:$D$115,B193,'الرصيد الثابت'!$J$2:$J$115)) ->  | G193: 0 | L193: 0 | P193: 0 | R193: 0 | CF193: =IFERROR(VLOOKUP(ROWS($CF$3:CF193),$CH$3:$CI$2001,2,FALSE),"") ->  | CH193: =IF(ISNUMBER(SEARCH(B193,CI193)),MAX($CH$2:CH192)+1,0) -> 0
C194: =IF(B194="","",SUMIF('الرصيد الثابت'!$D$2:$D$115,B194,'الرصيد الثابت'!$H$2:$H$115)) ->  | D194: =IF(B194="","",SUMIF('الرصيد الثابت'!$D$2:$D$115,B194,'الرصيد الثابت'!$I$2:$I$115)) ->  | E194: =IF(B194="","",SUMIF('الرصيد الثابت'!$D$2:$D$115,B194,'الرصيد الثابت'!$J$2:$J$115)) ->  | G194: 0 | L194: 0 | P194: 0 | R194: 0 | CF194: =IFERROR(VLOOKUP(ROWS($CF$3:CF194),$CH$3:$CI$2001,2,FALSE),"") ->  | CH194: =IF(ISNUMBER(SEARCH(B194,CI194)),MAX($CH$2:CH193)+1,0) -> 0
C195: =IF(B195="","",SUMIF('الرصيد الثابت'!$D$2:$D$115,B195,'الرصيد الثابت'!$H$2:$H$115)) ->  | D195: =IF(B195="","",SUMIF('الرصيد الثابت'!$D$2:$D$115,B195,'الرصيد الثابت'!$I$2:$I$115)) ->  | E195: =IF(B195="","",SUMIF('الرصيد الثابت'!$D$2:$D$115,B195,'الرصيد الثابت'!$J$2:$J$115)) ->  | G195: 0 | L195: =SUM(M195*K195) -> 0 | P195: 0 | R195: 0 | CF195: =IFERROR(VLOOKUP(ROWS($CF$3:CF195),$CH$3:$CI$2001,2,FALSE),"") ->  | CH195: =IF(ISNUMBER(SEARCH(B195,CI195)),MAX($CH$2:CH194)+1,0) -> 0
C196: =IF(B196="","",SUMIF('الرصيد الثابت'!$D$2:$D$115,B196,'الرصيد الثابت'!$H$2:$H$115)) ->  | D196: =IF(B196="","",SUMIF('الرصيد الثابت'!$D$2:$D$115,B196,'الرصيد الثابت'!$I$2:$I$115)) ->  | E196: =IF(B196="","",SUMIF('الرصيد الثابت'!$D$2:$D$115,B196,'الرصيد الثابت'!$J$2:$J$115)) ->  | G196: =SUM(H196*F196) -> 0 | L196: 0 | P196: =SUM(F196-K196) -> 0 | R196: 0 | CF196: =IFERROR(VLOOKUP(ROWS($CF$3:CF196),$CH$3:$CI$2001,2,FALSE),"") ->  | CH196: =IF(ISNUMBER(SEARCH(B196,CI196)),MAX($CH$2:CH195)+1,0) -> 0
C197: =IF(B197="","",SUMIF('الرصيد الثابت'!$D$2:$D$115,B197,'الرصيد الثابت'!$H$2:$H$115)) ->  | D197: =IF(B197="","",SUMIF('الرصيد الثابت'!$D$2:$D$115,B197,'الرصيد الثابت'!$I$2:$I$115)) ->  | E197: =IF(B197="","",SUMIF('الرصيد الثابت'!$D$2:$D$115,B197,'الرصيد الثابت'!$J$2:$J$115)) ->  | G197: 0 | L197: 0 | P197: 0 | R197: 0 | CF197: =IFERROR(VLOOKUP(ROWS($CF$3:CF197),$CH$3:$CI$2001,2,FALSE),"") ->  | CH197: =IF(ISNUMBER(SEARCH(B197,CI197)),MAX($CH$2:CH196)+1,0) -> 0
C198: =IF(B198="","",SUMIF('الرصيد الثابت'!$D$2:$D$115,B198,'الرصيد الثابت'!$H$2:$H$115)) ->  | D198: =IF(B198="","",SUMIF('الرصيد الثابت'!$D$2:$D$115,B198,'الرصيد الثابت'!$I$2:$I$115)) ->  | E198: =IF(B198="","",SUMIF('الرصيد الثابت'!$D$2:$D$115,B198,'الرصيد الثابت'!$J$2:$J$115)) ->  | G198: 0 | L198: 0 | P198: 0 | R198: 0 | CF198: =IFERROR(VLOOKUP(ROWS($CF$3:CF198),$CH$3:$CI$2001,2,FALSE),"") ->  | CH198: =IF(ISNUMBER(SEARCH(B198,CI198)),MAX($CH$2:CH197)+1,0) -> 0
C199: =IF(B199="","",SUMIF('الرصيد الثابت'!$D$2:$D$115,B199,'الرصيد الثابت'!$H$2:$H$115)) ->  | D199: =IF(B199="","",SUMIF('الرصيد الثابت'!$D$2:$D$115,B199,'الرصيد الثابت'!$I$2:$I$115)) ->  | E199: =IF(B199="","",SUMIF('الرصيد الثابت'!$D$2:$D$115,B199,'الرصيد الثابت'!$J$2:$J$115)) ->  | G199: 0 | L199: 0 | P199: 0 | R199: =SUM(S199*Q199) -> 0 | CF199: =IFERROR(VLOOKUP(ROWS($CF$3:CF199),$CH$3:$CI$2001,2,FALSE),"") ->  | CH199: =IF(ISNUMBER(SEARCH(B199,CI199)),MAX($CH$2:CH198)+1,0) -> 0
C200: =IF(B200="","",SUMIF('الرصيد الثابت'!$D$2:$D$115,B200,'الرصيد الثابت'!$H$2:$H$115)) ->  | D200: =IF(B200="","",SUMIF('الرصيد الثابت'!$D$2:$D$115,B200,'الرصيد الثابت'!$I$2:$I$115)) ->  | E200: =IF(B200="","",SUMIF('الرصيد الثابت'!$D$2:$D$115,B200,'الرصيد الثابت'!$J$2:$J$115)) ->  | G200: 0 | L200: 0 | P200: 0 | R200: 0 | CF200: =IFERROR(VLOOKUP(ROWS($CF$3:CF200),$CH$3:$CI$2001,2,FALSE),"") ->  | CH200: =IF(ISNUMBER(SEARCH(B200,CI200)),MAX($CH$2:CH199)+1,0) -> 0
... 925 more rows
